Service Area,Service Division,Expense Type,Expense Code,Detailed Expense Type,Payment Date,Transaction Number,Amount Exc VAT,Supplier Name
Neighbourhoods and Climate Change,Highways,Supplies and Services,304221,Equipment and Materials,01/02/2024,4230173-35518261,718.61,AGGREGATE INDUSTRIES UK LTD.
Neighbourhoods and Climate Change,Environmental Services,Transport,230005,Contract Hire,01/02/2024,4230183-HI3237896,645.84,ARNOLD CLARK CAR & VAN RENTAL.
Regeneration Economy and Growth,Culture Sport and Tourism,Supplies and Services,312013,Newspapers books and periodicals E312,01/02/2024,4230185-6993773,631.14,ASKEWS & HOLTS LIBRARY SERVICES LTD.
Regeneration Economy and Growth,Culture Sport and Tourism,Supplies and Services,312017,Newspapers books and periodicals E312,01/02/2024,4230185-6993778,807.82,ASKEWS & HOLTS LIBRARY SERVICES LTD.
Regeneration Economy and Growth,Culture Sport and Tourism,Supplies and Services,312013,Newspapers books and periodicals E312,01/02/2024,4230185-6993796,738.22,ASKEWS & HOLTS LIBRARY SERVICES LTD.
Regeneration Economy and Growth,Culture Sport and Tourism,Supplies and Services,312017,Newspapers books and periodicals E312,01/02/2024,4230185-6994168,722.73,ASKEWS & HOLTS LIBRARY SERVICES LTD.
Regeneration Economy and Growth,Culture Sport and Tourism,Supplies and Services,312017,Newspapers books and periodicals E312,01/02/2024,4230185-6994191,582.96,ASKEWS & HOLTS LIBRARY SERVICES LTD.
Regeneration Economy and Growth,Culture Sport and Tourism,Supplies and Services,312017,Newspapers books and periodicals E312,01/02/2024,4230185-6994192,642.48,ASKEWS & HOLTS LIBRARY SERVICES LTD.
Regeneration Economy and Growth,Economic Development,Intangible Assets,917003,Software capitalised implementation fees,01/02/2024,4230187-240130,"1,014.00",AT CREATIVE LTD.
Children and Young Peoples Services,Head of Education and Skills,Third Party Payments,430100,Rendered by Private Contractors,01/02/2024,4230200-32,"2,252.25",BROADSIDE CREATIVES CIC.
Neighbourhoods and Climate Change,Environmental Services,Third Party Payments,430113,Rendered by Private Contractors,01/02/2024,4230201-SI-1021,"1,080.00",BROADWOOD GARAGE LTD.
Children and Young Peoples Services,Head of Education and Skills,Central Support and Other Recharges,615208,Support Services,01/02/2024,4230207-RES-01-2024-423,"1,155.86",CARMEL COLLEGE.*
Children and Young Peoples Services,Head of Childrens Social Care,Third Party Payments,440047,Other third party payments E440,01/02/2024,4230208-26158,"7,432.32",CASTLE VIEW GROUP TRAINING.
Children and Young Peoples Services,Head of Childrens Social Care,Third Party Payments,440047,Other third party payments E440,01/02/2024,4230208-26314,"7,454.44",CASTLE VIEW GROUP TRAINING.
Children and Young Peoples Services,Head of Childrens Social Care,Third Party Payments,440047,Other third party payments E440,01/02/2024,4230208-26381,"4,247.04",CASTLE VIEW GROUP TRAINING.
Children and Young Peoples Services,Head of Childrens Social Care,Third Party Payments,440047,Other third party payments E440,01/02/2024,4230208-26426,"2,123.52",CASTLE VIEW GROUP TRAINING.
Regeneration Economy and Growth,Culture Sport and Tourism,Supplies and Services,384199,Miscellaneous Expenses,01/02/2024,4230210-INV-0896,"3,000.00",CHANNELL EVENTS LTD.
Children and Young Peoples Services,Head of Education and Skills,Transport,230006,Contract Hire,01/02/2024,4230224-DI202312,750.00,D&I TAXIS.
Children and Young Peoples Services,Head of Early Help Inclusion & Vulnerable Children.,Supplies and Services,338094,Services,01/02/2024,4230228-12/07,866.25,DEAN BANK & FERRYHILL LITERARY INSTITUTE.
Neighbourhoods and Climate Change,Environmental Services,Supplies and Services,384199,Miscellaneous Expenses,01/02/2024,4230231-INV-1865,"50,030.00",DINSDALE MOORLAND SPECIALISTS.
Regeneration Economy and Growth,Corporate Property and Land,Third Party Payments,430100,Rendered by Private Contractors,01/02/2024,4230234-003/2024,"31,621.70",DPC SCREEDING LTD.
Regeneration Economy and Growth,Corporate Property and Land,Supplies and Services,372009,Subscriptions E372,01/02/2024,4230242-2024/940236,"3,824.20",ECA (ELECTRICAL CONTRACTORS` ASSOCIATION)
Dedicated Schools Grant BG0015,Dedicated Schools Grant CG0050,Central Support and Other Recharges,615208,Support Services,01/02/2024,4230243-RES-01-2024-422,"5,490.32",EDEN LEARNING TRUST T/A FERRYHILL BUSINESS & ENTERPRISE COLLEGE.
Regeneration Economy and Growth,Corporate Property and Land,Supplies and Services,304221,Equipment and Materials,01/02/2024,4230245-059-330370,"1,248.75",EDMUNDSON ELECTRICAL LTD.
Regeneration Economy and Growth,Corporate Property and Land,Supplies and Services,304221,Equipment and Materials,01/02/2024,4230245-059-330371,"1,610.92",EDMUNDSON ELECTRICAL LTD.
Regeneration Economy and Growth,Corporate Property and Land,Supplies and Services,304221,Equipment and Materials,01/02/2024,4230245-059-330390,739.14,EDMUNDSON ELECTRICAL LTD.
Neighbourhoods and Climate Change,Environmental Services,Supplies and Services,384700,Miscellaneous Expenses,01/02/2024,4230251-RES-01-2024-078,"6,192.64",EPIACUM HERITAGE LTD.
Neighbourhoods and Climate Change,Environmental Services,Supplies and Services,384700,Miscellaneous Expenses,01/02/2024,4230251-RES-01-2024-437,"23,818.80",EPIACUM HERITAGE LTD.
Neighbourhoods and Climate Change,Environmental Services,Supplies and Services,304999,Equipment and Materials,01/02/2024,4230261-14256,"1,045.00",GB SPORT & LEISURE UK LTD.
Adult and Health Services,Commissioning inc Supporting People,Third Party Payments,479102,Purchase of Care,01/02/2024,4230273-1101041424,"2,192.80",HOME GROUP LTD FORMERLY STONHAM HOUSING ASSOCIATION LTD.
Children and Young Peoples Services,Head of Education and Skills,Supplies and Services,304259,Equipment and Materials,01/02/2024,4230276-136170,717.00,HOWARTH OF LONDON LTD.
Neighbourhoods and Climate Change,Environmental Services,Supplies and Services,304221,Equipment and Materials,01/02/2024,4230281-8692,920.00,IBA FABRICATIONS LTD.
Neighbourhoods and Climate Change,Environmental Services,Supplies and Services,384199,Miscellaneous Expenses,01/02/2024,4230282-1168/DUCC3949,"24,748.00",IMAGEMAKERS DESIGN & CONSULTANCY LTD.
Neighbourhoods and Climate Change,Highways,Supplies and Services,304221,Equipment and Materials,01/02/2024,4230284-921205,"1,359.28",INSTARMAC GROUP PLC.
Neighbourhoods and Climate Change,Highways,Third Party Payments,430127,Rendered by Private Contractors,01/02/2024,4230288-5307086,"1,137.50",JA GILSON (AGRICULTURAL CONTRACTORS) LTD.
Neighbourhoods and Climate Change,Highways,Third Party Payments,430127,Rendered by Private Contractors,01/02/2024,4230288-5307088,645.00,JA GILSON (AGRICULTURAL CONTRACTORS) LTD.
Neighbourhoods and Climate Change,Highways,Third Party Payments,430127,Rendered by Private Contractors,01/02/2024,4230288-5307091,"1,217.50",JA GILSON (AGRICULTURAL CONTRACTORS) LTD.
Neighbourhoods and Climate Change,Highways,Third Party Payments,430127,Rendered by Private Contractors,01/02/2024,4230288-5307094,"2,040.00",JA GILSON (AGRICULTURAL CONTRACTORS) LTD.
Neighbourhoods and Climate Change,Highways,Third Party Payments,430100,Rendered by Private Contractors,01/02/2024,4230289-28594,820.26,JACK COUPE & SONS LTD T/A COUPE LINE.
Neighbourhoods and Climate Change,Environmental Services,Stock A926,926900,Stock in hand-Inventory system,01/02/2024,4230299-SI02-0408446,"2,148.10",KILLGERM CHEMICALS LTD.
Children and Young Peoples Services,Head of Childrens Social Care,Supplies and Services,338044,Services,01/02/2024,4230305-311683,"1,769.90",LEXTOX.
Adult and Health Services,Head of Adults,Third Party Payments,472101,Purchase of Care,01/02/2024,4230313-RES-01-2024-436,"2,040.40",MAJOR RECRUITMENT LTD.*
Children and Young Peoples Services,Head of Education and Skills,Third Party Payments,430100,Rendered by Private Contractors,01/02/2024,4230318-AW1130,"7,400.25",MBC ARTS WELLBEING CIC.
Resources BK0010,Legal & Democratic Services,Supplies and Services,352001,Conference Expenses,01/02/2024,4230332-2024/7,520.00,NATIONAL ASSOCIATION OF COUNCILLORS.*
Adult and Health Services,Commissioning inc Supporting People,Third Party Payments,440999,Other third party payments E440,01/02/2024,4230334-61897,"3,678.01",NATIONAL YOUTH ADVOCACY SERVICE.
Regeneration Economy and Growth,Corporate Property and Land,Third Party Payments,430100,Rendered by Private Contractors,01/02/2024,4230335-47895,"1,853.00",NE & C WINDOWS & DOORS LTD.
Resources BK0010,Digital Services,Supplies and Services,304303,Equipment and Materials,01/02/2024,4230339-SI-5940,"6,380.50",NEWLANDMEDIA LTD.
Adult and Health Services,Commissioning inc Supporting People,Third Party Payments,440999,Other third party payments E440,01/02/2024,4230341-RES-01-2024-435,"87,430.00",NHS NORTH EAST & NORTH CUMBRIA ICB.
Adult and Health Services,Head of Adults,Third Party Payments,478151,Purchase of Care,01/02/2024,4230348-45614,"2,734.20",OAKLEA TRUST.
Children and Young Peoples Services,Head of Education and Skills,Supplies and Services,384199,Miscellaneous Expenses,01/02/2024,4230353-2023/24-27A,"4,999.00",ORCHESTRAS LIVE.
Neighbourhoods and Climate Change,Environmental Services,Supplies and Services,304999,Equipment and Materials,01/02/2024,4230354-OASI0089958,727.44,ORIGIN AMENITY SOLUTIONS LTD.
Neighbourhoods and Climate Change,Highways,Third Party Payments,430100,Rendered by Private Contractors,01/02/2024,4230363-6660,"6,990.67",PINKNEY BUILDING CONTRACTORS LTD.
Neighbourhoods and Climate Change,Highways,Third Party Payments,430100,Rendered by Private Contractors,01/02/2024,4230363-6661,"8,230.75",PINKNEY BUILDING CONTRACTORS LTD.
Adult and Health Services,Head of Adults,Third Party Payments,478151,Purchase of Care,01/02/2024,4230365-77002824,879.67,POTENSIAL LTD T/A POTENS.
Adult and Health Services,Head of Adults,Third Party Payments,478151,Purchase of Care,01/02/2024,4230365-77002825,710.51,POTENSIAL LTD T/A POTENS.
Neighbourhoods and Climate Change,Highways,Third Party Payments,430100,Rendered by Private Contractors,01/02/2024,4230368-180589,"47,798.50",PREMIER TRAFFIC MANAGEMENT LTD.
Neighbourhoods and Climate Change,Highways,Third Party Payments,430100,Rendered by Private Contractors,01/02/2024,4230368-180734,"12,408.60",PREMIER TRAFFIC MANAGEMENT LTD.
Adult and Health Services,Head of Adults,Supplies and Services,338089,Services,01/02/2024,4230369-6856,"1,020.00",PRICE TRAINING LTD.
Children and Young Peoples Services,Head of Education and Skills,Third Party Payments,410037,Rendered by Other Local Authorities,01/02/2024,4230374-51821981,907.32,PROTOCOL EDUCATION LTD.*
Children and Young Peoples Services,Head of Education and Skills,Third Party Payments,410037,Rendered by Other Local Authorities,01/02/2024,4230374-51823941,907.32,PROTOCOL EDUCATION LTD.*
Children and Young Peoples Services,Head of Education and Skills,Third Party Payments,410037,Rendered by Other Local Authorities,01/02/2024,4230374-51825896,680.49,PROTOCOL EDUCATION LTD.*
Children and Young Peoples Services,Head of Education and Skills,Third Party Payments,410037,Rendered by Other Local Authorities,01/02/2024,4230374-51827886,907.32,PROTOCOL EDUCATION LTD.*
Children and Young Peoples Services,Head of Education and Skills,Third Party Payments,410037,Rendered by Other Local Authorities,01/02/2024,4230374-51829835,907.32,PROTOCOL EDUCATION LTD.*
Children and Young Peoples Services,Head of Education and Skills,Third Party Payments,410037,Rendered by Other Local Authorities,01/02/2024,4230374-51831787,907.32,PROTOCOL EDUCATION LTD.*
Children and Young Peoples Services,Head of Education and Skills,Third Party Payments,410037,Rendered by Other Local Authorities,01/02/2024,4230374-51833524,907.32,PROTOCOL EDUCATION LTD.*
Children and Young Peoples Services,Head of Childrens Social Care,Supplies and Services,338044,Services,01/02/2024,4230375-23408/1,721.64,PSYCHREP UK LTD.
Adult and Health Services,Public Health CC0450,Premises,145009,Cleaning and Domestic Supplies,01/02/2024,4230376-INV-6948,"1,498.38",QUALITY CLEANING SERVICES (NORTHERN) LTD.
Adult and Health Services,Head of Adults,Transport,230005,Contract Hire,01/02/2024,4230377-SI-22223,"1,520.00",RAPID MINIBUSES.
Adult and Health Services,Head of Adults,Transport,230005,Contract Hire,01/02/2024,4230377-SI-22224,"2,764.91",RAPID MINIBUSES.
Adult and Health Services,Head of Adults,Transport,230005,Contract Hire,01/02/2024,4230377-SI-22225,"1,430.08",RAPID MINIBUSES.
Regeneration Economy and Growth,Business Durham,Construction work A908,908105,Construction work,01/02/2024,4230387-24070020,"33,558.41",ROBERTSON CAPITAL PROJECTS.
Resources BK0010,Digital Services,Supplies and Services,342033,Computers and Communications,01/02/2024,4230391-INV-24010009,"4,175.00",SAPPHIRE TECHNOLOGIES LTD.*
Adult and Health Services,Public Health CC0450,Third Party Payments,460803,Contract Payments,01/02/2024,4230396-1WHGP7W2023-12-31,"1,502.49",SH24 CIC.
Neighbourhoods and Climate Change,Environmental Services,Transport,230720,Contract Hire,01/02/2024,4230399-220/24/0013335,"1,720.00",SIEMENS FINANCIAL SERVICES LTD.
Children and Young Peoples Services,Head of Childrens Social Care,Supplies and Services,372009,Subscriptions E372,01/02/2024,4230400-13447,"2,550.00",SIGNIS LTD.
Children and Young Peoples Services,Head of Education and Skills,Third Party Payments,430100,Rendered by Private Contractors,01/02/2024,4230402-4100859762/2,657.80,SMARTT NORTH EAST LTD.
Regeneration Economy and Growth,Culture Sport and Tourism,Supplies and Services,324117,Provisions E324,01/02/2024,4230405-0000102595,"1,042.00",SNOWSHOCK LTD.
Adult and Health Services,Head of Adults,Third Party Payments,478151,Purchase of Care,01/02/2024,4230407-0000017152,"8,937.48",ST ANNES COMMUNITY SERVICES.
Children and Young Peoples Services,Head of Childrens Social Care,Third Party Payments,440046,Other third party payments E440,01/02/2024,4230410-2521,"10,920.00",STAFF POWER GROUP LTD.
Neighbourhoods and Climate Change,Highways,Supplies and Services,304221,Equipment and Materials,01/02/2024,4230415-45671,674.88,STONEGRAVE AGGREGATES LTD.
Regeneration Economy and Growth,Corporate Property and Land,Supplies and Services,304221,Equipment and Materials,01/02/2024,4230420-147966,"1,977.20",SWITCHSHOP LTD.
Dedicated Schools Grant BG0015,DSG High Needs Block,Third Party Payments,425005,Rendered by Voluntary Organisations,01/02/2024,4230421-1747,"10,742.52",TALBOT HOUSE TRUST NORTH EAST.
Dedicated Schools Grant BG0015,DSG High Needs Block,Third Party Payments,425005,Rendered by Voluntary Organisations,01/02/2024,4230421-1748,"8,053.02",TALBOT HOUSE TRUST NORTH EAST.
Dedicated Schools Grant BG0015,DSG High Needs Block,Third Party Payments,425005,Rendered by Voluntary Organisations,01/02/2024,4230421-1749,"8,629.94",TALBOT HOUSE TRUST NORTH EAST.
Children and Young Peoples Services,Head of Childrens Social Care,Third Party Payments,486044,Service level agreements E486,01/02/2024,4230424-4810023453,"18,059.16",TEES ESK & WEAR VALLEYS NHS FOUNDATION TRUST.
Children and Young Peoples Services,Head of Childrens Social Care,Third Party Payments,486044,Service level agreements E486,01/02/2024,4230424-4810023634,"18,059.16",TEES ESK & WEAR VALLEYS NHS FOUNDATION TRUST.
Neighbourhoods and Climate Change,Highways,Supplies and Services,336005,Advertising E336,01/02/2024,4230425-19296,612.00,TEESDALE MERCURY LTD.
Children and Young Peoples Services,Head of Education and Skills,Supplies and Services,352001,Conference Expenses,01/02/2024,4230431-10/04/2024,"1,927.50",THE DURHAM CENTRE LTD.
Resources BK0010,Legal & Democratic Services,Supplies and Services,338042,Services,01/02/2024,4230439-311673/INVGR717,720.00,TRINITY CHAMBERS.
Neighbourhoods and Climate Change,Highways,Fees,901002,Consultants fees 901002,01/02/2024,4230443-10888750,"32,000.00",UNIVERSITY OF TEESSIDE.
Dedicated Schools Grant BG0015,DSG High Needs Block,Supplies and Services,304259,Equipment and Materials,01/02/2024,4230445-OP/1209064,692.00,VIDA GLOBAL T/A JAMES LECKEY DESIGN LTD.
Neighbourhoods and Climate Change,Highways,Supplies and Services,338043,Services,01/02/2024,4230447-915204,"3,267.50",WARD HADAWAY SOLICITORS.
Neighbourhoods and Climate Change,Highways,Supplies and Services,338027,Services,01/02/2024,4230448-3176367,"4,850.00",WATERMAN INFRASTRUCTURE & ENVIRONMENT LTD.
Neighbourhoods and Climate Change,Environmental Services,Premises,135005,Water Services,01/02/2024,4230450-3149281900112935736,716.88,WAVE (AWBN).
Children and Young Peoples Services,Head of Education and Skills,Transport,230005,Contract Hire,01/02/2024,4230452-19580,"2,999.00",WEARDALE MOTOR SERVICES LTD.
Adult and Health Services,Central/Other,Supplies and Services,338043,Services,01/02/2024,4230453-02218297,"2,384.00",WEIGHTMANS LLP.
Adult and Health Services,Head of Adults,Supplies and Services,384197,Miscellaneous Expenses,01/02/2024,4230457-STORAGENOV23-FEB24,900.00,WOODS REMOVALS TEESSIDE LTD.
Regeneration Economy and Growth,Economic Development,Supplies and Services,384700,Miscellaneous Expenses,01/02/2024,4230459-RES-02-2024-027,"1,816.44",WOVEN RETAIL LTD.
Children and Young Peoples Services,Head of Education and Skills,Supplies and Services,338027,Services,01/02/2024,4230177-9/2023,"1,006.25",REDACTED - PAYMENT TO INDIVIDUAL
Adult and Health Services,Head of Adults,Premises,145009,Cleaning and Domestic Supplies,01/02/2024,4230226-1073,895.00,REDACTED - PAYMENT TO INDIVIDUAL
Resources BK0010,Legal & Democratic Services,Supplies and Services,338105,Services,01/02/2024,4230237-012-2023-POL,526.00,REDACTED - PAYMENT TO INDIVIDUAL
Resources BK0010,HR & Employee Services,Supplies and Services,352001,Conference Expenses,01/02/2024,4230249-INV-0391,"1,000.00",REDACTED - PAYMENT TO INDIVIDUAL
Neighbourhoods and Climate Change,Environmental Services,Supplies and Services,304999,Equipment and Materials,01/02/2024,4230280-17542,"1,720.00",REDACTED - PAYMENT TO INDIVIDUAL
Children and Young Peoples Services,Head of Childrens Social Care - Excluded Services,Supplies and Services,352001,Conference Expenses,01/02/2024,4230297-4100830294,800.00,REDACTED - PAYMENT TO INDIVIDUAL
Neighbourhoods and Climate Change,Environmental Services,Supplies and Services,338066,Services,01/02/2024,4230298-2023-1486B,"16,740.00",REDACTED - PAYMENT TO INDIVIDUAL
Children and Young Peoples Services,Head of Education and Skills,Transport,230006,Contract Hire,01/02/2024,4230325-285,844.02,REDACTED - PAYMENT TO INDIVIDUAL
Children and Young Peoples Services,Head of Education and Skills,Transport,230008,Contract Hire,01/02/2024,4230327-M013/1,"2,394.00",REDACTED - PAYMENT TO INDIVIDUAL
Children and Young Peoples Services,Head of Education and Skills,Transport,230008,Contract Hire,01/02/2024,4230327-M013/2,"2,772.00",REDACTED - PAYMENT TO INDIVIDUAL
Children and Young Peoples Services,Head of Education and Skills,Transport,230008,Contract Hire,01/02/2024,4230327-M013/3,"2,660.00",REDACTED - PAYMENT TO INDIVIDUAL
Children and Young Peoples Services,Head of Education and Skills,Transport,230008,Contract Hire,01/02/2024,4230327-M013/4,"1,820.00",REDACTED - PAYMENT TO INDIVIDUAL
Children and Young Peoples Services,Head of Education and Skills,Supplies and Services,338027,Services,01/02/2024,4230337-021,"1,400.00",REDACTED - PAYMENT TO INDIVIDUAL
Regeneration Economy and Growth,Culture Sport and Tourism,Supplies and Services,384700,Miscellaneous Expenses,01/02/2024,4230218-NEI-HCL-01-2024-023,500.00,CONSETT AFC JUNIORS.
Children and Young Peoples Services,Head of Education and Skills,Transport,230013,Contract Hire,01/02/2024,4230169-0337,"1,728.30",REDACTED - PAYMENT TO INDIVIDUAL
Neighbourhoods and Climate Change,Environmental Services,Supplies and Services,384199,Miscellaneous Expenses,02/02/2024,4230473-0900000381-048A,"42,312.23",AIRWAVE SOLUTIONS LTD.
Regeneration Economy and Growth,Planning & Housing,Third Party Payments,440999,Other third party payments E440,02/02/2024,4230473-0900000381-048B,"2,142.12",AIRWAVE SOLUTIONS LTD.
Regeneration Economy and Growth,Corporate Property and Land,Third Party Payments,430100,Rendered by Private Contractors,02/02/2024,4230477-SI30139,900.00,AMBIC LTD.
Dedicated Schools Grant BG0015,DSG High Needs Block,Third Party Payments,440080,Other third party payments E440,02/02/2024,4230488-JAN2024TOPUP/17,601.00,BARBARA PRIESTMAN ACADEMY.
Dedicated Schools Grant BG0015,DSG High Needs Block,Third Party Payments,440080,Other third party payments E440,02/02/2024,4230491-JAN2024TOPUP/6,"8,544.00",BISHOP AUCKLAND COLLEGE.
Dedicated Schools Grant BG0015,DSG High Needs Block,Third Party Payments,440080,Other third party payments E440,02/02/2024,4230493-JAN2024TOPUP/13,981.00,BISHOP WILKINSON CATHOLIC EDUCATION TRUST.
Regeneration Economy and Growth,Culture Sport and Tourism,Premises,145023,Cleaning and Domestic Supplies,02/02/2024,4230496-22SI2296778,"1,256.00",BRENNTAG UK LTD.
Adult and Health Services,Head of Adults,Supplies and Services,338364,Services,02/02/2024,4230505-93771,705.17,CARE ABILITY HEALTHCARE LTD.
Adult and Health Services,Head of Adults,Supplies and Services,338364,Services,02/02/2024,4230505-93772,705.17,CARE ABILITY HEALTHCARE LTD.
Dedicated Schools Grant BG0015,DSG High Needs Block,Third Party Payments,440080,Other third party payments E440,02/02/2024,4230506-JAN2024TOPUP/18,508.00,CATCH 22.*
Dedicated Schools Grant BG0015,DSG High Needs Block,Third Party Payments,440080,Other third party payments E440,02/02/2024,4230507-JAN2024TOPUP/16,"1,641.00",CATCOTE ACADEMY.
Regeneration Economy and Growth,Transport and Contract Services,Premises,108099,Service Repairs and Maintenance,02/02/2024,4230508-12280,629.00,CATHEDRAL LOCK & SAFE SERVICES LTD.
Regeneration Economy and Growth,Transport and Contract Services,Premises,108099,Service Repairs and Maintenance,02/02/2024,4230508-12281,903.65,CATHEDRAL LOCK & SAFE SERVICES LTD.
Regeneration Economy and Growth,Culture Sport and Tourism,Premises,106082,Centrally Controlled Rep and Maint,02/02/2024,4230508-12292,737.11,CATHEDRAL LOCK & SAFE SERVICES LTD.
Regeneration Economy and Growth,Business Durham,Premises,108099,Service Repairs and Maintenance,02/02/2024,4230508-12324,680.00,CATHEDRAL LOCK & SAFE SERVICES LTD.
Regeneration Economy and Growth,Culture Sport and Tourism,Premises,106082,Centrally Controlled Rep and Maint,02/02/2024,4230508-12339,551.85,CATHEDRAL LOCK & SAFE SERVICES LTD.
Children and Young Peoples Services,Head of Early Help Inclusion & Vulnerable Children.,Premises,106082,Centrally Controlled Rep and Maint,02/02/2024,4230508-12342,"1,297.68",CATHEDRAL LOCK & SAFE SERVICES LTD.
Neighbourhoods and Climate Change,Highways,Supplies and Services,304358,Equipment and Materials,02/02/2024,4230510-120439,710.00,CG ROBINSON & SONS LTD.
Regeneration Economy and Growth,Culture Sport and Tourism,Construction work A908,908105,Construction work,02/02/2024,4230516-0000021183,"239,412.23",CLADE ENGINEERING SYSTEMS LTD.
Children and Young Peoples Services,Head of Childrens Social Care,Transport,230005,Contract Hire,02/02/2024,4230529-117091,662.20,CROFT BUSINESS SERVICES LTD T/A CROFT TRAVEL.
Children and Young Peoples Services,Head of Childrens Social Care,Transport,230005,Contract Hire,02/02/2024,4230529-117092,927.08,CROFT BUSINESS SERVICES LTD T/A CROFT TRAVEL.
Dedicated Schools Grant BG0015,DSG High Needs Block,Third Party Payments,440080,Other third party payments E440,02/02/2024,4230533-JAN2024TOPUP/9,"1,159.00",DARLINGTON COLLEGE.
Resources BK0010,Digital Services,Stock A926,926900,Stock in hand-Inventory system,02/02/2024,4230539-7402975591,698.25,DELL COMPUTER CORPORATION LTD.
Resources BK0010,Legal & Democratic Services,Supplies and Services,338042,Services,02/02/2024,4230541-386559/INVCMC599,"1,250.00",DERE STREET BARRISTERS.
Resources BK0010,Legal & Democratic Services,Supplies and Services,338042,Services,02/02/2024,4230541-393442/INVEMC647,775.00,DERE STREET BARRISTERS.
Dedicated Schools Grant BG0015,DSG High Needs Block,Third Party Payments,440080,Other third party payments E440,02/02/2024,4230546-JAN2024TOPUP/4,"1,826.00",DURHAM UTC LTD (UNIVERSITY TECHNICAL COLLEGE).
Dedicated Schools Grant BG0015,DSG High Needs Block,Supplies and Services,384302,Miscellaneous Expenses,02/02/2024,4230547-0000054575,"20,000.00",EAST DURHAM COLLEGE.
Dedicated Schools Grant BG0015,DSG High Needs Block,Third Party Payments,440080,Other third party payments E440,02/02/2024,4230547-JAN2024TOPUP/1,"34,063.00",EAST DURHAM COLLEGE.
Dedicated Schools Grant BG0015,DSG High Needs Block,Third Party Payments,440080,Other third party payments E440,02/02/2024,4230551-JAN2024TOPUP/2,"3,500.00",EDUCATION VILLAGE ACADEMY TRUST LTD.*
Children and Young Peoples Services,Head of Childrens Social Care,Supplies and Services,338044,Services,02/02/2024,4230564-109022,"1,038.00",FORENSIC TESTING SERVICE LTD.
Children and Young Peoples Services,Head of Childrens Social Care,Supplies and Services,338044,Services,02/02/2024,4230564-109393,605.40,FORENSIC TESTING SERVICE LTD.
Neighbourhoods and Climate Change,Highways,Supplies and Services,304357,Equipment and Materials,02/02/2024,4230570-DCCAGREED070124,"19,093.66",GAP GROUP LTD.
Neighbourhoods and Climate Change,Highways,Supplies and Services,304358,Equipment and Materials,02/02/2024,4230574-82476,"2,780.00",GEORGE VARDY HAULAGE.
Neighbourhoods and Climate Change,Highways,Supplies and Services,304358,Equipment and Materials,02/02/2024,4230574-82477,"1,430.00",GEORGE VARDY HAULAGE.
Neighbourhoods and Climate Change,Highways,Supplies and Services,304358,Equipment and Materials,02/02/2024,4230574-82486,530.00,GEORGE VARDY HAULAGE.
Neighbourhoods and Climate Change,Highways,Supplies and Services,304358,Equipment and Materials,02/02/2024,4230574-82487,"1,850.00",GEORGE VARDY HAULAGE.
Children and Young Peoples Services,Head of Early Help Inclusion & Vulnerable Children.,Premises,145023,Cleaning and Domestic Supplies,02/02/2024,4230578-06/254634,"1,002.48",GREENHAM TRADING LTD.
Children and Young Peoples Services,Head of Early Help Inclusion & Vulnerable Children.,Premises,145023,Cleaning and Domestic Supplies,02/02/2024,4230578-06/254635,670.01,GREENHAM TRADING LTD.
Neighbourhoods and Climate Change,Highways,Supplies and Services,304221,Equipment and Materials,02/02/2024,4230581-IN122163,"8,926.46",HILL & SMITH LTD.
Children and Young Peoples Services,Head of Childrens Social Care,Premises,106082,Centrally Controlled Rep and Maint,02/02/2024,4230583-7081070283,522.57,HONEYWELL NOVAR SYSTEMS LTD.
Regeneration Economy and Growth,Culture Sport and Tourism,Premises,108099,Service Repairs and Maintenance,02/02/2024,4230583-7081070602,"5,361.47",HONEYWELL NOVAR SYSTEMS LTD.
Dedicated Schools Grant BG0015,DSG High Needs Block,Third Party Payments,440080,Other third party payments E440,02/02/2024,4230585-JAN2024TOPUP/8,"31,297.00",HOPE WOOD ACADEMY.
Regeneration Economy and Growth,Corporate Property and Land,Supplies and Services,304221,Equipment and Materials,02/02/2024,4230587-A38/0177304,"2,519.34",HOWDENS JOINERY LTD.
Regeneration Economy and Growth,Corporate Property and Land,Supplies and Services,304221,Equipment and Materials,02/02/2024,4230587-A38/0177305,"2,519.34",HOWDENS JOINERY LTD.
Dedicated Schools Grant BG0015,DSG High Needs Block,Third Party Payments,440080,Other third party payments E440,02/02/2024,4230589-JAN2024TOPUP/3,"9,738.00",HUMANKIND CHARITY.
Neighbourhoods and Climate Change,Environmental Services,Premises,108099,Service Repairs and Maintenance,02/02/2024,4230590-22283,"3,050.00",HYGIENIC CLEANING COMPANY (UK) LTD.
Regeneration Economy and Growth,Business Durham,Premises,106082,Centrally Controlled Rep and Maint,02/02/2024,4230590-22284,823.50,HYGIENIC CLEANING COMPANY (UK) LTD.
Regeneration Economy and Growth,Business Durham,Premises,106082,Centrally Controlled Rep and Maint,02/02/2024,4230590-22285,"1,647.00",HYGIENIC CLEANING COMPANY (UK) LTD.
Regeneration Economy and Growth,Business Durham,Premises,106082,Centrally Controlled Rep and Maint,02/02/2024,4230590-22286,800.00,HYGIENIC CLEANING COMPANY (UK) LTD.
Neighbourhoods and Climate Change,Environmental Services,Supplies and Services,338099,Services,02/02/2024,4230591-3219,"3,150.00",IAN C LIDDLE T/A IC LIDDLE SERVICES.
Neighbourhoods and Climate Change,Highways,Third Party Payments,430127,Rendered by Private Contractors,02/02/2024,4230591-3221,775.00,IAN C LIDDLE T/A IC LIDDLE SERVICES.
Neighbourhoods and Climate Change,Highways,Third Party Payments,430127,Rendered by Private Contractors,02/02/2024,4230591-3225,720.00,IAN C LIDDLE T/A IC LIDDLE SERVICES.
Neighbourhoods and Climate Change,Highways,Third Party Payments,430127,Rendered by Private Contractors,02/02/2024,4230591-3226,"1,185.00",IAN C LIDDLE T/A IC LIDDLE SERVICES.
Neighbourhoods and Climate Change,Highways,Third Party Payments,430127,Rendered by Private Contractors,02/02/2024,4230591-3229,"1,295.00",IAN C LIDDLE T/A IC LIDDLE SERVICES.
Neighbourhoods and Climate Change,Highways,Third Party Payments,430127,Rendered by Private Contractors,02/02/2024,4230591-3230,"2,070.00",IAN C LIDDLE T/A IC LIDDLE SERVICES.
Neighbourhoods and Climate Change,Highways,Stock A926,926004,Stock,02/02/2024,4230593-400053169,"2,463.63",ICL UK SALES LTD (CLEVELAND POTASH LTD).
Neighbourhoods and Climate Change,Highways,Stock A926,926004,Stock,02/02/2024,4230593-400053172,839.78,ICL UK SALES LTD (CLEVELAND POTASH LTD).
Neighbourhoods and Climate Change,Highways,Stock A926,926004,Stock,02/02/2024,4230593-400053224,"7,141.91",ICL UK SALES LTD (CLEVELAND POTASH LTD).
Neighbourhoods and Climate Change,Highways,Stock A926,926004,Stock,02/02/2024,4230593-400053344,"7,091.28",ICL UK SALES LTD (CLEVELAND POTASH LTD).
Neighbourhoods and Climate Change,Highways,Stock A926,926004,Stock,02/02/2024,4230593-400053345,"1,877.06",ICL UK SALES LTD (CLEVELAND POTASH LTD).
Regeneration Economy and Growth,Economic Development,Supplies and Services,384437,Miscellaneous Expenses,02/02/2024,4230601-EYNEFOL/BOOKINGS,500.00,INTERNATIONAL NEWCASTLE CIC.
Neighbourhoods and Climate Change,Environmental Services,Supplies and Services,384700,Miscellaneous Expenses,02/02/2024,4230604-RES-02-2024-042,"17,490.31",J & J CLARK & SONS.
Neighbourhoods and Climate Change,Highways,Third Party Payments,430127,Rendered by Private Contractors,02/02/2024,4230605-1933/2023,"1,065.00",J & JG GILL & SONS LTD.
Neighbourhoods and Climate Change,Highways,Supplies and Services,304358,Equipment and Materials,02/02/2024,4230606-5307057,907.11,JA GILSON (AGRICULTURAL CONTRACTORS) LTD.
Neighbourhoods and Climate Change,Highways,Supplies and Services,304358,Equipment and Materials,02/02/2024,4230606-5307058,605.95,JA GILSON (AGRICULTURAL CONTRACTORS) LTD.
Neighbourhoods and Climate Change,Highways,Supplies and Services,304358,Equipment and Materials,02/02/2024,4230606-5307059,"1,858.95",JA GILSON (AGRICULTURAL CONTRACTORS) LTD.
Neighbourhoods and Climate Change,Highways,Supplies and Services,304358,Equipment and Materials,02/02/2024,4230606-5307105,"1,582.50",JA GILSON (AGRICULTURAL CONTRACTORS) LTD.
Neighbourhoods and Climate Change,Highways,Supplies and Services,304358,Equipment and Materials,02/02/2024,4230606-5307112,"1,106.00",JA GILSON (AGRICULTURAL CONTRACTORS) LTD.
Neighbourhoods and Climate Change,Highways,Supplies and Services,304358,Equipment and Materials,02/02/2024,4230606-5307113,"1,148.00",JA GILSON (AGRICULTURAL CONTRACTORS) LTD.
Neighbourhoods and Climate Change,Highways,Third Party Payments,430100,Rendered by Private Contractors,02/02/2024,4230607-28661,"1,050.43",JACK COUPE & SONS LTD T/A COUPE LINE.
Neighbourhoods and Climate Change,Highways,Third Party Payments,430100,Rendered by Private Contractors,02/02/2024,4230607-28667,"1,359.99",JACK COUPE & SONS LTD T/A COUPE LINE.
Neighbourhoods and Climate Change,Highways,Third Party Payments,430100,Rendered by Private Contractors,02/02/2024,4230607-28669,580.80,JACK COUPE & SONS LTD T/A COUPE LINE.
Neighbourhoods and Climate Change,Highways,Third Party Payments,430100,Rendered by Private Contractors,02/02/2024,4230607-28673,848.86,JACK COUPE & SONS LTD T/A COUPE LINE.
Regeneration Economy and Growth,Corporate Property and Land,Third Party Payments,430100,Rendered by Private Contractors,02/02/2024,4230611-SI-138933,626.00,JBL SERVICES LTD.
Regeneration Economy and Growth,Transport and Contract Services,Third Party Payments,430106,Rendered by Private Contractors,02/02/2024,4230613-43189,"9,011.70",JIM HUGHES COACHES LTD.
Neighbourhoods and Climate Change,Environmental Services,Supplies and Services,384700,Miscellaneous Expenses,02/02/2024,4230620-RES-02-2024-045,"15,626.55",JT NIXON & SONS LTD.
Neighbourhoods and Climate Change,Highways,Supplies and Services,304358,Equipment and Materials,02/02/2024,4230627-4868,777.50,KEVIN SNOWDON GROUNDWORKS LTD.
Neighbourhoods and Climate Change,Highways,Supplies and Services,304358,Equipment and Materials,02/02/2024,4230627-4869,925.00,KEVIN SNOWDON GROUNDWORKS LTD.
Neighbourhoods and Climate Change,Highways,Supplies and Services,304358,Equipment and Materials,02/02/2024,4230627-4872,943.50,KEVIN SNOWDON GROUNDWORKS LTD.
Neighbourhoods and Climate Change,Highways,Supplies and Services,304358,Equipment and Materials,02/02/2024,4230627-4873,943.50,KEVIN SNOWDON GROUNDWORKS LTD.
Neighbourhoods and Climate Change,Highways,Supplies and Services,304358,Equipment and Materials,02/02/2024,4230627-4874,590.00,KEVIN SNOWDON GROUNDWORKS LTD.
Neighbourhoods and Climate Change,Highways,Supplies and Services,304358,Equipment and Materials,02/02/2024,4230627-4875,634.25,KEVIN SNOWDON GROUNDWORKS LTD.
Neighbourhoods and Climate Change,Highways,Supplies and Services,304358,Equipment and Materials,02/02/2024,4230627-4876,795.50,KEVIN SNOWDON GROUNDWORKS LTD.
Regeneration Economy and Growth,Business Durham,Construction work A908,908105,Construction work,02/02/2024,4230629-10330326,"1,972,873.74",KIER CONSTRUCTION LTD - SCOTLAND
Neighbourhoods and Climate Change,Partnerships & Community Engagement Div.,Supplies and Services,384086,Miscellaneous Expenses,02/02/2024,4230632-VOUCHERMCGM04-23,999.00,LANCHESTER TABLE TENNIS CLUB.
Children and Young Peoples Services,Head of Childrens Social Care,Transport,230005,Contract Hire,02/02/2024,4230641-5563,500.00,LOCAL TRANSPORT LTD.
Children and Young Peoples Services,Head of Childrens Social Care,Transport,230005,Contract Hire,02/02/2024,4230641-5565,"1,672.00",LOCAL TRANSPORT LTD.
Children and Young Peoples Services,Head of Childrens Social Care,Transport,230005,Contract Hire,02/02/2024,4230641-5571,"2,160.00",LOCAL TRANSPORT LTD.
Neighbourhoods and Climate Change,Highways,Supplies and Services,304358,Equipment and Materials,02/02/2024,4230644-MS4861,522.00,M SPENCE SURFACING LTD.
Neighbourhoods and Climate Change,Highways,Supplies and Services,304358,Equipment and Materials,02/02/2024,4230644-MS4864,954.00,M SPENCE SURFACING LTD.
Neighbourhoods and Climate Change,Highways,Third Party Payments,430127,Rendered by Private Contractors,02/02/2024,4230645-6491,580.00,MAKEPEACE MOTORS.
Neighbourhoods and Climate Change,Highways,Third Party Payments,430127,Rendered by Private Contractors,02/02/2024,4230645-6492,580.00,MAKEPEACE MOTORS.
Neighbourhoods and Climate Change,Highways,Third Party Payments,430127,Rendered by Private Contractors,02/02/2024,4230645-6494,"1,805.00",MAKEPEACE MOTORS.
Neighbourhoods and Climate Change,Highways,Third Party Payments,430127,Rendered by Private Contractors,02/02/2024,4230645-6495,"1,565.00",MAKEPEACE MOTORS.
Neighbourhoods and Climate Change,Highways,Third Party Payments,430127,Rendered by Private Contractors,02/02/2024,4230645-6496,"1,620.00",MAKEPEACE MOTORS.
Neighbourhoods and Climate Change,Highways,Third Party Payments,430127,Rendered by Private Contractors,02/02/2024,4230645-6497,"1,680.00",MAKEPEACE MOTORS.
Neighbourhoods and Climate Change,Highways,Third Party Payments,430127,Rendered by Private Contractors,02/02/2024,4230645-6498,"2,845.00",MAKEPEACE MOTORS.
Neighbourhoods and Climate Change,Highways,Third Party Payments,430127,Rendered by Private Contractors,02/02/2024,4230645-6499,"2,650.00",MAKEPEACE MOTORS.
Neighbourhoods and Climate Change,Highways,Supplies and Services,304221,Equipment and Materials,02/02/2024,4230670-505038,"4,734.18",NAL LTD.
Regeneration Economy and Growth,Corporate Property and Land,Third Party Payments,430100,Rendered by Private Contractors,02/02/2024,4230671-874742,774.00,NATIONWIDE CHIMNEY COMPONENTS LTD.
Regeneration Economy and Growth,Corporate Property and Land,Third Party Payments,430100,Rendered by Private Contractors,02/02/2024,4230671-874746,"4,570.00",NATIONWIDE CHIMNEY COMPONENTS LTD.
Dedicated Schools Grant BG0015,DSG High Needs Block,Third Party Payments,440080,Other third party payments E440,02/02/2024,4230673-JAN2024TOPUP/7,"12,033.00",NEW COLLEGE DURHAM.
Neighbourhoods and Climate Change,Environmental Services,Supplies and Services,304221,Equipment and Materials,02/02/2024,4230674-066000,"1,451.00",NEW ROW FARM NURSERIES.
Dedicated Schools Grant BG0015,DSG High Needs Block,Third Party Payments,440080,Other third party payments E440,02/02/2024,4230675-JAN2024TOPUP/10,"2,170.00",NEWCASTLE COLLEGE.
Dedicated Schools Grant BG0015,DSG High Needs Block,Third Party Payments,440080,Other third party payments E440,02/02/2024,4230676-JAN2024TOPUP/5,"4,992.00",NHS ENGLAND.
Children and Young Peoples Services,Head of Early Help Inclusion & Vulnerable Children.,Supplies and Services,384409,Miscellaneous Expenses,02/02/2024,4230677-2626,"2,003.00",NMC SPORTS.
Regeneration Economy and Growth,Culture Sport and Tourism,Construction work A908,908105,Construction work,02/02/2024,4230679-CT426/02,"57,432.79",NORTHERN CONSTRUCTION SOLUTIONS LTD.
Children and Young Peoples Services,Head of Early Help Inclusion & Vulnerable Children.,Third Party Payments,410037,Rendered by Other Local Authorities,02/02/2024,4230682-INV-10349,605.88,NUDGE EDUCATION LTD.
Regeneration Economy and Growth,Economic Development,Construction work A908,908202,Capital - Public Utilities - Telephones Services,02/02/2024,4230685-RES-02-2024-044,"24,952.10",OPENREACH LLU.
Neighbourhoods and Climate Change,Environmental Services,Supplies and Services,384700,Miscellaneous Expenses,02/02/2024,4230690-RES-02-2024-036,"7,071.97",PASTURE-FED LIVESTOCK ASSOCIATION CIC.
Neighbourhoods and Climate Change,Environmental Services,Premises,108099,Service Repairs and Maintenance,02/02/2024,4230696-17702,"1,550.00",PREMIER CELL FIT T/A LIVEWIRE GATES & DOORS.
Resources BK0010,Digital Services,Stock A926,926900,Stock in hand-Inventory system,02/02/2024,4230698-OP/I747428,"1,936.00",PROBRAND LTD.
Dedicated Schools Grant BG0015,DSG High Needs Block,Third Party Payments,440080,Other third party payments E440,02/02/2024,4230701-JAN2024TOPUP/14,583.00,PROVIDENCE LEARNING PARTNERSHIP.
Children and Young Peoples Services,Head of Childrens Social Care,Transport,230005,Contract Hire,02/02/2024,4230703-SI-3338,540.00,PTL TAXIS LTD.
Children and Young Peoples Services,Head of Childrens Social Care,Transport,230005,Contract Hire,02/02/2024,4230703-SI-3342,720.00,PTL TAXIS LTD.
Children and Young Peoples Services,Head of Childrens Social Care,Transport,230005,Contract Hire,02/02/2024,4230703-SI-3378,"1,182.50",PTL TAXIS LTD.
Children and Young Peoples Services,Head of Childrens Social Care,Transport,230005,Contract Hire,02/02/2024,4230703-SI-3379,700.00,PTL TAXIS LTD.
Children and Young Peoples Services,Head of Childrens Social Care,Transport,230005,Contract Hire,02/02/2024,4230703-SI-3381,765.00,PTL TAXIS LTD.
Children and Young Peoples Services,Head of Childrens Social Care,Transport,230005,Contract Hire,02/02/2024,4230703-SI-3382,750.00,PTL TAXIS LTD.
Children and Young Peoples Services,Head of Childrens Social Care,Transport,230005,Contract Hire,02/02/2024,4230703-SI-3387,540.00,PTL TAXIS LTD.
Children and Young Peoples Services,Head of Childrens Social Care,Transport,230005,Contract Hire,02/02/2024,4230703-SI-3389,626.00,PTL TAXIS LTD.
Children and Young Peoples Services,Head of Childrens Social Care,Transport,230005,Contract Hire,02/02/2024,4230703-SI-3400,"1,182.50",PTL TAXIS LTD.
Children and Young Peoples Services,Head of Childrens Social Care,Transport,230005,Contract Hire,02/02/2024,4230703-SI-3401,700.00,PTL TAXIS LTD.
Children and Young Peoples Services,Head of Childrens Social Care,Transport,230005,Contract Hire,02/02/2024,4230703-SI-3403,765.00,PTL TAXIS LTD.
Children and Young Peoples Services,Head of Childrens Social Care,Transport,230005,Contract Hire,02/02/2024,4230703-SI-3404,700.00,PTL TAXIS LTD.
Children and Young Peoples Services,Head of Childrens Social Care,Transport,230005,Contract Hire,02/02/2024,4230703-SI-3409,540.00,PTL TAXIS LTD.
Children and Young Peoples Services,Head of Childrens Social Care,Transport,230005,Contract Hire,02/02/2024,4230703-SI-3420,"1,182.50",PTL TAXIS LTD.
Children and Young Peoples Services,Head of Childrens Social Care,Transport,230005,Contract Hire,02/02/2024,4230703-SI-3421,700.00,PTL TAXIS LTD.
Children and Young Peoples Services,Head of Childrens Social Care,Transport,230005,Contract Hire,02/02/2024,4230703-SI-3423,765.00,PTL TAXIS LTD.
Children and Young Peoples Services,Head of Childrens Social Care,Transport,230005,Contract Hire,02/02/2024,4230703-SI-3424,"1,140.00",PTL TAXIS LTD.
Children and Young Peoples Services,Head of Childrens Social Care,Transport,230005,Contract Hire,02/02/2024,4230703-SI-3433,540.00,PTL TAXIS LTD.
Children and Young Peoples Services,Head of Childrens Social Care,Transport,230005,Contract Hire,02/02/2024,4230703-SI-3439,528.00,PTL TAXIS LTD.
Regeneration Economy and Growth,Culture Sport and Tourism,Supplies and Services,304405,Equipment and Materials,02/02/2024,4230705-531467,581.75,QUALSAFE.COM.
Regeneration Economy and Growth,Economic Development,Supplies and Services,352001,Conference Expenses,02/02/2024,4230705-531519,"2,900.00",QUALSAFE.COM.
Dedicated Schools Grant BG0015,DSG High Needs Block,Third Party Payments,440080,Other third party payments E440,02/02/2024,4230707-JAN2024TOPUP/11,"5,236.00",REAL CARE LTD.
Neighbourhoods and Climate Change,Environmental Services,Supplies and Services,304259,Equipment and Materials,02/02/2024,4230710-403141,"4,370.00",RICKERBY LTD.
Neighbourhoods and Climate Change,Highways,Supplies and Services,304358,Equipment and Materials,02/02/2024,4230719-3959,705.00,S & R LANDSCAPES.
Neighbourhoods and Climate Change,Highways,Supplies and Services,304358,Equipment and Materials,02/02/2024,4230719-3960,"1,234.20",S & R LANDSCAPES.
Neighbourhoods and Climate Change,Highways,Supplies and Services,304358,Equipment and Materials,02/02/2024,4230719-3961,"1,164.00",S & R LANDSCAPES.
Neighbourhoods and Climate Change,Highways,Supplies and Services,304358,Equipment and Materials,02/02/2024,4230719-3963,"1,732.60",S & R LANDSCAPES.
Neighbourhoods and Climate Change,Highways,Supplies and Services,304358,Equipment and Materials,02/02/2024,4230719-3964,"1,349.20",S & R LANDSCAPES.
Neighbourhoods and Climate Change,Highways,Supplies and Services,304358,Equipment and Materials,02/02/2024,4230719-3965,"1,036.00",S & R LANDSCAPES.
Neighbourhoods and Climate Change,Highways,Supplies and Services,304358,Equipment and Materials,02/02/2024,4230719-3966,"1,165.00",S & R LANDSCAPES.
Resources BK0010,Legal & Democratic Services,Supplies and Services,304259,Equipment and Materials,02/02/2024,4230727-0000292371,"17,309.50",SHAW & SONS LTD.
Neighbourhoods and Climate Change,Environmental Services,Transport,230720,Contract Hire,02/02/2024,4230733-105/24/1417,893.00,SOCIETE GENERALE EQUIPMENT FINANCE LTD.
Neighbourhoods and Climate Change,Environmental Services,Transport,230720,Contract Hire,02/02/2024,4230733-105/24/1915,"3,256.00",SOCIETE GENERALE EQUIPMENT FINANCE LTD.
Regeneration Economy and Growth,Transport and Contract Services,Third Party Payments,430100,Rendered by Private Contractors,02/02/2024,4230737-20686,"1,184.40",STEADFAST SECURITY SOLUTIONS LTD.
Children and Young Peoples Services,Head of Childrens Social Care,Transport,230005,Contract Hire,02/02/2024,4230739-JAN66/STL24,640.00,STL CABS LTD.
Children and Young Peoples Services,Head of Early Help Inclusion & Vulnerable Children.,Third Party Payments,410037,Rendered by Other Local Authorities,02/02/2024,4230741-SALA2047,"1,120.00",SUFFOLK MUSIC THERAPY.
Neighbourhoods and Climate Change,Highways,Stock A926,926900,Stock in hand-Inventory system,02/02/2024,4230752-NSIN00107119,698.00,THOMAS OWEN & SONS (NEWCASTLE) LTD.
Neighbourhoods and Climate Change,Highways,Stock A926,926900,Stock in hand-Inventory system,02/02/2024,4230752-NSIN00107122,"1,500.44",THOMAS OWEN & SONS (NEWCASTLE) LTD.
Resources BK0010,Legal & Democratic Services,Supplies and Services,338042,Services,02/02/2024,4230756-311761/INVTOP207,720.00,TRINITY CHAMBERS.
Adult and Health Services,Public Health CC0450,Third Party Payments,460803,Contract Payments,02/02/2024,4230758-SI-TPL-00083359,"1,855.00",TURNING POINT (SERVICES) LTD.
Regeneration Economy and Growth,Corporate Property and Land,Premises,108099,Service Repairs and Maintenance,02/02/2024,4230759-DLB33544,544.76,TYCO FIRE & INTEGRATED SOLUTIONS (UK) LTD.
Children and Young Peoples Services,Head of Early Help Inclusion & Vulnerable Children.,Supplies and Services,344033,Telephones,02/02/2024,4230762-210085,572.70,UNIFY BUSINESS SOLUTIONS LTD.
Resources BK0010,Digital Services,Supplies and Services,344015,Telephones,02/02/2024,4230766-SL32878,"1,813.00",VODAFONE CORPORATE LTD.
Regeneration Economy and Growth,Corporate Property and Land,Third Party Payments,430100,Rendered by Private Contractors,02/02/2024,4230767-INV-1952,975.00,WATER SOLUTIONS (EUROPE) LTD.
Resources BK0010,Digital Services,Supplies and Services,304639,Equipment and Materials,02/02/2024,4230774-LF42227,858.00,XMA LTD.
Adult and Health Services,Head of Adults,Supplies and Services,338066,Services,02/02/2024,4230543-DN24-01-04,536.70,REDACTED - PAYMENT TO INDIVIDUAL
Regeneration Economy and Growth,Culture Sport and Tourism,Third Party Payments,430131,Rendered by Private Contractors,02/02/2024,4230569-33-24,"1,360.00",REDACTED - PAYMENT TO INDIVIDUAL
Neighbourhoods and Climate Change,Environmental Services,Construction work A908,908113,Capital - Landscaping,02/02/2024,4230592-17541,"2,690.00",REDACTED - PAYMENT TO INDIVIDUAL
Regeneration Economy and Growth,Culture Sport and Tourism,Supplies and Services,324117,Provisions E324,02/02/2024,4230659-40BA,614.50,REDACTED - PAYMENT TO INDIVIDUAL
Regeneration Economy and Growth,Business Durham,Supplies and Services,338066,Services,02/02/2024,4230764-0096,"2,000.40",REDACTED - PAYMENT TO INDIVIDUAL
Adult and Health Services,Head of Adults,Supplies and Services,338066,Services,02/02/2024,4230561-1,527.52,ERF MEDICAL LTD.
Regeneration Economy and Growth,Corporate Property and Land,Premises,108099,Service Repairs and Maintenance,02/02/2024,4230599-CD200325893,"17,504.53",INTEGRATED WATER SERVICES LTD.
Neighbourhoods and Climate Change,Community Protection,Supplies and Services,338027,Services,05/02/2024,4230785-28540485,"1,900.00",AECOM LTD.
Neighbourhoods and Climate Change,Environmental Services,Supplies and Services,304259,Equipment and Materials,05/02/2024,4230786-426524946,509.45,AIR PRODUCTS PLC.
Regeneration Economy and Growth,Corporate Property and Land,Third Party Payments,430100,Rendered by Private Contractors,05/02/2024,4230790-SI30324,"3,625.00",AMBIC LTD.
Regeneration Economy and Growth,Corporate Property and Land,Third Party Payments,430100,Rendered by Private Contractors,05/02/2024,4230796-INV-0336,"12,372.00",APEX ROOFING SPECIALISTS LTD.
Regeneration Economy and Growth,Corporate Property and Land,Third Party Payments,430100,Rendered by Private Contractors,05/02/2024,4230796-INV-0392,"1,656.00",APEX ROOFING SPECIALISTS LTD.
Regeneration Economy and Growth,Corporate Property and Land,Third Party Payments,430100,Rendered by Private Contractors,05/02/2024,4230796-INV-0395,"5,000.00",APEX ROOFING SPECIALISTS LTD.
Regeneration Economy and Growth,Corporate Property and Land,Third Party Payments,430100,Rendered by Private Contractors,05/02/2024,4230796-INV-0396,"2,800.00",APEX ROOFING SPECIALISTS LTD.
Neighbourhoods and Climate Change,Highways,Supplies and Services,304221,Equipment and Materials,05/02/2024,4230797-0000039519,770.00,AQUAJET DRAIN CLEANING LTD.
Regeneration Economy and Growth,Culture Sport and Tourism,Supplies and Services,312013,Newspapers books and periodicals E312,05/02/2024,4230799-6993774,591.40,ASKEWS & HOLTS LIBRARY SERVICES LTD.
Regeneration Economy and Growth,Culture Sport and Tourism,Supplies and Services,312017,Newspapers books and periodicals E312,05/02/2024,4230799-6993775,559.56,ASKEWS & HOLTS LIBRARY SERVICES LTD.
Regeneration Economy and Growth,Culture Sport and Tourism,Supplies and Services,312017,Newspapers books and periodicals E312,05/02/2024,4230799-6993776,670.20,ASKEWS & HOLTS LIBRARY SERVICES LTD.
Regeneration Economy and Growth,Culture Sport and Tourism,Supplies and Services,312017,Newspapers books and periodicals E312,05/02/2024,4230799-6993781,730.20,ASKEWS & HOLTS LIBRARY SERVICES LTD.
Regeneration Economy and Growth,Culture Sport and Tourism,Supplies and Services,312017,Newspapers books and periodicals E312,05/02/2024,4230799-6993782,780.96,ASKEWS & HOLTS LIBRARY SERVICES LTD.
Regeneration Economy and Growth,Culture Sport and Tourism,Supplies and Services,312017,Newspapers books and periodicals E312,05/02/2024,4230799-6993793,788.20,ASKEWS & HOLTS LIBRARY SERVICES LTD.
Regeneration Economy and Growth,Culture Sport and Tourism,Supplies and Services,312017,Newspapers books and periodicals E312,05/02/2024,4230799-6993794,634.57,ASKEWS & HOLTS LIBRARY SERVICES LTD.
Regeneration Economy and Growth,Culture Sport and Tourism,Supplies and Services,312017,Newspapers books and periodicals E312,05/02/2024,4230799-6993797,653.40,ASKEWS & HOLTS LIBRARY SERVICES LTD.
Regeneration Economy and Growth,Planning & Housing,Third Party Payments,440999,Other third party payments E440,05/02/2024,4230807-119893,"1,634.99",BAYDALE CONTROL SYSTEMS LTD.
Regeneration Economy and Growth,Transport and Contract Services,Supplies and Services,384199,Miscellaneous Expenses,05/02/2024,4230807-119894,"2,948.00",BAYDALE CONTROL SYSTEMS LTD.
Regeneration Economy and Growth,Transport and Contract Services,Supplies and Services,384199,Miscellaneous Expenses,05/02/2024,4230807-119895,"3,366.00",BAYDALE CONTROL SYSTEMS LTD.
Regeneration Economy and Growth,Transport and Contract Services,Supplies and Services,384199,Miscellaneous Expenses,05/02/2024,4230807-119896,"6,280.00",BAYDALE CONTROL SYSTEMS LTD.
Neighbourhoods and Climate Change,Highways,Supplies and Services,304221,Equipment and Materials,05/02/2024,4230813-207R03233,"1,994.59",BIFFA WASTE SERVICES LTD.
Regeneration Economy and Growth,Culture Sport and Tourism,Supplies and Services,312013,Newspapers books and periodicals E312,05/02/2024,4230815-226819,602.93,BOLINDA DIGITAL LTD.
Regeneration Economy and Growth,Culture Sport and Tourism,Supplies and Services,312013,Newspapers books and periodicals E312,05/02/2024,4230815-229479,600.03,BOLINDA DIGITAL LTD.
Neighbourhoods and Climate Change,Environmental Services,Supplies and Services,304999,Equipment and Materials,05/02/2024,4230824-08-032,505.25,CACTUS TREE GUARDS LTD.
Adult and Health Services,Commissioning inc Supporting People,Supplies and Services,352001,Conference Expenses,05/02/2024,4230825-INV-119916,"7,955.00",CARING FOR CARE LTD.
Regeneration Economy and Growth,Corporate Property and Land,Third Party Payments,430100,Rendered by Private Contractors,05/02/2024,4230827-12264,"3,580.50",CATHEDRAL LOCK & SAFE SERVICES LTD.
Neighbourhoods and Climate Change,Environmental Services,Supplies and Services,304999,Equipment and Materials,05/02/2024,4230831-73206,"2,464.05",CHEVIOT TREES LTD.
Regeneration Economy and Growth,Corporate Property and Land,Supplies and Services,304221,Equipment and Materials,05/02/2024,4230838-2852ABY836,613.72,CITY PLUMBING SUPPLIES HOLDINGS LTD.
Resources BK0010,Transactional & Customer Services,Supplies and Services,338066,Services,05/02/2024,4230839-C/BN294088,"4,646.40",CIVICA UK LTD.
Resources BK0010,Legal & Democratic Services,Supplies and Services,304259,Equipment and Materials,05/02/2024,4230839-C/XP294115,"54,362.14",CIVICA UK LTD.
Resources BK0010,Legal & Democratic Services,Supplies and Services,338025,Services,05/02/2024,4230842-S44954-01963,780.00,CO-OPERATIVE FUNERAL CARE.
Children and Young Peoples Services,Head of Education and Skills,Supplies and Services,338094,Services,05/02/2024,4230848-1676,"1,060.00",CORNERSTONES CENTRE FOR THE COMMUNITY.
Adult and Health Services,Public Health CC0450,Third Party Payments,460803,Contract Payments,05/02/2024,4230849-3910022818,"33,789.00",COUNTY DURHAM & DARLINGTON NHS FOUNDATION TRUST (CDDFT).
Adult and Health Services,Public Health CC0450,Third Party Payments,460803,Contract Payments,05/02/2024,4230849-3910022822,"11,549.00",COUNTY DURHAM & DARLINGTON NHS FOUNDATION TRUST (CDDFT).
Resources BK0010,Digital Services,Stock A926,926900,Stock in hand-Inventory system,05/02/2024,4230850-4551912,730.00,CPC (ELECTRICAL WHOLESALERS).
Children and Young Peoples Services,Head of Education and Skills,Transport,230034,Contract Hire,05/02/2024,4230853-116684,"1,672.96",CROFT BUSINESS SERVICES LTD T/A CROFT TRAVEL.
Resources BK0010,Legal & Democratic Services,Supplies and Services,338042,Services,05/02/2024,4230860-369694/INVJJS244,"11,093.75",DERE STREET BARRISTERS.
Regeneration Economy and Growth,Economic Development,Supplies and Services,384700,Miscellaneous Expenses,05/02/2024,4230864-RES-02-2024-049,"1,500.00",DISCOVERING DURHAM CIC.
Neighbourhoods and Climate Change,Highways,Other expenses A914,914002,Capital - Advertisments,05/02/2024,4230875-3237,600.00,EAST DURHAM LIFE LTD.
Regeneration Economy and Growth,Culture Sport and Tourism,Supplies and Services,338047,Services,05/02/2024,4230885-30512,"7,429.33",ENTERTAINERS SHOW PROVIDERS LTD.
Regeneration Economy and Growth,Planning & Housing,Third Party Payments,440999,Other third party payments E440,05/02/2024,4230889-24950,"27,400.00",EXCELPOINT LTD.
Children and Young Peoples Services,Head of Childrens Social Care,Supplies and Services,384500,Miscellaneous Expenses,05/02/2024,4230899-3Q16I,"2,200.00",FSK THERAPY (MINDS MATTER).
Children and Young Peoples Services,Head of Childrens Social Care,Supplies and Services,384500,Miscellaneous Expenses,05/02/2024,4230899-3Q17I,"1,600.00",FSK THERAPY (MINDS MATTER).
Children and Young Peoples Services,Head of Childrens Social Care,Supplies and Services,338044,Services,05/02/2024,4230900-3453,550.00,FUTURE STEPS CONSULTANCY SERVICE LTD.
Neighbourhoods and Climate Change,Highways,Premises,150015,Apportioned Exps of Operational Blds,05/02/2024,4230902-414550668,"1,100.00",GAP GROUP LTD.
Neighbourhoods and Climate Change,Highways,Premises,150015,Apportioned Exps of Operational Blds,05/02/2024,4230902-414642578,686.74,GAP GROUP LTD.
Neighbourhoods and Climate Change,Environmental Services,Premises,150015,Apportioned Exps of Operational Blds,05/02/2024,4230902-414642582,714.00,GAP GROUP LTD.
Neighbourhoods and Climate Change,Highways,Premises,150015,Apportioned Exps of Operational Blds,05/02/2024,4230902-414642584,"1,050.00",GAP GROUP LTD.
Neighbourhoods and Climate Change,Highways,Premises,150015,Apportioned Exps of Operational Blds,05/02/2024,4230902-414642586,945.00,GAP GROUP LTD.
Regeneration Economy and Growth,Transport and Contract Services,Supplies and Services,304357,Equipment and Materials,05/02/2024,4230902-DCCQUERY121123,"2,362.30",GAP GROUP LTD.
Regeneration Economy and Growth,Culture Sport and Tourism,Premises,145023,Cleaning and Domestic Supplies,05/02/2024,4230906-06/254815,858.90,GREENHAM TRADING LTD.
Regeneration Economy and Growth,Culture Sport and Tourism,Premises,145023,Cleaning and Domestic Supplies,05/02/2024,4230906-06/255170,"1,272.71",GREENHAM TRADING LTD.
Regeneration Economy and Growth,Corporate Property and Land,Premises,145023,Cleaning and Domestic Supplies,05/02/2024,4230906-06/255185,"1,178.10",GREENHAM TRADING LTD.
Neighbourhoods and Climate Change,Environmental Services,Supplies and Services,304221,Equipment and Materials,05/02/2024,4230912-9002671338,715.00,HAKO MACHINES LTD.
Children and Young Peoples Services,Head of Education and Skills,Third Party Payments,430100,Rendered by Private Contractors,05/02/2024,4230915-DL110124A,"12,870.00",HANDCRAFTED PROJECTS.
Children and Young Peoples Services,Head of Education and Skills,Third Party Payments,430100,Rendered by Private Contractors,05/02/2024,4230915-DL110124B,"15,444.00",HANDCRAFTED PROJECTS.
Regeneration Economy and Growth,Corporate Property and Land,Supplies and Services,304221,Equipment and Materials,05/02/2024,4230918-4787986,807.12,HEADLAM (FLOORCOVERING DISTRIBUTORS) LTD.
Regeneration Economy and Growth,Corporate Property and Land,Supplies and Services,304221,Equipment and Materials,05/02/2024,4230920-01065060,"1,169.10",HEATSEAM LTD T/A LIKEWISE NORTH EAST.
Regeneration Economy and Growth,Corporate Property and Land,Supplies and Services,304221,Equipment and Materials,05/02/2024,4230920-01065113,"3,705.12",HEATSEAM LTD T/A LIKEWISE NORTH EAST.
Regeneration Economy and Growth,Culture Sport and Tourism,Fees,901002,Consultants fees 901002,05/02/2024,4230921-3890,"16,397.29",HISTORIC PROPERTY RESTORATION LTD.
Regeneration Economy and Growth,Corporate Property and Land,Supplies and Services,304221,Equipment and Materials,05/02/2024,4230926-A38/0177391,"2,407.40",HOWDENS JOINERY LTD.
Regeneration Economy and Growth,Corporate Property and Land,Supplies and Services,304221,Equipment and Materials,05/02/2024,4230927-A38/0177390,"2,497.97",HOWDENS JOINERY LTD.
Regeneration Economy and Growth,Culture Sport and Tourism,Premises,120021,Energy Costs,05/02/2024,4230930-18505,"12,293.32",IMPALA ESTATES LTD.
Neighbourhoods and Climate Change,Environmental Services,Supplies and Services,324117,Provisions E324,05/02/2024,4230935-29600,802.52,J MORAN LTD T/A CAFFE VINCI.
Neighbourhoods and Climate Change,Environmental Services,Supplies and Services,324117,Provisions E324,05/02/2024,4230935-29926,778.60,J MORAN LTD T/A CAFFE VINCI.
Regeneration Economy and Growth,Culture Sport and Tourism,Supplies and Services,324117,Provisions E324,05/02/2024,4230941-INV23411057,742.56,JIMMY PRODUCTS UK LTD.
Neighbourhoods and Climate Change,Highways,Supplies and Services,304221,Equipment and Materials,05/02/2024,4230946-0104/00030635,"2,002.77",JT DOVE LTD.
Regeneration Economy and Growth,Corporate Property and Land,Supplies and Services,304221,Equipment and Materials,05/02/2024,4230946-0213/01121660,651.21,JT DOVE LTD.
Regeneration Economy and Growth,Corporate Property and Land,Supplies and Services,304221,Equipment and Materials,05/02/2024,4230946-0213/01121661,606.21,JT DOVE LTD.
Neighbourhoods and Climate Change,Highways,Supplies and Services,304221,Equipment and Materials,05/02/2024,4230946-0303/01097818,558.08,JT DOVE LTD.
Neighbourhoods and Climate Change,Environmental Services,Supplies and Services,338066,Services,05/02/2024,4230948-1768,"13,309.83",JW BAINBRIDGE CONTRACTORS LTD.
Neighbourhoods and Climate Change,Environmental Services,Stock A926,926900,Stock in hand-Inventory system,05/02/2024,4230953-SI02-0423074,"2,352.52",KILLGERM CHEMICALS LTD.
Neighbourhoods and Climate Change,Environmental Services,Supplies and Services,338027,Services,05/02/2024,4230958-195362,620.00,LANDFORM SURVEYS LTD.
Regeneration Economy and Growth,Culture Sport and Tourism,Supplies and Services,338047,Services,05/02/2024,4230966-80181952,"1,777.50",LIONS GATE INTERNATIONAL (UK) LTD.*
Regeneration Economy and Growth,Culture Sport and Tourism,Supplies and Services,338047,Services,05/02/2024,4230966-80182288,571.67,LIONS GATE INTERNATIONAL (UK) LTD.*
Neighbourhoods and Climate Change,Partnerships & Community Engagement Div.,Cap Exp on Grants & Other Financial Assistance (REFCUS),918004,Contributions to other bodies 918004,05/02/2024,4230971-VOUCHER23NB-DCTY022,"5,887.20",LOWES BARN COMMUNITY PROJECT CIO.
Resources BK0010,Digital Services,Supplies and Services,344111,Telephones,05/02/2024,4230976-10065481,"2,291.45",MAINTEL EUROPE LTD.
Resources BK0010,Digital Services,Supplies and Services,344111,Telephones,05/02/2024,4230976-265468,"5,340.38",MAINTEL EUROPE LTD.
Regeneration Economy and Growth,Culture Sport and Tourism,Supplies and Services,304337,Equipment and Materials,05/02/2024,4230978-4236160631,670.90,MARES SPA.
Regeneration Economy and Growth,Culture Sport and Tourism,Supplies and Services,304337,Equipment and Materials,05/02/2024,4230978-4236168206,"2,017.45",MARES SPA.
Regeneration Economy and Growth,Culture Sport and Tourism,Supplies and Services,304337,Equipment and Materials,05/02/2024,4230979-4236168205,"1,328.48",MARES SPA.
Regeneration Economy and Growth,Corporate Property and Land,Third Party Payments,430100,Rendered by Private Contractors,05/02/2024,4230991-2477,"2,470.00",MITREPOINT LTD T/A ROOFCLAD SYSTEMS.
Regeneration Economy and Growth,Culture Sport and Tourism,Supplies and Services,324001,Provisions E324,05/02/2024,4230994-907498989,"1,504.12",MOLSON COORS BREWING COMPANY (UK) LTD.
Regeneration Economy and Growth,Culture Sport and Tourism,Supplies and Services,324001,Provisions E324,05/02/2024,4230994-907507720,"1,674.59",MOLSON COORS BREWING COMPANY (UK) LTD.
Regeneration Economy and Growth,Transport and Contract Services,Construction work A908,908105,Construction work,05/02/2024,4230995-100575714,"9,485.40",MOTT MACDONALD LTD.
Neighbourhoods and Climate Change,Highways,Supplies and Services,304221,Equipment and Materials,05/02/2024,4231002-505114,"2,208.16",NAL LTD.
Neighbourhoods and Climate Change,Highways,Other expenses A914,914002,Capital - Advertisments,05/02/2024,4231003-805991,561.26,NATIONAL WORLD PUBLISHING LTD.
Children and Young Peoples Services,Head of Education and Skills,Supplies and Services,338035,Services,05/02/2024,4231006-SI00140373,"1,494.50",NCFE.
Neighbourhoods and Climate Change,Environmental Services,Supplies and Services,304221,Equipment and Materials,05/02/2024,4231009-065997,"2,362.50",NEW ROW FARM NURSERIES.
Chief Executives Office,Communications Management,Supplies and Services,336005,Advertising E336,05/02/2024,4231010-44257074,"1,908.35",NEWSQUEST (YORKSHIRE & NORTH EAST) LTD.
Neighbourhoods and Climate Change,Highways,Supplies and Services,336005,Advertising E336,05/02/2024,4231010-44341198,533.00,NEWSQUEST (YORKSHIRE & NORTH EAST) LTD.
Adult and Health Services,Public Health CC0450,Third Party Payments,460803,Contract Payments,05/02/2024,4231011-7310034219,"76,587.69",NHS NORTH OF ENGLAND CSU.
Adult and Health Services,Public Health CC0450,Third Party Payments,460803,Contract Payments,05/02/2024,4231011-7310034220,"91,617.00",NHS NORTH OF ENGLAND CSU.
Regeneration Economy and Growth,Business Durham,Premises,108099,Service Repairs and Maintenance,05/02/2024,4231015-8110027364,"1,698.00",NORTH EAST AMBULANCE SERVICE NHS FOUNDATION TRUST.
Regeneration Economy and Growth,Planning & Housing,Premises,135005,Water Services,05/02/2024,4231020-915604892,"2,418.75",NORTHUMBRIAN WATER LTD.
Regeneration Economy and Growth,Culture Sport and Tourism,Supplies and Services,338047,Services,05/02/2024,4231029-R2347988,"1,046.25",PARAMOUNT PICTURES UK.
Neighbourhoods and Climate Change,Highways,Stock A926,926900,Stock in hand-Inventory system,05/02/2024,4231030-XL312321,943.50,PARK ELECTRICAL DISTRIBUTORS LTD.
Children and Young Peoples Services,Head of Early Help Inclusion & Vulnerable Children.,Supplies and Services,304259,Equipment and Materials,05/02/2024,4231041-2594067434,"1,042.89",PHONAK UK LTD.
Regeneration Economy and Growth,Culture Sport and Tourism,Supplies and Services,384199,Miscellaneous Expenses,05/02/2024,4231044-INV11277,833.33,PICTUREHOUSE CINEMAS LTD.
Chief Executives Office,Communications Management,Supplies and Services,332029,Printing Stationery and Gen Off Exps,05/02/2024,4231046-725152,840.00,POTTS PRINTERS LTD.
Resources BK0010,Digital Services,Vehicles Equipment Furniture and Fittings,912701,Computer equipment,05/02/2024,4231052-OP/I747545,762.00,PROBRAND LTD.
Resources BK0010,Digital Services,Stock A926,926900,Stock in hand-Inventory system,05/02/2024,4231052-OP/I747618,968.00,PROBRAND LTD.
Children and Young Peoples Services,Head of Education and Skills,Third Party Payments,430100,Rendered by Private Contractors,05/02/2024,4231061-1211,"2,860.00",RELEASE POTENTIAL LTD.
Neighbourhoods and Climate Change,Highways,Supplies and Services,304221,Equipment and Materials,05/02/2024,4231079-914560248905,912.17,SIG TRADING LTD.
Resources BK0010,Digital Services,Supplies and Services,342051,Computers and Communications,05/02/2024,4231084-INVUK1151397,"16,566.56",SOFTCAT PLC.
Neighbourhoods and Climate Change,Environmental Services,Supplies and Services,384199,Miscellaneous Expenses,05/02/2024,4231085-0000257895,"2,300.00",SOIL ASSOCIATION CERTIFICATION LTD.
Neighbourhoods and Climate Change,Highways,Stock A926,926900,Stock in hand-Inventory system,05/02/2024,4231086-SI24000647,"1,078.70",SOLON SECURITY LTD.
Neighbourhoods and Climate Change,Highways,Supplies and Services,304221,Equipment and Materials,05/02/2024,4231106-900245356,"3,627.27",SWARCO UK & IRELAND LTD.
Regeneration Economy and Growth,Corporate Property and Land,Supplies and Services,304221,Equipment and Materials,05/02/2024,4231108-1129445,618.00,T CROSSLING & CO LTD.
Regeneration Economy and Growth,Corporate Property and Land,Supplies and Services,304221,Equipment and Materials,05/02/2024,4231108-1129617,950.00,T CROSSLING & CO LTD.
Adult and Health Services,Head of Adults,Supplies and Services,328041,Clothing uniforms and laundry E328,05/02/2024,4231118-NSIN00107283,816.75,THOMAS OWEN & SONS (NEWCASTLE) LTD.
Neighbourhoods and Climate Change,Highways,Supplies and Services,304221,Equipment and Materials,05/02/2024,4231119-TIS2801,"4,990.30",TIS (NGA) LTD.
Resources BK0010,Legal & Democratic Services,Supplies and Services,304259,Equipment and Materials,05/02/2024,4231120-SI-213171,963.35,TMR EXECUTIVE AGENCY LTD.
Resources BK0010,Legal & Democratic Services,Supplies and Services,304259,Equipment and Materials,05/02/2024,4231120-SI-213172,963.35,TMR EXECUTIVE AGENCY LTD.
Neighbourhoods and Climate Change,Highways,Stock A926,926900,Stock in hand-Inventory system,05/02/2024,4231122-116203,669.40,TOTAL RENTAL SOLUTIONS LTD.
Neighbourhoods and Climate Change,Highways,Stock A926,926900,Stock in hand-Inventory system,05/02/2024,4231122-116204,"2,214.50",TOTAL RENTAL SOLUTIONS LTD.
Neighbourhoods and Climate Change,Highways,Stock A926,926900,Stock in hand-Inventory system,05/02/2024,4231122-116205,"1,600.00",TOTAL RENTAL SOLUTIONS LTD.
Neighbourhoods and Climate Change,Highways,Stock A926,926900,Stock in hand-Inventory system,05/02/2024,4231122-116206,"1,258.50",TOTAL RENTAL SOLUTIONS LTD.
Neighbourhoods and Climate Change,Highways,Stock A926,926900,Stock in hand-Inventory system,05/02/2024,4231122-116208,"1,194.00",TOTAL RENTAL SOLUTIONS LTD.
Neighbourhoods and Climate Change,Highways,Stock A926,926900,Stock in hand-Inventory system,05/02/2024,4231122-116210,663.25,TOTAL RENTAL SOLUTIONS LTD.
Neighbourhoods and Climate Change,Highways,Stock A926,926900,Stock in hand-Inventory system,05/02/2024,4231122-116213,666.40,TOTAL RENTAL SOLUTIONS LTD.
Neighbourhoods and Climate Change,Highways,Stock A926,926900,Stock in hand-Inventory system,05/02/2024,4231122-116214,750.00,TOTAL RENTAL SOLUTIONS LTD.
Neighbourhoods and Climate Change,Highways,Stock A926,926900,Stock in hand-Inventory system,05/02/2024,4231122-116215,523.90,TOTAL RENTAL SOLUTIONS LTD.
Neighbourhoods and Climate Change,Highways,Stock A926,926900,Stock in hand-Inventory system,05/02/2024,4231122-116216,976.50,TOTAL RENTAL SOLUTIONS LTD.
Neighbourhoods and Climate Change,Highways,Stock A926,926900,Stock in hand-Inventory system,05/02/2024,4231122-116217,"1,100.00",TOTAL RENTAL SOLUTIONS LTD.
Neighbourhoods and Climate Change,Highways,Stock A926,926900,Stock in hand-Inventory system,05/02/2024,4231122-116219,"1,982.80",TOTAL RENTAL SOLUTIONS LTD.
Neighbourhoods and Climate Change,Highways,Stock A926,926900,Stock in hand-Inventory system,05/02/2024,4231122-116221,776.46,TOTAL RENTAL SOLUTIONS LTD.
Neighbourhoods and Climate Change,Highways,Stock A926,926900,Stock in hand-Inventory system,05/02/2024,4231122-116222,"1,000.00",TOTAL RENTAL SOLUTIONS LTD.
Neighbourhoods and Climate Change,Highways,Stock A926,926900,Stock in hand-Inventory system,05/02/2024,4231122-116223,"4,900.00",TOTAL RENTAL SOLUTIONS LTD.
Neighbourhoods and Climate Change,Highways,Stock A926,926900,Stock in hand-Inventory system,05/02/2024,4231122-116224,"3,110.40",TOTAL RENTAL SOLUTIONS LTD.
Neighbourhoods and Climate Change,Highways,Stock A926,926900,Stock in hand-Inventory system,05/02/2024,4231122-116225,942.40,TOTAL RENTAL SOLUTIONS LTD.
Regeneration Economy and Growth,Corporate Property and Land,Supplies and Services,304221,Equipment and Materials,05/02/2024,4231129-11252918,647.50,TRADECHOICE DISTRIBUTION LTD.
Regeneration Economy and Growth,Culture Sport and Tourism,Supplies and Services,338047,Services,05/02/2024,4231130-201181,773.34,TRAFALGAR RELEASING LTD.
Resources BK0010,Legal & Democratic Services,Supplies and Services,338042,Services,05/02/2024,4231131-309884/INVHM452,665.00,TRINITY CHAMBERS.
Children and Young Peoples Services,Head of Education and Skills,Supplies and Services,338035,Services,05/02/2024,4231132-1-5083922372,"2,346.74",TRINITY COLLEGE LONDON.
Regeneration Economy and Growth,Corporate Property and Land,Supplies and Services,304221,Equipment and Materials,05/02/2024,4231136-5072744,"3,272.50",UK HEALTH SECURITY AGENCY (UKHSA).
Adult and Health Services,Head of Adults,Supplies and Services,352001,Conference Expenses,05/02/2024,4231138-91802097,814.00,UNIVERSITY OF NORTHUMBRIA.*
Adult and Health Services,Head of Adults,Supplies and Services,352001,Conference Expenses,05/02/2024,4231138-91802144,814.00,UNIVERSITY OF NORTHUMBRIA.*
Neighbourhoods and Climate Change,Highways,Fees,901002,Consultants fees 901002,05/02/2024,4231138-91802364,"38,659.68",UNIVERSITY OF NORTHUMBRIA.*
Neighbourhoods and Climate Change,Highways,Supplies and Services,304221,Equipment and Materials,05/02/2024,4231139-SO061064,"13,865.44",URBIS SCHREDER LTD.
Neighbourhoods and Climate Change,Environmental Services,Supplies and Services,304999,Equipment and Materials,05/02/2024,4231140-V-SI00030228,"1,054.80",VALPAK LTD.
Resources BK0010,Digital Services,Supplies and Services,344015,Telephones,05/02/2024,4231144-SL34673,"1,554.00",VODAFONE CORPORATE LTD.
Neighbourhoods and Climate Change,Highways,Third Party Payments,430127,Rendered by Private Contractors,05/02/2024,4231146-52797,"1,300.00",W MARLEY AGRICULTURAL CONTRACTORS LTD.
Regeneration Economy and Growth,Culture Sport and Tourism,Supplies and Services,338047,Services,05/02/2024,4231147-23193352,710.67,WARNER BROS ENTERTAINMENT UK LTD.
Regeneration Economy and Growth,Culture Sport and Tourism,Supplies and Services,338047,Services,05/02/2024,4231147-23193385,539.33,WARNER BROS ENTERTAINMENT UK LTD.
Regeneration Economy and Growth,Corporate Property and Land,Premises,150015,Apportioned Exps of Operational Blds,05/02/2024,4231151-230144125,520.50,WERNICK HIRE LTD.
Regeneration Economy and Growth,Corporate Property and Land,Premises,150015,Apportioned Exps of Operational Blds,05/02/2024,4231152-230119691,582.90,WERNICK HIRE LTD.
Neighbourhoods and Climate Change,Environmental Services,Transport,215005,Running Costs of Vehicles,05/02/2024,4231162-1105039,"14,592.50",YOUR NRG LTD.
Neighbourhoods and Climate Change,Environmental Services,Transport,215005,Running Costs of Vehicles,05/02/2024,4231162-1105878,"1,428.13",YOUR NRG LTD.
Regeneration Economy and Growth,Business Durham,Supplies and Services,338066,Services,05/02/2024,4230822-1091,"2,235.00",REDACTED - PAYMENT TO INDIVIDUAL
Adult and Health Services,Head of Adults,Third Party Payments,478101,Purchase of Care,05/02/2024,4230857-053,"1,282.40",REDACTED - PAYMENT TO INDIVIDUAL
Neighbourhoods and Climate Change,Environmental Services,Supplies and Services,338066,Services,05/02/2024,4230939-431C,945.00,REDACTED - PAYMENT TO INDIVIDUAL
Children and Young Peoples Services,Head of Education and Skills,Supplies and Services,338027,Services,05/02/2024,4230987-DCC7009,"1,425.00",REDACTED - PAYMENT TO INDIVIDUAL
Children and Young Peoples Services,Head of Education and Skills,Supplies and Services,338027,Services,05/02/2024,4230998-HN00266,"3,025.00",REDACTED - PAYMENT TO INDIVIDUAL
Children and Young Peoples Services,Head of Education and Skills,Transport,230008,Contract Hire,05/02/2024,4231031-5052,"1,250.00",REDACTED - PAYMENT TO INDIVIDUAL
Adult and Health Services,Commissioning inc Supporting People,Supplies and Services,338099,Services,05/02/2024,4231083-INV-6296,"59,400.00",SOCIAL-ABILITY LIMITED.
Neighbourhoods and Climate Change,Highways,Construction work A908,908105,Construction work,05/02/2024,4231095-4369,"2,685.86",STAINTON LIGHTING DESIGN SERVICES LTD (SLDS).
Neighbourhoods and Climate Change,Highways,Fees,901002,Consultants fees 901002,05/02/2024,4231095-4370,"4,293.36",STAINTON LIGHTING DESIGN SERVICES LTD (SLDS).
Neighbourhoods and Climate Change,Highways,Fees,901002,Consultants fees 901002,05/02/2024,4231095-4371,"2,488.32",STAINTON LIGHTING DESIGN SERVICES LTD (SLDS).
Neighbourhoods and Climate Change,Partnerships & Community Engagement Div.,Cap Exp on Grants & Other Financial Assistance (REFCUS),918004,Contributions to other bodies 918004,05/02/2024,4230779-VOUCHER23AB-DCTY011,"10,596.00",4TH DURHAM SCOUT GROUP.
Regeneration Economy and Growth,Culture Sport and Tourism,Supplies and Services,338047,Services,05/02/2024,4230931-2069,"5,642.00",IMPATIENT PRODUCTIONS LTD.
Regeneration Economy and Growth,Culture Sport and Tourism,Supplies and Services,384302,Miscellaneous Expenses,05/02/2024,4230819-PETERLEE75-21JAN,"1,300.00",REDACTED - PAYMENT TO INDIVIDUAL
Regeneration Economy and Growth,Culture Sport and Tourism,Supplies and Services,384199,Miscellaneous Expenses,05/02/2024,4230826-CP1002-0124-DCC,750.00,REDACTED - PAYMENT TO INDIVIDUAL
Regeneration Economy and Growth,Culture Sport and Tourism,Supplies and Services,384302,Miscellaneous Expenses,05/02/2024,4230881-150,"1,600.00",REDACTED - PAYMENT TO INDIVIDUAL
Regeneration Economy and Growth,Economic Development,Supplies and Services,384437,Miscellaneous Expenses,05/02/2024,4230944-1,"2,500.00",REDACTED - PAYMENT TO INDIVIDUAL
Dedicated Schools Grant BG0015,DSG Early Years Block,Transfer Payments,510030,School Children,06/02/2024,4231755-39486,"1,157.10",ADVANCE LEARNING PARTNERSHIP.
Adult and Health Services,Head of Adults,Supplies and Services,338099,Services,06/02/2024,4231758-200181801,"3,026.76",ANCHOR HANOVER GROUP.
Adult and Health Services,Public Health CC0450,Third Party Payments,460803,Contract Payments,06/02/2024,4231769-A83037/QTR323-24/ALCOHOLSCREENING,947.24,BEWICK CRESCENT SURGERY.
Dedicated Schools Grant BG0015,DSG Early Years Block,Transfer Payments,510030,School Children,06/02/2024,4231771-39488,"1,781.25",BISHOP WILKINSON CATHOLIC EDUCATION TRUST.
Dedicated Schools Grant BG0015,DSG Early Years Block,Transfer Payments,510030,School Children,06/02/2024,4231772-39489,"4,602.75",BISHOP WILKINSON CATHOLIC EDUCATION TRUST.
Neighbourhoods and Climate Change,Highways,Supplies and Services,304221,Equipment and Materials,06/02/2024,4231776-21636940,"2,064.84",BREEDON TRADING LTD.
Regeneration Economy and Growth,Culture Sport and Tourism,Supplies and Services,338047,Services,06/02/2024,4231784-005,"24,250.00",CBS THEATRE GROUP.
Regeneration Economy and Growth,Culture Sport and Tourism,Supplies and Services,384199,Miscellaneous Expenses,06/02/2024,4231797-NEI-HCL-02-2024-002,"1,407.00",COUNTY DURHAM SPORT.
Children and Young Peoples Services,Head of Childrens Social Care,Third Party Payments,425028,Rendered by Voluntary Organisations,06/02/2024,4231799-2332,"10,000.00",COXHOE PARISH COUNCIL.
Children and Young Peoples Services,Head of Childrens Social Care,Transport,230005,Contract Hire,06/02/2024,4231800-117110,547.66,CROFT BUSINESS SERVICES LTD T/A CROFT TRAVEL.
Children and Young Peoples Services,Head of Childrens Social Care,Transport,230005,Contract Hire,06/02/2024,4231800-117111,662.20,CROFT BUSINESS SERVICES LTD T/A CROFT TRAVEL.
Children and Young Peoples Services,Head of Childrens Social Care,Transport,230005,Contract Hire,06/02/2024,4231800-117112,948.98,CROFT BUSINESS SERVICES LTD T/A CROFT TRAVEL.
Children and Young Peoples Services,Head of Childrens Social Care,Transport,230005,Contract Hire,06/02/2024,4231804-DH2402F,500.00,DH2 CABS.
Children and Young Peoples Services,Head of Childrens Social Care,Transport,230005,Contract Hire,06/02/2024,4231804-DH2402G,594.00,DH2 CABS.
Children and Young Peoples Services,Head of Childrens Social Care,Transport,230005,Contract Hire,06/02/2024,4231804-DH2402I,"1,200.00",DH2 CABS.
Children and Young Peoples Services,Head of Childrens Social Care,Transport,230005,Contract Hire,06/02/2024,4231804-DH2402L,700.00,DH2 CABS.
Children and Young Peoples Services,Head of Childrens Social Care,Transport,230005,Contract Hire,06/02/2024,4231804-DH2402Q,560.00,DH2 CABS.
Children and Young Peoples Services,Head of Childrens Social Care,Transport,230005,Contract Hire,06/02/2024,4231804-DH2402ZC,700.00,DH2 CABS.
Children and Young Peoples Services,Head of Childrens Social Care,Transport,230005,Contract Hire,06/02/2024,4231804-DH2402ZI,600.00,DH2 CABS.
Children and Young Peoples Services,Head of Early Help Inclusion & Vulnerable Children.,Transport,230005,Contract Hire,06/02/2024,4231804-DH2403B,720.00,DH2 CABS.
Children and Young Peoples Services,Head of Childrens Social Care,Transport,230005,Contract Hire,06/02/2024,4231804-DH2403F,500.00,DH2 CABS.
Children and Young Peoples Services,Head of Childrens Social Care,Transport,230005,Contract Hire,06/02/2024,4231804-DH2403G,594.00,DH2 CABS.
Children and Young Peoples Services,Head of Childrens Social Care,Transport,230005,Contract Hire,06/02/2024,4231804-DH2403J,"1,060.00",DH2 CABS.
Children and Young Peoples Services,Head of Childrens Social Care,Transport,230005,Contract Hire,06/02/2024,4231804-DH2403O,700.00,DH2 CABS.
Children and Young Peoples Services,Head of Childrens Social Care,Transport,230005,Contract Hire,06/02/2024,4231804-DH2403P,540.00,DH2 CABS.
Children and Young Peoples Services,Head of Childrens Social Care,Transport,230005,Contract Hire,06/02/2024,4231804-DH2403T,700.00,DH2 CABS.
Children and Young Peoples Services,Head of Childrens Social Care,Transport,230005,Contract Hire,06/02/2024,4231804-DH2403ZH,700.00,DH2 CABS.
Children and Young Peoples Services,Head of Childrens Social Care,Transport,230005,Contract Hire,06/02/2024,4231804-DH2403ZN,600.00,DH2 CABS.
Children and Young Peoples Services,Head of Childrens Social Care,Transport,230005,Contract Hire,06/02/2024,4231804-DH2404A,540.00,DH2 CABS.
Children and Young Peoples Services,Head of Early Help Inclusion & Vulnerable Children.,Transport,230005,Contract Hire,06/02/2024,4231804-DH2404C,640.00,DH2 CABS.
Children and Young Peoples Services,Head of Childrens Social Care,Transport,230005,Contract Hire,06/02/2024,4231804-DH2404F,500.00,DH2 CABS.
Children and Young Peoples Services,Head of Childrens Social Care,Transport,230005,Contract Hire,06/02/2024,4231804-DH2404G,660.00,DH2 CABS.
Children and Young Peoples Services,Head of Childrens Social Care,Transport,230005,Contract Hire,06/02/2024,4231804-DH2404I,"1,112.00",DH2 CABS.
Children and Young Peoples Services,Head of Childrens Social Care,Transport,230005,Contract Hire,06/02/2024,4231804-DH2404O,700.00,DH2 CABS.
Children and Young Peoples Services,Head of Childrens Social Care,Transport,230005,Contract Hire,06/02/2024,4231804-DH2404ZB,700.00,DH2 CABS.
Children and Young Peoples Services,Head of Childrens Social Care,Transport,230005,Contract Hire,06/02/2024,4231804-DH2404ZH,600.00,DH2 CABS.
Children and Young Peoples Services,Head of Childrens Social Care,Third Party Payments,425028,Rendered by Voluntary Organisations,06/02/2024,4231810-001/2024,"4,886.00",DURHAM AREA DISABILITY LEISURE GROUP (DADLG).
Neighbourhoods and Climate Change,Partnerships & Community Engagement Div.,Supplies and Services,384086,Miscellaneous Expenses,06/02/2024,4231811-VOUCHER23NB-DCTY030,"3,000.00",DURHAM CITY YOUTH PROJECT.
Regeneration Economy and Growth,Culture Sport and Tourism,Construction work A908,908105,Construction work,06/02/2024,4231816-2696,"68,678.65",ELMWOOD PROJECTS LTD.
Regeneration Economy and Growth,Culture Sport and Tourism,Supplies and Services,338047,Services,06/02/2024,4231817-2024308LB,"70,991.79",ENTERTAINMENT UNLIMITED.
Adult and Health Services,Public Health CC0450,Third Party Payments,460803,Contract Payments,06/02/2024,4231821-A83045/QTR323-24/ALCOHOLSCREENING,"2,163.42",FERRYHILL & CHILTON MEDICAL PRACTICE.
Children and Young Peoples Services,Head of Childrens Social Care,Third Party Payments,425021,Rendered by Voluntary Organisations,06/02/2024,4231832-83,"13,714.29",HATCH GROUP LTD T/A OLIVE HOUSE.
Children and Young Peoples Services,Head of Childrens Social Care,Third Party Payments,425021,Rendered by Voluntary Organisations,06/02/2024,4231832-88,"18,320.00",HATCH GROUP LTD T/A OLIVE HOUSE.
Children and Young Peoples Services,Head of Childrens Social Care,Third Party Payments,425021,Rendered by Voluntary Organisations,06/02/2024,4231832-89,"18,320.00",HATCH GROUP LTD T/A OLIVE HOUSE.
Children and Young Peoples Services,Head of Childrens Social Care,Third Party Payments,425021,Rendered by Voluntary Organisations,06/02/2024,4231832-90,"18,320.00",HATCH GROUP LTD T/A OLIVE HOUSE.
Children and Young Peoples Services,Head of Childrens Social Care,Third Party Payments,425021,Rendered by Voluntary Organisations,06/02/2024,4231832-91,"18,320.00",HATCH GROUP LTD T/A OLIVE HOUSE.
Regeneration Economy and Growth,Corporate Property and Land,Supplies and Services,304221,Equipment and Materials,06/02/2024,4231834-01065121,510.48,HEATSEAM LTD T/A LIKEWISE NORTH EAST.
Adult and Health Services,Public Health CC0450,Third Party Payments,460803,Contract Payments,06/02/2024,4231837-SI-HK-001924,"1,689.60",HUMANKIND CHARITY.
Neighbourhoods and Climate Change,Highways,Third Party Payments,430127,Rendered by Private Contractors,06/02/2024,4231839-3222,872.50,IAN C LIDDLE T/A IC LIDDLE SERVICES.
Resources BK0010,Digital Services,Supplies and Services,342033,Computers and Communications,06/02/2024,4231843-2100804235,"1,326.37",INSIGHT DIRECT (UK) LTD.
Neighbourhoods and Climate Change,Highways,Third Party Payments,430100,Rendered by Private Contractors,06/02/2024,4231844-1568/2023,"4,000.00",J & JG GILL & SONS LTD.
Neighbourhoods and Climate Change,Highways,Third Party Payments,430127,Rendered by Private Contractors,06/02/2024,4231845-5307054,"1,037.50",JA GILSON (AGRICULTURAL CONTRACTORS) LTD.
Neighbourhoods and Climate Change,Highways,Third Party Payments,430127,Rendered by Private Contractors,06/02/2024,4231845-5307103,"2,040.00",JA GILSON (AGRICULTURAL CONTRACTORS) LTD.
Neighbourhoods and Climate Change,Highways,Supplies and Services,304221,Equipment and Materials,06/02/2024,4231850-0303/01063452,864.16,JT DOVE LTD.
Neighbourhoods and Climate Change,Highways,Supplies and Services,304221,Equipment and Materials,06/02/2024,4231850-0303/01088255,"2,763.00",JT DOVE LTD.
Neighbourhoods and Climate Change,Highways,Supplies and Services,304221,Equipment and Materials,06/02/2024,4231850-0303/01088256,"5,984.44",JT DOVE LTD.
Neighbourhoods and Climate Change,Highways,Supplies and Services,304221,Equipment and Materials,06/02/2024,4231850-0303/01109076,763.60,JT DOVE LTD.
Children and Young Peoples Services,Head of Childrens Social Care,Third Party Payments,425028,Rendered by Voluntary Organisations,06/02/2024,4231854-INV-0009,"4,815.00",LEARNING A NEW WAY CIC.
Regeneration Economy and Growth,Culture Sport and Tourism,Supplies and Services,372009,Subscriptions E372,06/02/2024,4231870-NCS24/028,580.00,NATIONAL CONSERVATION SERVICE LTD.
Regeneration Economy and Growth,Corporate Property and Land,Third Party Payments,430100,Rendered by Private Contractors,06/02/2024,4231871-47974,624.00,NE & C WINDOWS & DOORS LTD.
Regeneration Economy and Growth,Corporate Property and Land,Third Party Payments,430100,Rendered by Private Contractors,06/02/2024,4231871-48027,"1,693.78",NE & C WINDOWS & DOORS LTD.
Neighbourhoods and Climate Change,Environmental Services,Transport,210057,Repair and Maintenance of Vehicles,06/02/2024,4231873-21921035,810.55,NORTH EAST TRUCK & VAN LTD.
Non-Service Specific,Insurances,Expenditure 8INSEX,810012,Insurance Expenditure,06/02/2024,4231875-DI20419156,620.66,NORTHERN POWERGRID (NORTHEAST) LTD.
Dedicated Schools Grant BG0015,DSG Early Years Block,Transfer Payments,510032,School Children,06/02/2024,4231876-39482,570.40,NURSERYTIME LTD.
Children and Young Peoples Services,Head of Early Help Inclusion & Vulnerable Children.,Supplies and Services,304259,Equipment and Materials,06/02/2024,4231884-INV1177212,951.70,POSTURITE (UK) LTD.
Children and Young Peoples Services,Head of Childrens Social Care,Third Party Payments,425020,Rendered by Voluntary Organisations,06/02/2024,4231885-TL7,580.00,PRESTYS HACKNEY & PRIVATE HIRE TAXIS.
Children and Young Peoples Services,Head of Childrens Social Care,Supplies and Services,336005,Advertising E336,06/02/2024,4231889-SIA415232,"1,500.00",REACH PUBLISHING SERVICES LTD T/A REACH PLC.
Children and Young Peoples Services,Head of Childrens Social Care,Supplies and Services,336005,Advertising E336,06/02/2024,4231889-SIA419323,500.00,REACH PUBLISHING SERVICES LTD T/A REACH PLC.
Neighbourhoods and Climate Change,Environmental Services,Supplies and Services,340001,Postages E340,06/02/2024,4231895-9069420946,"42,375.61",ROYAL MAIL GROUP PLC.
Neighbourhoods and Climate Change,Environmental Services,Supplies and Services,340001,Postages E340,06/02/2024,4231895-9069465838,"46,249.30",ROYAL MAIL GROUP PLC.
Neighbourhoods and Climate Change,Environmental Services,Fees,901001,Internal fees,06/02/2024,4231896-5578,"1,240.00",SAFESOL LTD.
Resources BK0010,Procurement Sales & Business Services,Supplies and Services,352001,Conference Expenses,06/02/2024,4231898-24519,500.00,SCHOOLS NORTHEAST TRADING LTD.
Adult and Health Services,Head of Adults,Supplies and Services,338066,Services,06/02/2024,4231899-490,727.00,SHAH MEDICAL SERVICES LTD.
Regeneration Economy and Growth,Culture Sport and Tourism,Supplies and Services,384199,Miscellaneous Expenses,06/02/2024,4231903-SI009929,"3,950.21",SPEKTRIX LTD.
Resources BK0010,Internal Audit and Insurance,Supplies and Services,338099,Services,06/02/2024,4231909-69769395,521.40,TAMESIDE METROPOLITAN BOROUGH COUNCIL (MBC).
Neighbourhoods and Climate Change,Highways,Stock A926,926900,Stock in hand-Inventory system,06/02/2024,4231911-9047894997,574.65,TARMAC TRADING LTD.
Neighbourhoods and Climate Change,Highways,Supplies and Services,304221,Equipment and Materials,06/02/2024,4231921-252607,917.15,TYNEDALE ROADSTONE LTD.
Neighbourhoods and Climate Change,Highways,Supplies and Services,304221,Equipment and Materials,06/02/2024,4231921-252608,"2,027.15",TYNEDALE ROADSTONE LTD.
Neighbourhoods and Climate Change,Highways,Supplies and Services,304221,Equipment and Materials,06/02/2024,4231921-254255,"1,085.65",TYNEDALE ROADSTONE LTD.
Neighbourhoods and Climate Change,Highways,Supplies and Services,304221,Equipment and Materials,06/02/2024,4231921-254449,881.39,TYNEDALE ROADSTONE LTD.
Neighbourhoods and Climate Change,Highways,Supplies and Services,304221,Equipment and Materials,06/02/2024,4231921-255493,829.90,TYNEDALE ROADSTONE LTD.
Neighbourhoods and Climate Change,Highways,Supplies and Services,304221,Equipment and Materials,06/02/2024,4231921-255494,"1,442.15",TYNEDALE ROADSTONE LTD.
Neighbourhoods and Climate Change,Highways,Supplies and Services,304221,Equipment and Materials,06/02/2024,4231921-255495,799.44,TYNEDALE ROADSTONE LTD.
Neighbourhoods and Climate Change,Highways,Supplies and Services,304221,Equipment and Materials,06/02/2024,4231921-255496,873.94,TYNEDALE ROADSTONE LTD.
Neighbourhoods and Climate Change,Highways,Supplies and Services,304221,Equipment and Materials,06/02/2024,4231921-255497,"1,373.95",TYNEDALE ROADSTONE LTD.
Neighbourhoods and Climate Change,Highways,Supplies and Services,304221,Equipment and Materials,06/02/2024,4231921-255498,"1,547.42",TYNEDALE ROADSTONE LTD.
Neighbourhoods and Climate Change,Highways,Supplies and Services,304221,Equipment and Materials,06/02/2024,4231921-255499,"1,364.65",TYNEDALE ROADSTONE LTD.
Neighbourhoods and Climate Change,Highways,Supplies and Services,304221,Equipment and Materials,06/02/2024,4231921-255500,876.92,TYNEDALE ROADSTONE LTD.
Neighbourhoods and Climate Change,Highways,Supplies and Services,304221,Equipment and Materials,06/02/2024,4231921-255501,"1,522.75",TYNEDALE ROADSTONE LTD.
Neighbourhoods and Climate Change,Highways,Supplies and Services,304221,Equipment and Materials,06/02/2024,4231921-255502,"1,590.95",TYNEDALE ROADSTONE LTD.
Neighbourhoods and Climate Change,Highways,Supplies and Services,304221,Equipment and Materials,06/02/2024,4231921-255503,"1,578.71",TYNEDALE ROADSTONE LTD.
Neighbourhoods and Climate Change,Highways,Supplies and Services,304221,Equipment and Materials,06/02/2024,4231921-255504,"1,016.98",TYNEDALE ROADSTONE LTD.
Neighbourhoods and Climate Change,Highways,Supplies and Services,304221,Equipment and Materials,06/02/2024,4231921-255505,"1,218.13",TYNEDALE ROADSTONE LTD.
Neighbourhoods and Climate Change,Highways,Supplies and Services,304221,Equipment and Materials,06/02/2024,4231921-255506,"1,375.50",TYNEDALE ROADSTONE LTD.
Neighbourhoods and Climate Change,Highways,Supplies and Services,304221,Equipment and Materials,06/02/2024,4231921-255507,"1,536.99",TYNEDALE ROADSTONE LTD.
Neighbourhoods and Climate Change,Highways,Supplies and Services,304221,Equipment and Materials,06/02/2024,4231921-255509,"1,356.90",TYNEDALE ROADSTONE LTD.
Neighbourhoods and Climate Change,Highways,Supplies and Services,304221,Equipment and Materials,06/02/2024,4231921-255684,"1,539.97",TYNEDALE ROADSTONE LTD.
Neighbourhoods and Climate Change,Highways,Supplies and Services,304221,Equipment and Materials,06/02/2024,4231921-255685,799.44,TYNEDALE ROADSTONE LTD.
Neighbourhoods and Climate Change,Highways,Supplies and Services,304221,Equipment and Materials,06/02/2024,4231921-255686,930.65,TYNEDALE ROADSTONE LTD.
Neighbourhoods and Climate Change,Highways,Supplies and Services,304221,Equipment and Materials,06/02/2024,4231921-255687,"1,623.50",TYNEDALE ROADSTONE LTD.
Neighbourhoods and Climate Change,Highways,Supplies and Services,304221,Equipment and Materials,06/02/2024,4231921-255688,963.20,TYNEDALE ROADSTONE LTD.
Regeneration Economy and Growth,Culture Sport and Tourism,Supplies and Services,384199,Miscellaneous Expenses,06/02/2024,4231924-INV-63376,851.78,VISTECH SERVICES LTD.
Neighbourhoods and Climate Change,Environmental Services,Supplies and Services,338078,Services,06/02/2024,4231924-INV-63378,"2,503.20",VISTECH SERVICES LTD.
Neighbourhoods and Climate Change,Environmental Services,Supplies and Services,338078,Services,06/02/2024,4231924-INV-63379,"1,758.20",VISTECH SERVICES LTD.
Neighbourhoods and Climate Change,Environmental Services,Supplies and Services,338078,Services,06/02/2024,4231924-INV-63381,"1,028.10",VISTECH SERVICES LTD.
Children and Young Peoples Services,Head of Early Help Inclusion & Vulnerable Children.,Supplies and Services,338078,Services,06/02/2024,4231924-INV-63382,"5,050.08",VISTECH SERVICES LTD.
Neighbourhoods and Climate Change,Environmental Services,Supplies and Services,338078,Services,06/02/2024,4231924-INV-63387,"2,503.20",VISTECH SERVICES LTD.
Regeneration Economy and Growth,Corporate Property and Land,Premises,108099,Service Repairs and Maintenance,06/02/2024,4231925-23103,"3,130.12",WATERMAN ENVIRONMENTAL SERVICES.
Neighbourhoods and Climate Change,Highways,Premises,150015,Apportioned Exps of Operational Blds,06/02/2024,4231926-230138030,"2,383.80",WERNICK HIRE LTD.
Neighbourhoods and Climate Change,Environmental Services,Transport,215005,Running Costs of Vehicles,06/02/2024,4231930-1102489,"5,622.62",YOUR NRG LTD.
Children and Young Peoples Services,Head of Childrens Social Care,Transport,230005,Contract Hire,06/02/2024,4231759-02019,562.80,REDACTED - PAYMENT TO INDIVIDUAL
Children and Young Peoples Services,Head of Childrens Social Care,Transport,230005,Contract Hire,06/02/2024,4231759-02021,650.70,REDACTED - PAYMENT TO INDIVIDUAL
Children and Young Peoples Services,Head of Childrens Social Care,Transport,230005,Contract Hire,06/02/2024,4231759-02029,"2,711.90",REDACTED - PAYMENT TO INDIVIDUAL
Children and Young Peoples Services,Head of Childrens Social Care,Transport,230005,Contract Hire,06/02/2024,4231759-02036,"3,097.70",REDACTED - PAYMENT TO INDIVIDUAL
Children and Young Peoples Services,Head of Childrens Social Care,Transport,230005,Contract Hire,06/02/2024,4231759-02037,760.90,REDACTED - PAYMENT TO INDIVIDUAL
Children and Young Peoples Services,Head of Childrens Social Care,Transport,230005,Contract Hire,06/02/2024,4231759-02040,"1,136.60",REDACTED - PAYMENT TO INDIVIDUAL
Children and Young Peoples Services,Head of Childrens Social Care,Transport,230005,Contract Hire,06/02/2024,4231759-02041,"3,384.50",REDACTED - PAYMENT TO INDIVIDUAL
Children and Young Peoples Services,Head of Childrens Social Care,Transport,230005,Contract Hire,06/02/2024,4231759-02042,848.70,REDACTED - PAYMENT TO INDIVIDUAL
Children and Young Peoples Services,Head of Childrens Social Care,Transport,230005,Contract Hire,06/02/2024,4231759-02044,880.00,REDACTED - PAYMENT TO INDIVIDUAL
Children and Young Peoples Services,Head of Childrens Social Care,Transport,230005,Contract Hire,06/02/2024,4231759-02048,"2,907.00",REDACTED - PAYMENT TO INDIVIDUAL
Children and Young Peoples Services,Head of Childrens Social Care,Transport,230005,Contract Hire,06/02/2024,4231759-02050,949.60,REDACTED - PAYMENT TO INDIVIDUAL
Neighbourhoods and Climate Change,Highways,Third Party Payments,430127,Rendered by Private Contractors,06/02/2024,4231840-C641,615.00,REDACTED - PAYMENT TO INDIVIDUAL
Neighbourhoods and Climate Change,Highways,Third Party Payments,430127,Rendered by Private Contractors,06/02/2024,4231840-C642,"1,230.00",REDACTED - PAYMENT TO INDIVIDUAL
Neighbourhoods and Climate Change,Highways,Third Party Payments,430127,Rendered by Private Contractors,06/02/2024,4231840-C644,"2,140.00",REDACTED - PAYMENT TO INDIVIDUAL
Neighbourhoods and Climate Change,Highways,Third Party Payments,430127,Rendered by Private Contractors,06/02/2024,4231840-C645,"2,232.50",REDACTED - PAYMENT TO INDIVIDUAL
Neighbourhoods and Climate Change,Partnerships & Community Engagement Div.,Cap Exp on Grants & Other Financial Assistance (REFCUS),918004,Contributions to other bodies 918004,06/02/2024,4231913-VOUCHER23NB-4TOG018,"6,346.00",TEAM WARRIOR TKO.
Children and Young Peoples Services,Head of Childrens Social Care,Third Party Payments,440046,Other third party payments E440,06/02/2024,4231762-1,"3,245.00",ASZ PROPERTY DEVELOPERS T/A HIDDEN GEM SERVICED ACCOMMODATION.
Regeneration Economy and Growth,Culture Sport and Tourism,Supplies and Services,384199,Miscellaneous Expenses,06/02/2024,4231805-INV-0149,"1,375.00",DOPAMINE STUDIOS LTD.
Children and Young Peoples Services,Head of Childrens Social Care,Third Party Payments,425028,Rendered by Voluntary Organisations,06/02/2024,4231858-INV-0159,"3,797.00",LIVE WELL NORTH EAST.
Children and Young Peoples Services,Head of Education and Skills,Transport,230007,Contract Hire,07/02/2024,4231932-12401,"2,520.00",24/7 TAXI SERVICES (PETERLEE) LTD.
Children and Young Peoples Services,Head of Education and Skills,Transport,230034,Contract Hire,07/02/2024,4231932-12402,"3,133.80",24/7 TAXI SERVICES (PETERLEE) LTD.
Children and Young Peoples Services,Head of Education and Skills,Transport,230034,Contract Hire,07/02/2024,4231932-12403,"1,951.60",24/7 TAXI SERVICES (PETERLEE) LTD.
Children and Young Peoples Services,Head of Education and Skills,Transport,230007,Contract Hire,07/02/2024,4231932-12405,"3,000.00",24/7 TAXI SERVICES (PETERLEE) LTD.
Children and Young Peoples Services,Head of Education and Skills,Transport,230007,Contract Hire,07/02/2024,4231932-12407,"2,650.92",24/7 TAXI SERVICES (PETERLEE) LTD.
Children and Young Peoples Services,Head of Education and Skills,Transport,230008,Contract Hire,07/02/2024,4231932-12408,"2,822.60",24/7 TAXI SERVICES (PETERLEE) LTD.
Children and Young Peoples Services,Head of Education and Skills,Transport,230008,Contract Hire,07/02/2024,4231932-12409,"3,780.00",24/7 TAXI SERVICES (PETERLEE) LTD.
Children and Young Peoples Services,Head of Education and Skills,Transport,230010,Contract Hire,07/02/2024,4231932-12410,"5,668.80",24/7 TAXI SERVICES (PETERLEE) LTD.
Adult and Health Services,Head of Adults,Transport,230005,Contract Hire,07/02/2024,4231932-12411,"1,980.00",24/7 TAXI SERVICES (PETERLEE) LTD.
Adult and Health Services,Head of Adults,Transport,230005,Contract Hire,07/02/2024,4231932-12412,"1,626.88",24/7 TAXI SERVICES (PETERLEE) LTD.
Children and Young Peoples Services,Head of Education and Skills,Transport,230034,Contract Hire,07/02/2024,4231932-12413,"3,180.00",24/7 TAXI SERVICES (PETERLEE) LTD.
Children and Young Peoples Services,Head of Education and Skills,Transport,230034,Contract Hire,07/02/2024,4231934-07-JAN234,"1,120.00",A & P TAXIS.
Children and Young Peoples Services,Head of Education and Skills,Transport,230008,Contract Hire,07/02/2024,4231934-JANUARY01/2024,"5,000.00",A & P TAXIS.
Children and Young Peoples Services,Head of Education and Skills,Transport,230035,Contract Hire,07/02/2024,4231934-JANUARY03/2024,"1,692.72",A & P TAXIS.
Children and Young Peoples Services,Head of Education and Skills,Transport,230007,Contract Hire,07/02/2024,4231934-JANUARY04/2024,"2,000.00",A & P TAXIS.
Children and Young Peoples Services,Head of Education and Skills,Transport,230034,Contract Hire,07/02/2024,4231934-JANUARY06/2024,"2,112.37",A & P TAXIS.
Children and Young Peoples Services,Head of Education and Skills,Transport,230006,Contract Hire,07/02/2024,4231935-0124-SG,"2,023.00",AABAT TAXIS.
Adult and Health Services,Head of Adults,Transport,230005,Contract Hire,07/02/2024,4231935-0124-SK,"2,792.02",AABAT TAXIS.
Children and Young Peoples Services,Head of Education and Skills,Transport,230007,Contract Hire,07/02/2024,4231935-0124/E,"1,706.76",AABAT TAXIS.
Children and Young Peoples Services,Head of Education and Skills,Transport,230009,Contract Hire,07/02/2024,4231935-0124/SD,"3,268.80",AABAT TAXIS.
Children and Young Peoples Services,Head of Education and Skills,Transport,230007,Contract Hire,07/02/2024,4231935-0124/SM,"2,676.66",AABAT TAXIS.
Children and Young Peoples Services,Head of Education and Skills,Transfer Payments,510034,School Children,07/02/2024,4231940-CLAPPPAUTUMN2023NIC-11,"1,200.00",ADVANCE LEARNING PARTNERSHIP.
Children and Young Peoples Services,Head of Education and Skills,Transfer Payments,510034,School Children,07/02/2024,4231940-CLAPPPAUTUMN2023NIC-11.,600.00,ADVANCE LEARNING PARTNERSHIP.
Children and Young Peoples Services,Head of Education and Skills,Transfer Payments,510034,School Children,07/02/2024,4231942-CLAPPPAUTUMN2023NIC-1,600.00,ADVANCE LEARNING PARTNERSHIP.
Children and Young Peoples Services,Head of Education and Skills,Transport,230008,Contract Hire,07/02/2024,4231944-N339/JANUARY2024-027,"2,111.76",AIRPORT TRANSFER DURHAM.
Children and Young Peoples Services,Head of Education and Skills,Transport,230034,Contract Hire,07/02/2024,4231952-1887/JAN24,"1,184.20",ANGIE`S TAXIS.
Children and Young Peoples Services,Head of Education and Skills,Transport,230009,Contract Hire,07/02/2024,4231952-7390/JAN24,680.00,ANGIE`S TAXIS.
Children and Young Peoples Services,Head of Education and Skills,Transport,230034,Contract Hire,07/02/2024,4231956-5003-JAN24,"1,962.00",ARMSTRONG`S TAXIS.
Regeneration Economy and Growth,Transport and Contract Services,Third Party Payments,430106,Rendered by Private Contractors,07/02/2024,4231959-121435,"69,098.98",ARRIVA NORTHUMBRIA LTD.
Regeneration Economy and Growth,Transport and Contract Services,Third Party Payments,430106,Rendered by Private Contractors,07/02/2024,4231960-121444,"62,034.09",ARRIVA NORTHUMBRIA LTD.
Children and Young Peoples Services,Head of Education and Skills,Transport,230007,Contract Hire,07/02/2024,4231962-1012,"3,740.00",AT TAXIS LTD.
Children and Young Peoples Services,Head of Education and Skills,Transport,230034,Contract Hire,07/02/2024,4231962-1015,"2,304.00",AT TAXIS LTD.
Children and Young Peoples Services,Head of Education and Skills,Transport,230006,Contract Hire,07/02/2024,4231962-F300JAN24,"2,561.00",AT TAXIS LTD.
Children and Young Peoples Services,Head of Education and Skills,Transport,230003,Contract Hire,07/02/2024,4231963-3441-JAN2024,"2,952.00",AUCKLAND TRAVEL.
Children and Young Peoples Services,Head of Education and Skills,Transport,230008,Contract Hire,07/02/2024,4231963-A) !-JAN2024,"5,250.00",AUCKLAND TRAVEL.
Children and Young Peoples Services,Head of Education and Skills,Transport,230008,Contract Hire,07/02/2024,4231963-A065JAN24,651.00,AUCKLAND TRAVEL.
Children and Young Peoples Services,Head of Education and Skills,Transport,230006,Contract Hire,07/02/2024,4231963-F363-JAN2024,"1,976.00",AUCKLAND TRAVEL.
Children and Young Peoples Services,Head of Education and Skills,Transport,230008,Contract Hire,07/02/2024,4231963-W141-JAN2024,"4,280.00",AUCKLAND TRAVEL.
Children and Young Peoples Services,Head of Education and Skills,Transport,230006,Contract Hire,07/02/2024,4231963-W161-JAN2024,"2,800.00",AUCKLAND TRAVEL.
Children and Young Peoples Services,Head of Education and Skills,Transport,230034,Contract Hire,07/02/2024,4231964-2085-0124,"3,172.36",AVALON TAXIS.
Adult and Health Services,Head of Adults,Transport,230005,Contract Hire,07/02/2024,4231966-SED-141-JANUARY,763.40,B&C YELLOWCAB TAXI`S.
Neighbourhoods and Climate Change,Environmental Services,Supplies and Services,304403,Equipment and Materials,07/02/2024,4231971-049260-WI,502.71,BENELLA AUTO ELECTRICAL SERVICES LTD T/A BENELLA COMMERCIAL.
Children and Young Peoples Services,Head of Education and Skills,Transport,230007,Contract Hire,07/02/2024,4231972-4517-JAN24,"2,408.40",BENNETTS TAXIS.
Children and Young Peoples Services,Head of Education and Skills,Transport,230034,Contract Hire,07/02/2024,4231973-4492-0124,"2,044.00",BENS TAXIS.
Children and Young Peoples Services,Head of Education and Skills,Transport,230007,Contract Hire,07/02/2024,4231973-4495-0124,"1,207.20",BENS TAXIS.
Children and Young Peoples Services,Head of Education and Skills,Transport,230006,Contract Hire,07/02/2024,4231973-F838-0124,"1,638.28",BENS TAXIS.
Regeneration Economy and Growth,Corporate Property and Land,Fees,901002,Consultants fees 901002,07/02/2024,4231975-44529,855.00,BGP CONSULTING LTD T/A BILLINGHURST GEORGE & PARTNERS.
Children and Young Peoples Services,Head of Education and Skills,Transport,230008,Contract Hire,07/02/2024,4231976-1/JAN24,"3,200.00",BH TRAVEL.
Children and Young Peoples Services,Head of Education and Skills,Transport,230012,Contract Hire,07/02/2024,4231976-REF-2,"2,625.00",BH TRAVEL.
Children and Young Peoples Services,Head of Education and Skills,Transport,230007,Contract Hire,07/02/2024,4231978-6069-JAN24,"1,439.64",BIG MAMA`S TAXI.
Children and Young Peoples Services,Head of Education and Skills,Transport,230006,Contract Hire,07/02/2024,4231978-F203,999.80,BIG MAMA`S TAXI.
Children and Young Peoples Services,Head of Education and Skills,Transport,230006,Contract Hire,07/02/2024,4231978-F320-JAN24,"1,099.78",BIG MAMA`S TAXI.
Children and Young Peoples Services,Head of Education and Skills,Transfer Payments,510034,School Children,07/02/2024,4231979-CLAPPPAUTUMN2023NIC-3,600.00,BISHOP CHADWICK CATHOLIC EDUCATION TRUST (NSCET).
Children and Young Peoples Services,Head of Education and Skills,Transfer Payments,510034,School Children,07/02/2024,4231980-CLANTPSPRING2024-1,810.00,BISHOP HOGARTH CATHOLIC EDUCATION TRUST.
Children and Young Peoples Services,Head of Education and Skills,Transfer Payments,510034,School Children,07/02/2024,4231980-CLAPPPAUTUMN2023NIC-6,600.00,BISHOP HOGARTH CATHOLIC EDUCATION TRUST.
Children and Young Peoples Services,Head of Education and Skills,Transfer Payments,510034,School Children,07/02/2024,4231981-CLAPPPAUTUMN2023NIC-7,"1,200.00",BISHOP HOGARTH CATHOLIC EDUCATION TRUST.
Regeneration Economy and Growth,Culture Sport and Tourism,Supplies and Services,338066,Services,07/02/2024,4231985-SIN049336,"74,833.75",BLOOM PROCUREMENT SERVICES LTD (FORMERLY NEPRO LTD).
Children and Young Peoples Services,Head of Education and Skills,Transport,230008,Contract Hire,07/02/2024,4231989-BZ00500,"1,215.80",BREZ`S TAXIS.
Children and Young Peoples Services,Head of Education and Skills,Transport,230008,Contract Hire,07/02/2024,4231989-BZ00501,"2,171.40",BREZ`S TAXIS.
Regeneration Economy and Growth,Culture Sport and Tourism,Supplies and Services,384199,Miscellaneous Expenses,07/02/2024,4231992-19950,"64,750.25",BROWN & ILLINGWORTH LTD.
Neighbourhoods and Climate Change,Environmental Services,Transport,210057,Repair and Maintenance of Vehicles,07/02/2024,4231994-62284446,889.98,BUCHER MUNICIPAL LTD.
Regeneration Economy and Growth,Transport and Contract Services,Construction work A908,908105,Construction work,07/02/2024,4231995-NO30625,"3,729.24",BUS SHELTERS LTD.
Adult and Health Services,Head of Adults,Supplies and Services,342053,Computers and Communications,07/02/2024,4231996-1234470,528.88,BYTES SOFTWARE SERVICES LTD.
Children and Young Peoples Services,Head of Education and Skills,Transport,230007,Contract Hire,07/02/2024,4231997-350805,"1,286.08",C & R TAXIS.
Children and Young Peoples Services,Head of Education and Skills,Transport,230008,Contract Hire,07/02/2024,4231997-W00205,"2,101.12",C & R TAXIS.
Children and Young Peoples Services,Head of Education and Skills,Transport,230008,Contract Hire,07/02/2024,4231997-W04305,"3,240.00",C & R TAXIS.
Adult and Health Services,Head of Adults,Supplies and Services,338069,Services,07/02/2024,4232000-43479880,"17,206.00",CARE QUALITY COMMISSION.
Adult and Health Services,Commissioning inc Supporting People,Third Party Payments,479101,Purchase of Care,07/02/2024,4232001-INV054231,"25,416.67",CAREHOME SELECTION LTD (CHS HEALTHCARE).
Adult and Health Services,Commissioning inc Supporting People,Third Party Payments,479101,Purchase of Care,07/02/2024,4232001-INV054232,"7,000.00",CAREHOME SELECTION LTD (CHS HEALTHCARE).
Children and Young Peoples Services,Head of Education and Skills,Construction work A908,908105,Construction work,07/02/2024,4232003-1851,"3,990.00",CASTLE KEEP SURVEYS LTD.
Children and Young Peoples Services,Head of Education and Skills,Transport,230006,Contract Hire,07/02/2024,4232004-097,840.00,CHANNER`S CABS.
Children and Young Peoples Services,Head of Education and Skills,Transport,230035,Contract Hire,07/02/2024,4232004-098,"2,000.00",CHANNER`S CABS.
Resources BK0010,Corporate Finance & Commercial Services,Supplies and Services,342055,Computers and Communications,07/02/2024,4232009-3170710,750.00,CIPFA BUSINESS LTD.
Resources BK0010,Legal & Democratic Services,Supplies and Services,338099,Services,07/02/2024,4232012-CES2400219,"19,207.81",CIVICA ELECTION SERVICES LTD.
Children and Young Peoples Services,Head of Education and Skills,Transport,230007,Contract Hire,07/02/2024,4232013-5489-KH-JAN24,"1,854.37",CJ`S EXECUTIVE TRAVEL LTD.
Children and Young Peoples Services,Head of Education and Skills,Transport,230008,Contract Hire,07/02/2024,4232013-E040-DG-JAN24,"3,200.00",CJ`S EXECUTIVE TRAVEL LTD.
Children and Young Peoples Services,Head of Education and Skills,Transport,230008,Contract Hire,07/02/2024,4232013-N049-JM-JAN24,"3,772.68",CJ`S EXECUTIVE TRAVEL LTD.
Children and Young Peoples Services,Head of Education and Skills,Transport,230008,Contract Hire,07/02/2024,4232013-N055-MS-JAN24,"3,369.60",CJ`S EXECUTIVE TRAVEL LTD.
Children and Young Peoples Services,Head of Education and Skills,Transport,230007,Contract Hire,07/02/2024,4232019-5017-0124,"6,834.06",COCHRANES T/A KELVIN TRAVEL.
Children and Young Peoples Services,Head of Education and Skills,Transport,230007,Contract Hire,07/02/2024,4232019-5039-0124,"4,970.00",COCHRANES T/A KELVIN TRAVEL.
Children and Young Peoples Services,Head of Education and Skills,Transport,230007,Contract Hire,07/02/2024,4232019-5199-0124,"5,040.00",COCHRANES T/A KELVIN TRAVEL.
Regeneration Economy and Growth,Culture Sport and Tourism,Supplies and Services,372009,Subscriptions E372,07/02/2024,4232021-UOTR5207928,"1,800.70",CONVERA UK FINANCIAL LTD.
Children and Young Peoples Services,Head of Education and Skills,Transport,230008,Contract Hire,07/02/2024,4232029-116698,941.28,CROFT BUSINESS SERVICES LTD T/A CROFT TRAVEL.
Children and Young Peoples Services,Head of Education and Skills,Transport,230034,Contract Hire,07/02/2024,4232029-117117,"1,568.40",CROFT BUSINESS SERVICES LTD T/A CROFT TRAVEL.
Children and Young Peoples Services,Head of Education and Skills,Transport,230006,Contract Hire,07/02/2024,4232029-117119,"1,531.45",CROFT BUSINESS SERVICES LTD T/A CROFT TRAVEL.
Children and Young Peoples Services,Head of Education and Skills,Transport,230008,Contract Hire,07/02/2024,4232029-117123,"3,485.01",CROFT BUSINESS SERVICES LTD T/A CROFT TRAVEL.
Children and Young Peoples Services,Head of Education and Skills,Transport,230008,Contract Hire,07/02/2024,4232029-117128,"3,010.35",CROFT BUSINESS SERVICES LTD T/A CROFT TRAVEL.
Children and Young Peoples Services,Head of Education and Skills,Transport,230008,Contract Hire,07/02/2024,4232029-117129,"3,692.01",CROFT BUSINESS SERVICES LTD T/A CROFT TRAVEL.
Children and Young Peoples Services,Head of Education and Skills,Transport,230008,Contract Hire,07/02/2024,4232029-117134,"4,176.48",CROFT BUSINESS SERVICES LTD T/A CROFT TRAVEL.
Children and Young Peoples Services,Head of Education and Skills,Transport,230008,Contract Hire,07/02/2024,4232029-117135,"2,779.16",CROFT BUSINESS SERVICES LTD T/A CROFT TRAVEL.
Children and Young Peoples Services,Head of Education and Skills,Transport,230008,Contract Hire,07/02/2024,4232029-117136,"3,763.20",CROFT BUSINESS SERVICES LTD T/A CROFT TRAVEL.
Children and Young Peoples Services,Head of Education and Skills,Transport,230008,Contract Hire,07/02/2024,4232029-N172,595.14,CROFT BUSINESS SERVICES LTD T/A CROFT TRAVEL.
Neighbourhoods and Climate Change,Environmental Services,Supplies and Services,384606,Miscellaneous Expenses,07/02/2024,4232033-RES-01-2024-243,"5,388.90",CUMBRIA ACTION FOR SUSTAINABILITY.
Neighbourhoods and Climate Change,Highways,Third Party Payments,430127,Rendered by Private Contractors,07/02/2024,4232034-INV-0306,"1,685.00",D & L HOPPS.
Children and Young Peoples Services,Head of Education and Skills,Transport,230008,Contract Hire,07/02/2024,4232035-1864,"1,600.00",DA TAXIS.
Children and Young Peoples Services,Head of Education and Skills,Transport,230009,Contract Hire,07/02/2024,4232035-1865,"2,183.15",DA TAXIS.
Children and Young Peoples Services,Head of Education and Skills,Transport,230008,Contract Hire,07/02/2024,4232035-1868,"2,256.00",DA TAXIS.
Children and Young Peoples Services,Head of Education and Skills,Transport,230003,Contract Hire,07/02/2024,4232035-622,"2,096.28",DA TAXIS.
Children and Young Peoples Services,Head of Education and Skills,Transport,230008,Contract Hire,07/02/2024,4232036-623,"2,200.00",DA TRAVEL.
Children and Young Peoples Services,Head of Education and Skills,Transport,230003,Contract Hire,07/02/2024,4232039-542/JAN24,"4,675.00",DANNY`S TRAVEL.
Children and Young Peoples Services,Head of Education and Skills,Transport,230003,Contract Hire,07/02/2024,4232039-543/JAN24,"6,375.00",DANNY`S TRAVEL.
Children and Young Peoples Services,Head of Education and Skills,Transport,230007,Contract Hire,07/02/2024,4232039-549,"5,100.00",DANNY`S TRAVEL.
Children and Young Peoples Services,Head of Education and Skills,Transport,230007,Contract Hire,07/02/2024,4232039-550,"4,232.97",DANNY`S TRAVEL.
Regeneration Economy and Growth,Planning & Housing,Third Party Payments,440999,Other third party payments E440,07/02/2024,4232040-4414633,805.00,DARLINGTON BOROUGH COUNCIL.
Children and Young Peoples Services,Head of Education and Skills,Transport,230007,Contract Hire,07/02/2024,4232042-3520-0124,"2,412.50",DAVE'S PRIVATE HIRE.
Children and Young Peoples Services,Head of Education and Skills,Transport,230008,Contract Hire,07/02/2024,4232043-3887,"2,479.00",DAVES MINIBUSES.
Children and Young Peoples Services,Head of Education and Skills,Transport,230008,Contract Hire,07/02/2024,4232043-3888,"1,899.20",DAVES MINIBUSES.
Children and Young Peoples Services,Head of Education and Skills,Transport,230008,Contract Hire,07/02/2024,4232043-3889,"2,400.00",DAVES MINIBUSES.
Children and Young Peoples Services,Head of Education and Skills,Transport,230008,Contract Hire,07/02/2024,4232043-3890,"2,180.00",DAVES MINIBUSES.
Children and Young Peoples Services,Head of Education and Skills,Transport,230008,Contract Hire,07/02/2024,4232043-3891,"2,750.58",DAVES MINIBUSES.
Neighbourhoods and Climate Change,Environmental Services,Transport,230005,Contract Hire,07/02/2024,4232050-O0614477-24,"3,069.00",DAWSONGROUP ENVIRONMENTAL MUNICIAPL CIVIL LTD (EMC).
Children and Young Peoples Services,Head of Education and Skills,Transport,230008,Contract Hire,07/02/2024,4232052-0124-001,"3,000.00",DCM TAXIS.
Neighbourhoods and Climate Change,Environmental Services,Transport,210057,Repair and Maintenance of Vehicles,07/02/2024,4232057-DE11648953,529.64,DENNIS EAGLE LTD.
Neighbourhoods and Climate Change,Environmental Services,Transport,210057,Repair and Maintenance of Vehicles,07/02/2024,4232057-DE11648958,"2,516.99",DENNIS EAGLE LTD.
Resources BK0010,Legal & Democratic Services,Supplies and Services,338042,Services,07/02/2024,4232059-386559/INVCMC606,968.75,DERE STREET BARRISTERS.
Resources BK0010,Legal & Democratic Services,Supplies and Services,338042,Services,07/02/2024,4232059-394138/INVCF513,775.00,DERE STREET BARRISTERS.
Children and Young Peoples Services,Head of Education and Skills,Transport,230006,Contract Hire,07/02/2024,4232067-005/JAN24,"1,560.00",DURHAM DALES PRIVATE HIRE.
Children and Young Peoples Services,Head of Education and Skills,Transport,230006,Contract Hire,07/02/2024,4232067-F210,"2,589.00",DURHAM DALES PRIVATE HIRE.
Children and Young Peoples Services,Head of Education and Skills,Transfer Payments,510034,School Children,07/02/2024,4232069-CLAPPPAUTUMN2023NIC-4,"1,200.00",EDEN LEARNING TRUST T/A TANFIELD SCHOOL.
Children and Young Peoples Services,Head of Education and Skills,Transport,230008,Contract Hire,07/02/2024,4232076-E55,"1,496.00",ELITE TAXIS.
Children and Young Peoples Services,Head of Education and Skills,Transport,230008,Contract Hire,07/02/2024,4232076-TO5,"2,390.00",ELITE TAXIS.
Children and Young Peoples Services,Head of Education and Skills,Transport,230007,Contract Hire,07/02/2024,4232077-5005-JAN-24,"2,065.84",ELLIOTTS OF TRIMDON.
Children and Young Peoples Services,Head of Education and Skills,Transport,230007,Contract Hire,07/02/2024,4232077-5234-JAN24,"2,556.20",ELLIOTTS OF TRIMDON.
Neighbourhoods and Climate Change,Environmental Services,Supplies and Services,338066,Services,07/02/2024,4232080-1014-28046,"4,100.00",ENERGY & COMPLIANCE TECHNOLOGY LTD T/A COMPLIANCE365.
Neighbourhoods and Climate Change,Environmental Services,Supplies and Services,338066,Services,07/02/2024,4232080-1014-28493,"1,910.00",ENERGY & COMPLIANCE TECHNOLOGY LTD T/A COMPLIANCE365.
Children and Young Peoples Services,Head of Education and Skills,Transport,230006,Contract Hire,07/02/2024,4232089-F189-005,"1,846.00",FERRYHILL VILLAGE TRAVEL & BROOM ROAD GARAGE LIMITED.
Children and Young Peoples Services,Head of Education and Skills,Transport,230008,Contract Hire,07/02/2024,4232089-N340-003-JAN24,"2,680.00",FERRYHILL VILLAGE TRAVEL & BROOM ROAD GARAGE LIMITED.
Children and Young Peoples Services,Head of Education and Skills,Transport,230008,Contract Hire,07/02/2024,4232089-W068-005,"2,691.00",FERRYHILL VILLAGE TRAVEL & BROOM ROAD GARAGE LIMITED.
Children and Young Peoples Services,Head of Education and Skills,Transport,230034,Contract Hire,07/02/2024,4232093-1001JAN,"2,000.00",FREEDOM PRIVATE HIRE.
Children and Young Peoples Services,Head of Education and Skills,Transport,230007,Contract Hire,07/02/2024,4232093-4600JAN,"1,530.00",FREEDOM PRIVATE HIRE.
Resources BK0010,Legal & Democratic Services,Supplies and Services,338025,Services,07/02/2024,4232096-378478/1172,820.00,FUNERAL PARTNERS LTD T/A JOHN BLENKIRON & SONS.
Children and Young Peoples Services,Head of Education and Skills,Transport,230007,Contract Hire,07/02/2024,4232097-103859,"1,783.11",G & P JOHNSON LTD T/A NIGHTINGALE COACHES.
Children and Young Peoples Services,Head of Education and Skills,Transport,230008,Contract Hire,07/02/2024,4232097-103860,"3,129.00",G & P JOHNSON LTD T/A NIGHTINGALE COACHES.
Children and Young Peoples Services,Head of Education and Skills,Transport,230008,Contract Hire,07/02/2024,4232097-103861,"3,918.60",G & P JOHNSON LTD T/A NIGHTINGALE COACHES.
Children and Young Peoples Services,Head of Education and Skills,Transport,230008,Contract Hire,07/02/2024,4232097-103862,"1,662.20",G & P JOHNSON LTD T/A NIGHTINGALE COACHES.
Children and Young Peoples Services,Head of Education and Skills,Transport,230008,Contract Hire,07/02/2024,4232097-103863,"3,316.80",G & P JOHNSON LTD T/A NIGHTINGALE COACHES.
Adult and Health Services,Head of Adults,Transport,230005,Contract Hire,07/02/2024,4232097-103864,"2,980.00",G & P JOHNSON LTD T/A NIGHTINGALE COACHES.
Children and Young Peoples Services,Head of Education and Skills,Transport,230007,Contract Hire,07/02/2024,4232097-103865,"1,840.00",G & P JOHNSON LTD T/A NIGHTINGALE COACHES.
Neighbourhoods and Climate Change,Highways,Supplies and Services,304357,Equipment and Materials,07/02/2024,4232099-DCCAGREED140124,"21,236.95",GAP GROUP LTD.
Neighbourhoods and Climate Change,Environmental Services,Supplies and Services,304357,Equipment and Materials,07/02/2024,4232099-DCCQUERY051123,663.85,GAP GROUP LTD.
Children and Young Peoples Services,Head of Education and Skills,Transport,230007,Contract Hire,07/02/2024,4232101-006,"1,890.00",GARY JACKSON PRIVATE HIRE.
Children and Young Peoples Services,Head of Education and Skills,Transport,230008,Contract Hire,07/02/2024,4232103-16700/2,"2,880.00",GATESHEAD CENTRAL TAXIS LTD.
Children and Young Peoples Services,Head of Education and Skills,Transport,230007,Contract Hire,07/02/2024,4232105-6489,"1,504.50",GEM TRAVEL.
Children and Young Peoples Services,Head of Education and Skills,Transport,230007,Contract Hire,07/02/2024,4232105-6490,"4,893.96",GEM TRAVEL.
Children and Young Peoples Services,Head of Early Help Inclusion & Vulnerable Children.,Employees,080025,Agency Staff,07/02/2024,4232108-2479145,"146,564.62",GEOMETRIC RESULTS INTERNATIONAL.
Neighbourhoods and Climate Change,Environmental Services,Transport,230005,Contract Hire,07/02/2024,4232112-INV00372072,"1,173.66",GO PLANT FLEET SERVICES LTD.*
Children and Young Peoples Services,Head of Education and Skills,Transport,230008,Contract Hire,07/02/2024,4232113-110/JAN-24,"3,075.00",GP TAXIS.
Regeneration Economy and Growth,Culture Sport and Tourism,Premises,145023,Cleaning and Domestic Supplies,07/02/2024,4232115-06/255244,"1,945.30",GREENHAM TRADING LTD.
Neighbourhoods and Climate Change,Highways,Third Party Payments,430100,Rendered by Private Contractors,07/02/2024,4232125-3600,"8,880.00",HIGHWAY CONSTRUCTION SERVICES LTD.
Neighbourhoods and Climate Change,Highways,Third Party Payments,430100,Rendered by Private Contractors,07/02/2024,4232125-3601,"9,291.00",HIGHWAY CONSTRUCTION SERVICES LTD.
Children and Young Peoples Services,Head of Education and Skills,Transport,230034,Contract Hire,07/02/2024,4232127-3019-JAN-24,"2,100.00",HORNDALE TAXIS.
Children and Young Peoples Services,Head of Education and Skills,Transport,230008,Contract Hire,07/02/2024,4232127-E196-JAN-24,"2,300.00",HORNDALE TAXIS.
Children and Young Peoples Services,Head of Education and Skills,Transport,230008,Contract Hire,07/02/2024,4232129-1195,"2,890.40",I & R EXECUTIVE TRAVEL.
Children and Young Peoples Services,Head of Education and Skills,Transport,230008,Contract Hire,07/02/2024,4232129-1196,"2,110.00",I & R EXECUTIVE TRAVEL.
Adult and Health Services,Head of Adults,Transport,230005,Contract Hire,07/02/2024,4232129-1197,"2,416.00",I & R EXECUTIVE TRAVEL.
Neighbourhoods and Climate Change,Highways,Stock A926,926004,Stock,07/02/2024,4232132-400052875,"3,318.61",ICL UK SALES LTD (CLEVELAND POTASH LTD).
Children and Young Peoples Services,Head of Education and Skills,Supplies and Services,375001,Private Finance Initiative,07/02/2024,4232136-ISD0429,"702,908.04",INSPIREDSPACES DURHAM (PROJECTCO1) LTD.
Children and Young Peoples Services,Head of Education and Skills,Transport,230007,Contract Hire,07/02/2024,4232138-6625,"1,020.00",J YOUNG T/A VIP TAXIS.
Children and Young Peoples Services,Head of Education and Skills,Transport,230007,Contract Hire,07/02/2024,4232138-6626,"1,308.06",J YOUNG T/A VIP TAXIS.
Children and Young Peoples Services,Head of Education and Skills,Transport,230007,Contract Hire,07/02/2024,4232138-6627,"1,512.00",J YOUNG T/A VIP TAXIS.
Children and Young Peoples Services,Head of Education and Skills,Transport,230006,Contract Hire,07/02/2024,4232138-6628,"1,288.96",J YOUNG T/A VIP TAXIS.
Children and Young Peoples Services,Head of Education and Skills,Transport,230006,Contract Hire,07/02/2024,4232138-6630,"1,646.84",J YOUNG T/A VIP TAXIS.
Neighbourhoods and Climate Change,Highways,Construction work A908,908105,Construction work,07/02/2024,4232139-28773,937.67,JACK COUPE & SONS LTD T/A COUPE LINE.
Children and Young Peoples Services,Head of Education and Skills,Transport,230008,Contract Hire,07/02/2024,4232142-2324100,"2,960.00",JD`S PRIVATE HIRE DURHAM.
Children and Young Peoples Services,Head of Education and Skills,Transport,230034,Contract Hire,07/02/2024,4232142-232480,"2,691.20",JD`S PRIVATE HIRE DURHAM.
Children and Young Peoples Services,Head of Education and Skills,Transport,230034,Contract Hire,07/02/2024,4232142-232481,"1,356.48",JD`S PRIVATE HIRE DURHAM.
Children and Young Peoples Services,Head of Education and Skills,Transport,230009,Contract Hire,07/02/2024,4232142-232482,"1,767.78",JD`S PRIVATE HIRE DURHAM.
Children and Young Peoples Services,Head of Education and Skills,Transport,230008,Contract Hire,07/02/2024,4232142-232483,"3,716.04",JD`S PRIVATE HIRE DURHAM.
Children and Young Peoples Services,Head of Education and Skills,Transport,230008,Contract Hire,07/02/2024,4232142-232484,"2,354.40",JD`S PRIVATE HIRE DURHAM.
Children and Young Peoples Services,Head of Education and Skills,Transport,230008,Contract Hire,07/02/2024,4232142-232486,"2,521.00",JD`S PRIVATE HIRE DURHAM.
Children and Young Peoples Services,Head of Education and Skills,Transport,230010,Contract Hire,07/02/2024,4232142-232495,"1,234.80",JD`S PRIVATE HIRE DURHAM.
Children and Young Peoples Services,Head of Education and Skills,Transport,230008,Contract Hire,07/02/2024,4232142-232497,"2,832.00",JD`S PRIVATE HIRE DURHAM.
Children and Young Peoples Services,Head of Education and Skills,Transport,230008,Contract Hire,07/02/2024,4232142-232498,"3,606.84",JD`S PRIVATE HIRE DURHAM.
Children and Young Peoples Services,Head of Education and Skills,Transport,230008,Contract Hire,07/02/2024,4232142-232499,"3,454.80",JD`S PRIVATE HIRE DURHAM.
Children and Young Peoples Services,Head of Education and Skills,Transport,230007,Contract Hire,07/02/2024,4232142-2324NJ,518.00,JD`S PRIVATE HIRE DURHAM.
Children and Young Peoples Services,Head of Education and Skills,Transport,230008,Contract Hire,07/02/2024,4232143-INV3315,"2,373.80",JEFF ANDERSON COACHES LTD.
Children and Young Peoples Services,Head of Education and Skills,Transport,230008,Contract Hire,07/02/2024,4232143-INV3316,"2,997.80",JEFF ANDERSON COACHES LTD.
Neighbourhoods and Climate Change,Highways,Stock A926,926900,Stock in hand-Inventory system,07/02/2024,4232153-0113/00055739,580.16,JT DOVE LTD.
Regeneration Economy and Growth,Corporate Property and Land,Supplies and Services,304221,Equipment and Materials,07/02/2024,4232153-0213/01123941,"1,014.60",JT DOVE LTD.
Children and Young Peoples Services,Head of Education and Skills,Transport,230008,Contract Hire,07/02/2024,4232156-5-JAN24,"2,773.00",KD TAXIS.
Children and Young Peoples Services,Head of Education and Skills,Transport,230006,Contract Hire,07/02/2024,4232158-4-F372,"1,114.24",KELLY`S.
Children and Young Peoples Services,Head of Education and Skills,Transport,230007,Contract Hire,07/02/2024,4232158-6,900.00,KELLY`S.
Children and Young Peoples Services,Head of Education and Skills,Transport,230008,Contract Hire,07/02/2024,4232161-A173-0124,"1,923.30",KINGSWAY CABS LTD.
Children and Young Peoples Services,Head of Education and Skills,Transport,230006,Contract Hire,07/02/2024,4232161-F338-0124,"3,180.00",KINGSWAY CABS LTD.
Children and Young Peoples Services,Head of Education and Skills,Transport,230008,Contract Hire,07/02/2024,4232161-M023-JANUARY2024,"3,694.32",KINGSWAY CABS LTD.
Children and Young Peoples Services,Head of Education and Skills,Transport,230008,Contract Hire,07/02/2024,4232161-M035-JANUARY2024,"3,570.00",KINGSWAY CABS LTD.
Children and Young Peoples Services,Head of Education and Skills,Transport,230008,Contract Hire,07/02/2024,4232161-M038-JANUARY2024,"3,900.00",KINGSWAY CABS LTD.
Children and Young Peoples Services,Head of Education and Skills,Transport,230008,Contract Hire,07/02/2024,4232161-N013-0124,"2,900.00",KINGSWAY CABS LTD.
Children and Young Peoples Services,Head of Education and Skills,Transport,230008,Contract Hire,07/02/2024,4232161-N036-JANUARY2024,"2,940.00",KINGSWAY CABS LTD.
Children and Young Peoples Services,Head of Education and Skills,Transport,230008,Contract Hire,07/02/2024,4232161-N073-JANUARY2024,"2,160.00",KINGSWAY CABS LTD.
Children and Young Peoples Services,Head of Education and Skills,Transport,230008,Contract Hire,07/02/2024,4232161-N090-JANUARY2024,"3,920.00",KINGSWAY CABS LTD.
Children and Young Peoples Services,Head of Education and Skills,Transport,230008,Contract Hire,07/02/2024,4232161-N091-JANUARY24,"2,200.00",KINGSWAY CABS LTD.
Children and Young Peoples Services,Head of Education and Skills,Transport,230008,Contract Hire,07/02/2024,4232161-N318-JANUARY24,"5,880.00",KINGSWAY CABS LTD.
Children and Young Peoples Services,Head of Education and Skills,Transport,230008,Contract Hire,07/02/2024,4232161-N345 - January 24,"1,980.00",KINGSWAY CABS LTD.
Children and Young Peoples Services,Head of Education and Skills,Transport,230010,Contract Hire,07/02/2024,4232164-BL008/JAN24,"2,071.48",LAUREN`S TAXIS.
Children and Young Peoples Services,Head of Childrens Social Care,Supplies and Services,338044,Services,07/02/2024,4232167-312123,866.60,LEXTOX.
Children and Young Peoples Services,Head of Education and Skills,Transport,230006,Contract Hire,07/02/2024,4232168-05,"5,148.00",LIMASEC LTD T/A LIMA TRANSPORT.
Neighbourhoods and Climate Change,Highways,Supplies and Services,304221,Equipment and Materials,07/02/2024,4232169-CINV-092693,765.00,LIMELIGHT SIGNS LTD.
Children and Young Peoples Services,Head of Education and Skills,Transport,230008,Contract Hire,07/02/2024,4232170-5250,"2,631.40",LINCAB TAXIS.
Children and Young Peoples Services,Head of Education and Skills,Transport,230008,Contract Hire,07/02/2024,4232170-5251,"3,682.95",LINCAB TAXIS.
Children and Young Peoples Services,Head of Education and Skills,Transfer Payments,510034,School Children,07/02/2024,4232172-CLANTPSPRING2024-7,540.00,LINGFIELD EDUCATION TRUST T/A VANE ROAD PRIMARY SCHOOL.
Children and Young Peoples Services,Head of Education and Skills,Transport,230007,Contract Hire,07/02/2024,4232186-5124JANUARY04,"1,405.44",MARK & JOHN CHISHOLM T/A (CHEVRON).
Children and Young Peoples Services,Head of Education and Skills,Transport,230007,Contract Hire,07/02/2024,4232186-5145JANUARY01,"1,276.20",MARK & JOHN CHISHOLM T/A (CHEVRON).
Children and Young Peoples Services,Head of Education and Skills,Transport,230007,Contract Hire,07/02/2024,4232186-5209JANUARY02,"1,172.88",MARK & JOHN CHISHOLM T/A (CHEVRON).
Children and Young Peoples Services,Head of Education and Skills,Transport,230007,Contract Hire,07/02/2024,4232186-5291JANUARY03,"2,212.56",MARK & JOHN CHISHOLM T/A (CHEVRON).
Children and Young Peoples Services,Head of Childrens Social Care,Premises,145009,Cleaning and Domestic Supplies,07/02/2024,4232193-P287560,955.76,MAX RECYCLE T/A THE DURHAM COMPANY (TDC).
Children and Young Peoples Services,Head of Education and Skills,Transport,230008,Contract Hire,07/02/2024,4232199-659,"2,669.94",MICKS TAXIS - MURTON.
Children and Young Peoples Services,Head of Education and Skills,Transport,230006,Contract Hire,07/02/2024,4232199-660,"1,540.00",MICKS TAXIS - MURTON.
Neighbourhoods and Climate Change,Environmental Services,Transport,230005,Contract Hire,07/02/2024,4232200-434370,547.68,MINSTER SELF DRIVE.
Neighbourhoods and Climate Change,Environmental Services,Transport,230005,Contract Hire,07/02/2024,4232247-172697,"2,505.16",ND BROWN LTD.
Neighbourhoods and Climate Change,Environmental Services,Transport,230005,Contract Hire,07/02/2024,4232247-172698,"3,100.00",ND BROWN LTD.
Children and Young Peoples Services,Head of Education and Skills,Transport,230034,Contract Hire,07/02/2024,4232248-JANUARY2024,"2,700.00",ND TAXIS.
Neighbourhoods and Climate Change,Environmental Services,Transport,210057,Repair and Maintenance of Vehicles,07/02/2024,4232249-INV96681,908.88,NE TRUCK SPARES LTD (NETS).
Adult and Health Services,Central/Other,Third Party Payments,440150,Other third party payments E440,07/02/2024,4232255-BCF/FEBRUARY2024,"1,672,011.00",NHS NORTH EAST & NORTH CUMBRIA ICB.
Children and Young Peoples Services,Head of Education and Skills,Transfer Payments,510034,School Children,07/02/2024,4232257-CLAPPPAUTUMN2023NIC-10,600.00,NORTH DURHAM ACADEMY.
Children and Young Peoples Services,Head of Education and Skills,Third Party Payments,430100,Rendered by Private Contractors,07/02/2024,4232258-4969,"11,690.25",NORTH EAST DANCE CIC.
Children and Young Peoples Services,Head of Education and Skills,Transfer Payments,510034,School Children,07/02/2024,4232259-CLAPPPAUTUMN2023NIC-2,600.00,NORTH EAST LEARNING TRUST (NELT).
Children and Young Peoples Services,Head of Education and Skills,Transfer Payments,510034,School Children,07/02/2024,4232259-CLAPPPAUTUMN2023NIC-9,600.00,NORTH EAST LEARNING TRUST (NELT).
Neighbourhoods and Climate Change,Environmental Services,Transport,230005,Contract Hire,07/02/2024,4232262-SL08008472INV,617.48,NORTHGATE VEHICLE HIRE LTD.
Neighbourhoods and Climate Change,Environmental Services,Transport,230005,Contract Hire,07/02/2024,4232262-SL08013430INV,573.78,NORTHGATE VEHICLE HIRE LTD.
Neighbourhoods and Climate Change,Environmental Services,Supplies and Services,304221,Equipment and Materials,07/02/2024,4232263-915558343,"1,188.00",NORTHUMBRIAN WATER LTD.
Neighbourhoods and Climate Change,Highways,Stock A926,926900,Stock in hand-Inventory system,07/02/2024,4232273-XL311929,"8,460.00",PARK ELECTRICAL DISTRIBUTORS LTD.
Children and Young Peoples Services,Head of Education and Skills,Third Party Payments,430100,Rendered by Private Contractors,07/02/2024,4232279-DUB,"4,826.25",PENSHAW VIEW TRAINING LTD.
Children and Young Peoples Services,Head of Education and Skills,Transport,230008,Contract Hire,07/02/2024,4232281-856,"2,559.60",PETERLEE EXECUTIVE CARS LTD.
Children and Young Peoples Services,Head of Education and Skills,Transport,230007,Contract Hire,07/02/2024,4232281-857,"2,972.60",PETERLEE EXECUTIVE CARS LTD.
Children and Young Peoples Services,Head of Education and Skills,Transport,230008,Contract Hire,07/02/2024,4232281-860,"3,000.00",PETERLEE EXECUTIVE CARS LTD.
Children and Young Peoples Services,Head of Education and Skills,Transport,230009,Contract Hire,07/02/2024,4232281-861,540.00,PETERLEE EXECUTIVE CARS LTD.
Children and Young Peoples Services,Head of Education and Skills,Transport,230007,Contract Hire,07/02/2024,4232284-5294/JAN24,"1,622.48",PETER`S TAXIS.
Children and Young Peoples Services,Head of Education and Skills,Transport,230009,Contract Hire,07/02/2024,4232284-7345/JAN24,"2,047.14",PETER`S TAXIS.
Children and Young Peoples Services,Head of Education and Skills,Transport,230006,Contract Hire,07/02/2024,4232284-F116/JAN24,"1,341.70",PETER`S TAXIS.
Adult and Health Services,Public Health CC0450,Third Party Payments,460803,Contract Payments,07/02/2024,4232288-18677/18,"5,462.92",PIONEERING CARE PARTNERSHIP.
Adult and Health Services,Public Health CC0450,Third Party Payments,460803,Contract Payments,07/02/2024,4232288-18678/18,"7,327.00",PIONEERING CARE PARTNERSHIP.
Regeneration Economy and Growth,Economic Development,Supplies and Services,352001,Conference Expenses,07/02/2024,4232292-532019,924.00,QUALSAFE.COM.
Neighbourhoods and Climate Change,Highways,Third Party Payments,430100,Rendered by Private Contractors,07/02/2024,4232293-15553,842.08,QUANTUM POWER CONNECTIONS LTD.
Neighbourhoods and Climate Change,Highways,Third Party Payments,430100,Rendered by Private Contractors,07/02/2024,4232293-15554,522.36,QUANTUM POWER CONNECTIONS LTD.
Neighbourhoods and Climate Change,Highways,Third Party Payments,430100,Rendered by Private Contractors,07/02/2024,4232293-15556,621.76,QUANTUM POWER CONNECTIONS LTD.
Neighbourhoods and Climate Change,Highways,Third Party Payments,430100,Rendered by Private Contractors,07/02/2024,4232293-15557,583.41,QUANTUM POWER CONNECTIONS LTD.
Neighbourhoods and Climate Change,Highways,Third Party Payments,430100,Rendered by Private Contractors,07/02/2024,4232293-15558,621.76,QUANTUM POWER CONNECTIONS LTD.
Children and Young Peoples Services,Head of Education and Skills,Transport,230007,Contract Hire,07/02/2024,4232299-4005-0124,"4,021.74",RAYNERS COACHES.
Children and Young Peoples Services,Head of Education and Skills,Transport,230007,Contract Hire,07/02/2024,4232299-5,"1,478.16",RAYNERS COACHES.
Neighbourhoods and Climate Change,Environmental Services,Transport,210057,Repair and Maintenance of Vehicles,07/02/2024,4232302-716510,988.32,RICKERBY LTD.
Children and Young Peoples Services,Head of Education and Skills,Transport,230008,Contract Hire,07/02/2024,4232307-001,"3,534.98",RONS TAXI (CHESTER LE ST).
Adult and Health Services,Head of Adults,Transport,230005,Contract Hire,07/02/2024,4232308-1969,"1,663.74",RON`S TAXIS (FISHBURN).
Children and Young Peoples Services,Head of Education and Skills,Transport,230006,Contract Hire,07/02/2024,4232308-1970,"2,000.00",RON`S TAXIS (FISHBURN).
Children and Young Peoples Services,Head of Education and Skills,Transport,230007,Contract Hire,07/02/2024,4232308-1971,"1,279.80",RON`S TAXIS (FISHBURN).
Children and Young Peoples Services,Head of Education and Skills,Transport,230008,Contract Hire,07/02/2024,4232308-1972,"2,800.00",RON`S TAXIS (FISHBURN).
Children and Young Peoples Services,Head of Education and Skills,Transport,230007,Contract Hire,07/02/2024,4232309-ROXDCC340JA,"7,200.00",ROXBYS BUS HIRE.
Children and Young Peoples Services,Head of Education and Skills,Transport,230008,Contract Hire,07/02/2024,4232311-S017/005,"3,292.40",S & S TRAVEL LTD.
Children and Young Peoples Services,Head of Education and Skills,Transport,230008,Contract Hire,07/02/2024,4232311-S052/05,"2,800.00",S & S TRAVEL LTD.
Children and Young Peoples Services,Head of Education and Skills,Transport,230008,Contract Hire,07/02/2024,4232311-S080/05,"2,400.00",S & S TRAVEL LTD.
Children and Young Peoples Services,Head of Education and Skills,Transport,230008,Contract Hire,07/02/2024,4232311-W011-05,"4,271.40",S & S TRAVEL LTD.
Children and Young Peoples Services,Head of Education and Skills,Transport,230006,Contract Hire,07/02/2024,4232311-W016-05,"3,960.00",S & S TRAVEL LTD.
Neighbourhoods and Climate Change,Environmental Services,Transport,210057,Repair and Maintenance of Vehicles,07/02/2024,4232316-2024.1000004027,"1,216.27",SCARAB SWEEPERS LTD.
Children and Young Peoples Services,Head of Education and Skills,Transfer Payments,510034,School Children,07/02/2024,4232322-CLANTPSPRING2024-10,540.00,SEDGEFIELD COMMUNITY COLLEGE.
Children and Young Peoples Services,Head of Education and Skills,Transport,230007,Contract Hire,07/02/2024,4232326-2069-WOODHAMACADEMY,610.00,SHAWS OF DURHAM COACH HIRE.
Children and Young Peoples Services,Head of Education and Skills,Transport,230007,Contract Hire,07/02/2024,4232328-6006-0124,"2,255.58",SHOTTON PRIVATE HIRE.
Children and Young Peoples Services,Head of Education and Skills,Transport,230012,Contract Hire,07/02/2024,4232328-S023-0124,"3,141.06",SHOTTON PRIVATE HIRE.
Children and Young Peoples Services,Head of Education and Skills,Transport,230010,Contract Hire,07/02/2024,4232332-3570,"1,160.00",SIMONS TAXIS.
Children and Young Peoples Services,Head of Education and Skills,Transport,230008,Contract Hire,07/02/2024,4232332-3571,"1,830.00",SIMONS TAXIS.
Children and Young Peoples Services,Head of Education and Skills,Transport,230007,Contract Hire,07/02/2024,4232332-3772,"1,843.00",SIMONS TAXIS.
Neighbourhoods and Climate Change,Environmental Services,Supplies and Services,338027,Services,07/02/2024,4232338-0001078257,"1,295.00",SOCOTEC UK LTD.
Children and Young Peoples Services,Head of Education and Skills,Third Party Payments,430100,Rendered by Private Contractors,07/02/2024,4232341-2324-COM04,"2,145.00",SPORTSCAPE TRAINING LTD.
Children and Young Peoples Services,Head of Education and Skills,Third Party Payments,430100,Rendered by Private Contractors,07/02/2024,4232341-2324-Y2-COM02,"10,296.00",SPORTSCAPE TRAINING LTD.
Regeneration Economy and Growth,Business Durham,Supplies and Services,338078,Services,07/02/2024,4232342-SSG/786/16195,"8,624.00",SSG SUPPORT SERVICES GROUP LTD.
Regeneration Economy and Growth,Corporate Property and Land,Third Party Payments,430100,Rendered by Private Contractors,07/02/2024,4232343-8943,913.00,ST ASTIER LTD.
Regeneration Economy and Growth,Corporate Property and Land,Third Party Payments,430100,Rendered by Private Contractors,07/02/2024,4232343-8945,524.00,ST ASTIER LTD.
Regeneration Economy and Growth,Corporate Property and Land,Third Party Payments,430100,Rendered by Private Contractors,07/02/2024,4232343-8949,"35,925.00",ST ASTIER LTD.
Children and Young Peoples Services,Head of Education and Skills,Transport,230008,Contract Hire,07/02/2024,4232344-0048,"1,944.00",STARGATE TAXIS.
Children and Young Peoples Services,Head of Education and Skills,Transport,230008,Contract Hire,07/02/2024,4232344-0049,"2,628.00",STARGATE TAXIS.
Children and Young Peoples Services,Head of Education and Skills,Transport,230006,Contract Hire,07/02/2024,4232344-0050,"2,970.00",STARGATE TAXIS.
Neighbourhoods and Climate Change,Highways,Supplies and Services,338027,Services,07/02/2024,4232356-652422281,"14,160.00",SWECO UK LTD.
Neighbourhoods and Climate Change,Highways,Supplies and Services,338027,Services,07/02/2024,4232356-652433381,"14,160.00",SWECO UK LTD.
Neighbourhoods and Climate Change,Highways,Supplies and Services,338027,Services,07/02/2024,4232356-652433382,"8,450.00",SWECO UK LTD.
Regeneration Economy and Growth,Corporate Property and Land,Supplies and Services,304221,Equipment and Materials,07/02/2024,4232357-148019,"1,576.84",SWITCHSHOP LTD.
Children and Young Peoples Services,Head of Education and Skills,Transport,230008,Contract Hire,07/02/2024,4232360-01-2024-001,"2,269.86",TARNS TAXIS LTD.
Children and Young Peoples Services,Head of Education and Skills,Transport,230007,Contract Hire,07/02/2024,4232361-DCC/2023/39,"2,844.00",TAYLOR`S TAXIS.
Children and Young Peoples Services,Head of Education and Skills,Transport,230007,Contract Hire,07/02/2024,4232361-DCC/2023/40,"1,549.98",TAYLOR`S TAXIS.
Children and Young Peoples Services,Head of Education and Skills,Transport,230008,Contract Hire,07/02/2024,4232361-DCC/2023/42,"3,317.30",TAYLOR`S TAXIS.
Children and Young Peoples Services,Head of Education and Skills,Transport,230008,Contract Hire,07/02/2024,4232361-DCC/2023/43,"3,966.06",TAYLOR`S TAXIS.
Children and Young Peoples Services,Head of Education and Skills,Transport,230008,Contract Hire,07/02/2024,4232364-A067-JAN,"2,682.00",TERRY'S TAXIS (SEAHAM).
Regeneration Economy and Growth,Planning & Housing,Supplies and Services,384199,Miscellaneous Expenses,07/02/2024,4232367-1073454,"27,500.00",THE CYRENIANS LTD T/A CHANGING LIVES.
Dedicated Schools Grant BG0015,DSG Schools Block,Supplies and Services,384199,Miscellaneous Expenses,07/02/2024,4232368-INV00158496,805.00,THE KEY SUPPORT SERVICES LTD.
Adult and Health Services,Head of Adults,Transport,230005,Contract Hire,07/02/2024,4232370-260,"1,156.00",THE TAXI COMPANY (MURTON) LTD.
Regeneration Economy and Growth,Culture Sport and Tourism,Supplies and Services,384199,Miscellaneous Expenses,07/02/2024,4232373-INV-0577,"2,532.00",THINKING DIGITAL LTD.
Neighbourhoods and Climate Change,Highways,Stock A926,926900,Stock in hand-Inventory system,07/02/2024,4232375-NSIN00107302,627.90,THOMAS OWEN & SONS (NEWCASTLE) LTD.
Adult and Health Services,Head of Adults,Transport,230005,Contract Hire,07/02/2024,4232381-2/JAN24,762.42,TONYS TAXIS (J BIRCH).
Children and Young Peoples Services,Head of Education and Skills,Transport,230006,Contract Hire,07/02/2024,4232381-REF 1,"4,200.00",TONYS TAXIS (J BIRCH).
Neighbourhoods and Climate Change,Environmental Services,Supplies and Services,304252,Equipment and Materials,07/02/2024,4232383-12025215,795.00,TQ ENVIRONMENTAL LTD.
Neighbourhoods and Climate Change,Environmental Services,Supplies and Services,304252,Equipment and Materials,07/02/2024,4232383-12025216,"1,700.00",TQ ENVIRONMENTAL LTD.
Children and Young Peoples Services,Head of Education and Skills,Transport,230008,Contract Hire,07/02/2024,4232385-A205JAN24,"3,362.94",TRAVEL 6.
Resources BK0010,Legal & Democratic Services,Supplies and Services,338042,Services,07/02/2024,4232386-310034/INVRSH187,720.00,TRINITY CHAMBERS.
Neighbourhoods and Climate Change,Environmental Services,Transport,230720,Contract Hire,07/02/2024,4232387-ML/0047356/01,721.82,TRIPLE POINT LEASE PARTNERS.
Neighbourhoods and Climate Change,Highways,Supplies and Services,304221,Equipment and Materials,07/02/2024,4232388-255689,"1,453.00",TYNEDALE ROADSTONE LTD.
Neighbourhoods and Climate Change,Highways,Supplies and Services,304221,Equipment and Materials,07/02/2024,4232388-255691,872.45,TYNEDALE ROADSTONE LTD.
Neighbourhoods and Climate Change,Highways,Supplies and Services,304221,Equipment and Materials,07/02/2024,4232388-255693,"1,491.75",TYNEDALE ROADSTONE LTD.
Neighbourhoods and Climate Change,Environmental Services,Supplies and Services,342215,Computers and Communications,07/02/2024,4232391-57661,"4,086.21",UK TELEMATICS LTD.
Children and Young Peoples Services,Head of Childrens Social Care,Third Party Payments,440046,Other third party payments E440,07/02/2024,4232393-INV-1426,"6,367.50",VELOX HEALTHCARE LTD.
Children and Young Peoples Services,Head of Childrens Social Care,Supplies and Services,338089,Services,07/02/2024,4232396-4,650.00,VOT TRAINING.
Neighbourhoods and Climate Change,Highways,Supplies and Services,304221,Equipment and Materials,07/02/2024,4232397-29743,576.00,WARD TIMBER LTD.
Regeneration Economy and Growth,Corporate Property and Land,Supplies and Services,338066,Services,07/02/2024,4232398-NT67602,625.00,WARDELL ARMSTRONG LLP.
Dedicated Schools Grant BG0015,DSG High Needs Block,Third Party Payments,486020,Service level agreements E486,07/02/2024,4232400-INV-7524,650.00,WE CARE RECRUITMENT SOLUTIONS LTD.
Dedicated Schools Grant BG0015,DSG High Needs Block,Third Party Payments,486020,Service level agreements E486,07/02/2024,4232400-INV-7586,650.00,WE CARE RECRUITMENT SOLUTIONS LTD.
Children and Young Peoples Services,Head of Education and Skills,Transport,230007,Contract Hire,07/02/2024,4232401-19592,"4,550.20",WEARDALE MOTOR SERVICES LTD.
Children and Young Peoples Services,Head of Education and Skills,Transport,230007,Contract Hire,07/02/2024,4232401-19593,"4,858.92",WEARDALE MOTOR SERVICES LTD.
Children and Young Peoples Services,Head of Education and Skills,Transport,230007,Contract Hire,07/02/2024,4232401-19594,"3,861.00",WEARDALE MOTOR SERVICES LTD.
Children and Young Peoples Services,Head of Education and Skills,Transport,230007,Contract Hire,07/02/2024,4232402-7841,"3,106.44",WEARDALE PRIVATE HIRE.
Children and Young Peoples Services,Head of Education and Skills,Transport,230007,Contract Hire,07/02/2024,4232402-7842,"4,735.50",WEARDALE PRIVATE HIRE.
Children and Young Peoples Services,Head of Education and Skills,Transport,230008,Contract Hire,07/02/2024,4232402-7848,"5,113.10",WEARDALE PRIVATE HIRE.
Children and Young Peoples Services,Head of Education and Skills,Transport,230008,Contract Hire,07/02/2024,4232402-7849,"3,528.00",WEARDALE PRIVATE HIRE.
Children and Young Peoples Services,Head of Education and Skills,Transport,230008,Contract Hire,07/02/2024,4232404-WESTLEA310124,"2,993.97",WESTLEA TAXIS.
Regeneration Economy and Growth,Corporate Property and Land,Supplies and Services,338045,Services,07/02/2024,4232409-3767140,508.30,WOMBLE BOND DICKINSON (UK) LLP.
Children and Young Peoples Services,Head of Education and Skills,Transport,230006,Contract Hire,07/02/2024,4231947-94,"3,275.00",REDACTED - PAYMENT TO INDIVIDUAL
Children and Young Peoples Services,Head of Education and Skills,Transport,230008,Contract Hire,07/02/2024,4231947-95,"3,390.00",REDACTED - PAYMENT TO INDIVIDUAL
Adult and Health Services,Head of Adults,Transport,230005,Contract Hire,07/02/2024,4231950-4/JAN24,765.00,REDACTED - PAYMENT TO INDIVIDUAL
Children and Young Peoples Services,Head of Education and Skills,Transport,230034,Contract Hire,07/02/2024,4231953-01965,"2,684.43",REDACTED - PAYMENT TO INDIVIDUAL
Children and Young Peoples Services,Head of Education and Skills,Transport,230007,Contract Hire,07/02/2024,4231953-01968,"1,520.00",REDACTED - PAYMENT TO INDIVIDUAL
Children and Young Peoples Services,Head of Education and Skills,Transport,230006,Contract Hire,07/02/2024,4231953-01990,"3,474.00",REDACTED - PAYMENT TO INDIVIDUAL
Children and Young Peoples Services,Head of Education and Skills,Transport,230008,Contract Hire,07/02/2024,4231953-01998,"3,026.00",REDACTED - PAYMENT TO INDIVIDUAL
Children and Young Peoples Services,Head of Education and Skills,Transport,230008,Contract Hire,07/02/2024,4231953-01999,"2,626.16",REDACTED - PAYMENT TO INDIVIDUAL
Children and Young Peoples Services,Head of Education and Skills,Transport,230006,Contract Hire,07/02/2024,4231953-02001,"2,068.00",REDACTED - PAYMENT TO INDIVIDUAL
Children and Young Peoples Services,Head of Education and Skills,Transport,230008,Contract Hire,07/02/2024,4231998-BIL0330,"3,546.00",REDACTED - PAYMENT TO INDIVIDUAL
Children and Young Peoples Services,Head of Education and Skills,Transport,230007,Contract Hire,07/02/2024,4232007-47865,"4,760.00",REDACTED - PAYMENT TO INDIVIDUAL
Children and Young Peoples Services,Head of Education and Skills,Transport,230034,Contract Hire,07/02/2024,4232008-5289-27,"3,457.98",REDACTED - PAYMENT TO INDIVIDUAL
Adult and Health Services,Head of Adults,Transport,230005,Contract Hire,07/02/2024,4232008-EAS197-17,660.00,REDACTED - PAYMENT TO INDIVIDUAL
Children and Young Peoples Services,Head of Education and Skills,Transport,230008,Contract Hire,07/02/2024,4232014-INV-112,"2,520.00",REDACTED - PAYMENT TO INDIVIDUAL
Children and Young Peoples Services,Head of Education and Skills,Transport,230007,Contract Hire,07/02/2024,4232041-INV-0217,"4,264.00",REDACTED - PAYMENT TO INDIVIDUAL
Children and Young Peoples Services,Head of Education and Skills,Transport,230007,Contract Hire,07/02/2024,4232041-INV-0218,"2,880.00",REDACTED - PAYMENT TO INDIVIDUAL
Children and Young Peoples Services,Head of Education and Skills,Transport,230006,Contract Hire,07/02/2024,4232044-F119/JAN-23,"5,030.71",REDACTED - PAYMENT TO INDIVIDUAL
Children and Young Peoples Services,Head of Education and Skills,Transport,230008,Contract Hire,07/02/2024,4232045-5-JAN24,"2,619.00",REDACTED - PAYMENT TO INDIVIDUAL
Children and Young Peoples Services,Head of Education and Skills,Transport,230008,Contract Hire,07/02/2024,4232046-05-JAN24,"2,835.00",REDACTED - PAYMENT TO INDIVIDUAL
Children and Young Peoples Services,Head of Education and Skills,Transport,230008,Contract Hire,07/02/2024,4232047-0107,"3,514.20",REDACTED - PAYMENT TO INDIVIDUAL
Children and Young Peoples Services,Head of Education and Skills,Transport,230006,Contract Hire,07/02/2024,4232048-F132/JAN24,"1,983.00",REDACTED - PAYMENT TO INDIVIDUAL
Children and Young Peoples Services,Head of Education and Skills,Transport,230034,Contract Hire,07/02/2024,4232053-DTS6005/01/24,"2,512.65",REDACTED - PAYMENT TO INDIVIDUAL
Children and Young Peoples Services,Head of Education and Skills,Transport,230010,Contract Hire,07/02/2024,4232053-DTSB060/01/24,"3,164.72",REDACTED - PAYMENT TO INDIVIDUAL
Children and Young Peoples Services,Head of Education and Skills,Transport,230006,Contract Hire,07/02/2024,4232098-18-JAN24,"3,813.42",REDACTED - PAYMENT TO INDIVIDUAL
Children and Young Peoples Services,Head of Education and Skills,Transport,230004,Contract Hire,07/02/2024,4232100-F191-01-05,"2,008.37",REDACTED - PAYMENT TO INDIVIDUAL
Children and Young Peoples Services,Head of Education and Skills,Transport,230006,Contract Hire,07/02/2024,4232100-F379-01-03,523.16,REDACTED - PAYMENT TO INDIVIDUAL
Children and Young Peoples Services,Head of Education and Skills,Transport,230006,Contract Hire,07/02/2024,4232118-0005/JANUARY2024,"2,017.04",REDACTED - PAYMENT TO INDIVIDUAL
Children and Young Peoples Services,Head of Education and Skills,Transport,230007,Contract Hire,07/02/2024,4232130-4409-JAN24,"1,581.51",REDACTED - PAYMENT TO INDIVIDUAL
Children and Young Peoples Services,Head of Education and Skills,Transport,230006,Contract Hire,07/02/2024,4232130-F896-JAN24,"2,238.12",REDACTED - PAYMENT TO INDIVIDUAL
Children and Young Peoples Services,Head of Education and Skills,Transport,230010,Contract Hire,07/02/2024,4232131-B011-0124,"4,545.85",REDACTED - PAYMENT TO INDIVIDUAL
Children and Young Peoples Services,Head of Education and Skills,Transport,230008,Contract Hire,07/02/2024,4232140-HWA03,"2,641.76",REDACTED - PAYMENT TO INDIVIDUAL
Children and Young Peoples Services,Head of Education and Skills,Transport,230006,Contract Hire,07/02/2024,4232140-PA05,"2,500.00",REDACTED - PAYMENT TO INDIVIDUAL
Adult and Health Services,Head of Adults,Transport,230005,Contract Hire,07/02/2024,4232148-01012024,"1,515.12",REDACTED - PAYMENT TO INDIVIDUAL
Children and Young Peoples Services,Head of Education and Skills,Transport,230034,Contract Hire,07/02/2024,4232149-335,"2,278.50",REDACTED - PAYMENT TO INDIVIDUAL
Children and Young Peoples Services,Head of Education and Skills,Transport,230010,Contract Hire,07/02/2024,4232149-336,"3,996.65",REDACTED - PAYMENT TO INDIVIDUAL
Children and Young Peoples Services,Head of Education and Skills,Transport,230006,Contract Hire,07/02/2024,4232160-CTD0005/2024,700.00,REDACTED - PAYMENT TO INDIVIDUAL
Children and Young Peoples Services,Head of Education and Skills,Transport,230007,Contract Hire,07/02/2024,4232160-CTD0027/24,"1,601.10",REDACTED - PAYMENT TO INDIVIDUAL
Children and Young Peoples Services,Head of Education and Skills,Transport,230008,Contract Hire,07/02/2024,4232166-0139,"3,906.00",REDACTED - PAYMENT TO INDIVIDUAL
Children and Young Peoples Services,Head of Education and Skills,Transport,230008,Contract Hire,07/02/2024,4232184-26-JAN24,"2,567.88",REDACTED - PAYMENT TO INDIVIDUAL
Children and Young Peoples Services,Head of Education and Skills,Transport,230034,Contract Hire,07/02/2024,4232187-00001JAN,"1,554.00",REDACTED - PAYMENT TO INDIVIDUAL
Children and Young Peoples Services,Head of Education and Skills,Transport,230034,Contract Hire,07/02/2024,4232188-310124-1009,"2,670.00",REDACTED - PAYMENT TO INDIVIDUAL
Children and Young Peoples Services,Head of Education and Skills,Transport,230006,Contract Hire,07/02/2024,4232188-310124-JAN24,"3,040.00",REDACTED - PAYMENT TO INDIVIDUAL
Children and Young Peoples Services,Head of Education and Skills,Transport,230008,Contract Hire,07/02/2024,4232189-KC-4018/JAN24,678.20,REDACTED - PAYMENT TO INDIVIDUAL
Children and Young Peoples Services,Head of Education and Skills,Transport,230008,Contract Hire,07/02/2024,4232189-KC-4019,"2,600.00",REDACTED - PAYMENT TO INDIVIDUAL
Children and Young Peoples Services,Head of Education and Skills,Transport,230009,Contract Hire,07/02/2024,4232189-KC4017,"1,087.20",REDACTED - PAYMENT TO INDIVIDUAL
Children and Young Peoples Services,Head of Education and Skills,Transport,230008,Contract Hire,07/02/2024,4232189-KC4021,"4,264.40",REDACTED - PAYMENT TO INDIVIDUAL
Children and Young Peoples Services,Head of Education and Skills,Transport,230008,Contract Hire,07/02/2024,4232189-KW4020,"3,417.10",REDACTED - PAYMENT TO INDIVIDUAL
Children and Young Peoples Services,Head of Education and Skills,Transport,230008,Contract Hire,07/02/2024,4232190-0152,"3,282.93",REDACTED - PAYMENT TO INDIVIDUAL
Children and Young Peoples Services,Head of Education and Skills,Transport,230008,Contract Hire,07/02/2024,4232190-0153,"2,940.00",REDACTED - PAYMENT TO INDIVIDUAL
Children and Young Peoples Services,Head of Education and Skills,Transport,230010,Contract Hire,07/02/2024,4232190-0154,"2,340.00",REDACTED - PAYMENT TO INDIVIDUAL
Children and Young Peoples Services,Head of Education and Skills,Transport,230008,Contract Hire,07/02/2024,4232196-A011/0124,"4,953.18",REDACTED - PAYMENT TO INDIVIDUAL
Children and Young Peoples Services,Head of Education and Skills,Transport,230035,Contract Hire,07/02/2024,4232198-302,"2,660.00",REDACTED - PAYMENT TO INDIVIDUAL
Children and Young Peoples Services,Head of Education and Skills,Transport,230008,Contract Hire,07/02/2024,4232201-KDC-10102024,"2,114.46",REDACTED - PAYMENT TO INDIVIDUAL
Children and Young Peoples Services,Head of Education and Skills,Transport,230006,Contract Hire,07/02/2024,4232204-801/JAN24,"3,740.00",REDACTED - PAYMENT TO INDIVIDUAL
Children and Young Peoples Services,Head of Education and Skills,Transport,230034,Contract Hire,07/02/2024,4232206-264,"4,366.00",REDACTED - PAYMENT TO INDIVIDUAL
Children and Young Peoples Services,Head of Education and Skills,Transport,230009,Contract Hire,07/02/2024,4232207-7383-0124,"1,494.36",REDACTED - PAYMENT TO INDIVIDUAL
Children and Young Peoples Services,Head of Education and Skills,Transport,230008,Contract Hire,07/02/2024,4232207-CRFOT1-01-24,"2,097.20",REDACTED - PAYMENT TO INDIVIDUAL
Children and Young Peoples Services,Head of Education and Skills,Transport,230008,Contract Hire,07/02/2024,4232207-THPK-01-24,"3,139.00",REDACTED - PAYMENT TO INDIVIDUAL
Children and Young Peoples Services,Head of Education and Skills,Transport,230008,Contract Hire,07/02/2024,4232208-E110-JAN24,"1,960.20",REDACTED - PAYMENT TO INDIVIDUAL
Children and Young Peoples Services,Head of Education and Skills,Transport,230008,Contract Hire,07/02/2024,4232209-W014-012024,"3,016.88",REDACTED - PAYMENT TO INDIVIDUAL
Children and Young Peoples Services,Head of Education and Skills,Transport,230007,Contract Hire,07/02/2024,4232210-STLEONARDS-JAN-212024,969.00,REDACTED - PAYMENT TO INDIVIDUAL
Children and Young Peoples Services,Head of Education and Skills,Transport,230008,Contract Hire,07/02/2024,4232211-40-W083,"4,000.00",REDACTED - PAYMENT TO INDIVIDUAL
Children and Young Peoples Services,Head of Education and Skills,Transport,230008,Contract Hire,07/02/2024,4232212-A022-JAN24,"3,560.00",REDACTED - PAYMENT TO INDIVIDUAL
Children and Young Peoples Services,Head of Education and Skills,Transport,230008,Contract Hire,07/02/2024,4232212-A072-0124,"3,222.00",REDACTED - PAYMENT TO INDIVIDUAL
Children and Young Peoples Services,Head of Education and Skills,Transport,230008,Contract Hire,07/02/2024,4232212-E038-JAN24,"3,111.15",REDACTED - PAYMENT TO INDIVIDUAL
Children and Young Peoples Services,Head of Education and Skills,Transport,230008,Contract Hire,07/02/2024,4232212-E080-JAN24,"3,572.60",REDACTED - PAYMENT TO INDIVIDUAL
Children and Young Peoples Services,Head of Education and Skills,Transport,230006,Contract Hire,07/02/2024,4232213-F803PS,891.20,REDACTED - PAYMENT TO INDIVIDUAL
Children and Young Peoples Services,Head of Education and Skills,Transport,230008,Contract Hire,07/02/2024,4232214-W008-0124,"3,150.00",REDACTED - PAYMENT TO INDIVIDUAL
Children and Young Peoples Services,Head of Education and Skills,Transport,230009,Contract Hire,07/02/2024,4232215-7010-JANUARY,"2,071.65",REDACTED - PAYMENT TO INDIVIDUAL
Children and Young Peoples Services,Head of Education and Skills,Transport,230006,Contract Hire,07/02/2024,4232215-F340,"2,244.75",REDACTED - PAYMENT TO INDIVIDUAL
Children and Young Peoples Services,Head of Education and Skills,Transport,230006,Contract Hire,07/02/2024,4232215-F367-JANUARY24,"2,394.00",REDACTED - PAYMENT TO INDIVIDUAL
Children and Young Peoples Services,Head of Education and Skills,Transport,230006,Contract Hire,07/02/2024,4232215-F882-JANUARY,"1,962.23",REDACTED - PAYMENT TO INDIVIDUAL
Children and Young Peoples Services,Head of Education and Skills,Transport,230006,Contract Hire,07/02/2024,4232216-F323-JAN24,"2,829.21",REDACTED - PAYMENT TO INDIVIDUAL
Children and Young Peoples Services,Head of Education and Skills,Transport,230010,Contract Hire,07/02/2024,4232218-B041-0124,"4,209.45",REDACTED - PAYMENT TO INDIVIDUAL
Children and Young Peoples Services,Head of Education and Skills,Transport,230008,Contract Hire,07/02/2024,4232219-A172-JANUARY24,"2,430.00",REDACTED - PAYMENT TO INDIVIDUAL
Children and Young Peoples Services,Head of Education and Skills,Transport,230006,Contract Hire,07/02/2024,4232219-N342-JANUARY24,"2,520.00",REDACTED - PAYMENT TO INDIVIDUAL
Children and Young Peoples Services,Head of Education and Skills,Transport,230008,Contract Hire,07/02/2024,4232219-W055-JANUARY24,"5,800.00",REDACTED - PAYMENT TO INDIVIDUAL
Children and Young Peoples Services,Head of Education and Skills,Transport,230034,Contract Hire,07/02/2024,4232221-4512-JAN24,"2,380.00",REDACTED - PAYMENT TO INDIVIDUAL
Children and Young Peoples Services,Head of Education and Skills,Transport,230007,Contract Hire,07/02/2024,4232221-7380-JAN24,"2,674.98",REDACTED - PAYMENT TO INDIVIDUAL
Children and Young Peoples Services,Head of Education and Skills,Transport,230010,Contract Hire,07/02/2024,4232221-BL004-JAN24,"2,455.08",REDACTED - PAYMENT TO INDIVIDUAL
Children and Young Peoples Services,Head of Education and Skills,Transport,230006,Contract Hire,07/02/2024,4232221-F343-JAN24,"2,919.00",REDACTED - PAYMENT TO INDIVIDUAL
Children and Young Peoples Services,Head of Education and Skills,Transport,230034,Contract Hire,07/02/2024,4232222-RCL-2416,"2,709.00",REDACTED - PAYMENT TO INDIVIDUAL
Children and Young Peoples Services,Head of Education and Skills,Transport,230008,Contract Hire,07/02/2024,4232222-RCL-2417,"2,250.00",REDACTED - PAYMENT TO INDIVIDUAL
Children and Young Peoples Services,Head of Education and Skills,Transport,230006,Contract Hire,07/02/2024,4232222-RCL-2418,"3,802.38",REDACTED - PAYMENT TO INDIVIDUAL
Children and Young Peoples Services,Head of Education and Skills,Transport,230008,Contract Hire,07/02/2024,4232223-584,"3,108.00",REDACTED - PAYMENT TO INDIVIDUAL
Children and Young Peoples Services,Head of Education and Skills,Transport,230006,Contract Hire,07/02/2024,4232223-585,"5,000.00",REDACTED - PAYMENT TO INDIVIDUAL
Children and Young Peoples Services,Head of Education and Skills,Transport,230008,Contract Hire,07/02/2024,4232223-586,"2,500.00",REDACTED - PAYMENT TO INDIVIDUAL
Children and Young Peoples Services,Head of Education and Skills,Transport,230008,Contract Hire,07/02/2024,4232223-588,"2,742.18",REDACTED - PAYMENT TO INDIVIDUAL
Children and Young Peoples Services,Head of Education and Skills,Transport,230008,Contract Hire,07/02/2024,4232223-590,"3,150.00",REDACTED - PAYMENT TO INDIVIDUAL
Children and Young Peoples Services,Head of Education and Skills,Transport,230006,Contract Hire,07/02/2024,4232224-N120JAN,"4,000.00",REDACTED - PAYMENT TO INDIVIDUAL
Children and Young Peoples Services,Head of Education and Skills,Transport,230034,Contract Hire,07/02/2024,4232225-4501JAN24,"3,238.92",REDACTED - PAYMENT TO INDIVIDUAL
Children and Young Peoples Services,Head of Education and Skills,Transport,230006,Contract Hire,07/02/2024,4232225-F341JAN24,"1,762.50",REDACTED - PAYMENT TO INDIVIDUAL
Children and Young Peoples Services,Head of Education and Skills,Transport,230006,Contract Hire,07/02/2024,4232226-F121 JANUARY,"1,939.41",REDACTED - PAYMENT TO INDIVIDUAL
Children and Young Peoples Services,Head of Education and Skills,Transport,230008,Contract Hire,07/02/2024,4232227-A044/JANUARY,"1,944.00",REDACTED - PAYMENT TO INDIVIDUAL
Children and Young Peoples Services,Head of Education and Skills,Transport,230008,Contract Hire,07/02/2024,4232228-A222/JAN24,"1,980.00",REDACTED - PAYMENT TO INDIVIDUAL
Children and Young Peoples Services,Head of Education and Skills,Transport,230034,Contract Hire,07/02/2024,4232229-GUIS0124,"3,582.00",REDACTED - PAYMENT TO INDIVIDUAL
Children and Young Peoples Services,Head of Education and Skills,Transport,230010,Contract Hire,07/02/2024,4232230-5/JAN24,"4,846.94",REDACTED - PAYMENT TO INDIVIDUAL
Children and Young Peoples Services,Head of Education and Skills,Supplies and Services,338027,Services,07/02/2024,4232241-0038,550.00,REDACTED - PAYMENT TO INDIVIDUAL
Children and Young Peoples Services,Head of Education and Skills,Transport,230008,Contract Hire,07/02/2024,4232250-105,"1,980.00",REDACTED - PAYMENT TO INDIVIDUAL
Children and Young Peoples Services,Head of Education and Skills,Transport,230007,Contract Hire,07/02/2024,4232252-5421,"1,927.80",REDACTED - PAYMENT TO INDIVIDUAL
Children and Young Peoples Services,Head of Education and Skills,Transport,230034,Contract Hire,07/02/2024,4232274-SC-305-JAN24,"2,994.72",REDACTED - PAYMENT TO INDIVIDUAL
Regeneration Economy and Growth,Culture Sport and Tourism,Third Party Payments,430131,Rendered by Private Contractors,07/02/2024,4232275-0009,562.50,REDACTED - PAYMENT TO INDIVIDUAL
Children and Young Peoples Services,Head of Education and Skills,Transport,230007,Contract Hire,07/02/2024,4232280-1154-JAN24,"1,249.50",REDACTED - PAYMENT TO INDIVIDUAL
Children and Young Peoples Services,Head of Education and Skills,Transport,230010,Contract Hire,07/02/2024,4232280-B055-JAN24,"4,204.20",REDACTED - PAYMENT TO INDIVIDUAL
Children and Young Peoples Services,Head of Education and Skills,Transport,230008,Contract Hire,07/02/2024,4232280-N032-JAN24,"2,064.00",REDACTED - PAYMENT TO INDIVIDUAL
Children and Young Peoples Services,Head of Education and Skills,Transport,230006,Contract Hire,07/02/2024,4232285-105,"4,320.00",REDACTED - PAYMENT TO INDIVIDUAL
Children and Young Peoples Services,Head of Education and Skills,Transport,230034,Contract Hire,07/02/2024,4232297-007JAN2024,"3,910.20",REDACTED - PAYMENT TO INDIVIDUAL
Children and Young Peoples Services,Head of Education and Skills,Transport,230008,Contract Hire,07/02/2024,4232298-120,"2,511.00",REDACTED - PAYMENT TO INDIVIDUAL
Children and Young Peoples Services,Head of Education and Skills,Transport,230006,Contract Hire,07/02/2024,4232298-121,"1,908.00",REDACTED - PAYMENT TO INDIVIDUAL
Children and Young Peoples Services,Head of Education and Skills,Transport,230004,Contract Hire,07/02/2024,4232298-122,"1,908.00",REDACTED - PAYMENT TO INDIVIDUAL
Children and Young Peoples Services,Head of Education and Skills,Transport,230035,Contract Hire,07/02/2024,4232298-123,"2,460.50",REDACTED - PAYMENT TO INDIVIDUAL
Children and Young Peoples Services,Head of Education and Skills,Transport,230006,Contract Hire,07/02/2024,4232325-JAN2024-000005,"2,281.25",REDACTED - PAYMENT TO INDIVIDUAL
Children and Young Peoples Services,Head of Education and Skills,Transport,230006,Contract Hire,07/02/2024,4232325-JANUARY2024-000005,875.02,REDACTED - PAYMENT TO INDIVIDUAL
Children and Young Peoples Services,Head of Education and Skills,Transport,230006,Contract Hire,07/02/2024,4232331-000037-JAN24,"2,203.20",REDACTED - PAYMENT TO INDIVIDUAL
Children and Young Peoples Services,Head of Education and Skills,Transport,230007,Contract Hire,07/02/2024,4232345-5290-0124,"1,347.30",REDACTED - PAYMENT TO INDIVIDUAL
Children and Young Peoples Services,Head of Education and Skills,Transport,230007,Contract Hire,07/02/2024,4232346-2058-JAN24,"5,310.00",REDACTED - PAYMENT TO INDIVIDUAL
Children and Young Peoples Services,Head of Education and Skills,Transport,230007,Contract Hire,07/02/2024,4232346-2059-JAN24,"7,500.00",REDACTED - PAYMENT TO INDIVIDUAL
Children and Young Peoples Services,Head of Education and Skills,Transport,230008,Contract Hire,07/02/2024,4232347-01984,"2,400.00",REDACTED - PAYMENT TO INDIVIDUAL
Children and Young Peoples Services,Head of Education and Skills,Transport,230034,Contract Hire,07/02/2024,4232348-165,"1,836.17",REDACTED - PAYMENT TO INDIVIDUAL
Children and Young Peoples Services,Head of Education and Skills,Transport,230008,Contract Hire,07/02/2024,4232349-E033/JAN24,"3,157.06",REDACTED - PAYMENT TO INDIVIDUAL
Children and Young Peoples Services,Head of Education and Skills,Transport,230008,Contract Hire,07/02/2024,4232349-E055/JAN24,"1,891.50",REDACTED - PAYMENT TO INDIVIDUAL
Children and Young Peoples Services,Head of Education and Skills,Transport,230013,Contract Hire,07/02/2024,4232350-7347-0224,"2,430.40",REDACTED - PAYMENT TO INDIVIDUAL
Children and Young Peoples Services,Head of Education and Skills,Transport,230006,Contract Hire,07/02/2024,4232351-F120/JAN24,"2,125.64",REDACTED - PAYMENT TO INDIVIDUAL
Children and Young Peoples Services,Head of Education and Skills,Transport,230034,Contract Hire,07/02/2024,4232352-5476/JAN24,"2,160.00",REDACTED - PAYMENT TO INDIVIDUAL
Children and Young Peoples Services,Head of Education and Skills,Transport,230006,Contract Hire,07/02/2024,4232352-E195/JAN24,"2,160.00",REDACTED - PAYMENT TO INDIVIDUAL
Children and Young Peoples Services,Head of Education and Skills,Transport,230006,Contract Hire,07/02/2024,4232374-F106-JAN24,"2,477.23",REDACTED - PAYMENT TO INDIVIDUAL
Dedicated Schools Grant BG0015,DSG High Needs Block,Transport,230011,Contract Hire,07/02/2024,4232379-JAN9003,820.75,REDACTED - PAYMENT TO INDIVIDUAL
Children and Young Peoples Services,Head of Education and Skills,Transport,230007,Contract Hire,07/02/2024,4232380-COLORS3541JANUARY2024,"2,952.39",REDACTED - PAYMENT TO INDIVIDUAL
Children and Young Peoples Services,Head of Education and Skills,Transport,230008,Contract Hire,07/02/2024,4232380-COLORS3542JANUARY2024,"4,336.08",REDACTED - PAYMENT TO INDIVIDUAL
Children and Young Peoples Services,Head of Education and Skills,Transport,230006,Contract Hire,07/02/2024,4232380-COLORS3543JANUARY2024,"4,160.00",REDACTED - PAYMENT TO INDIVIDUAL
Children and Young Peoples Services,Head of Education and Skills,Transport,230008,Contract Hire,07/02/2024,4232380-COLORS3545JANUARY2024,"4,219.20",REDACTED - PAYMENT TO INDIVIDUAL
Children and Young Peoples Services,Head of Education and Skills,Transport,230006,Contract Hire,07/02/2024,4232380-COLORS3546JANUARY2024,"1,162.98",REDACTED - PAYMENT TO INDIVIDUAL
Neighbourhoods and Climate Change,Partnerships & Community Engagement Div.,Supplies and Services,384086,Miscellaneous Expenses,07/02/2024,4232399-VOUCHERCHAJ03-23,600.00,WATERHOUSES COMMUNITY ASSOCIATION.
Children and Young Peoples Services,Head of Early Help Inclusion & Vulnerable Children.,Premises,108099,Service Repairs and Maintenance,07/02/2024,4231968-531547,"1,474.08",BAY PLASTICS (VINK UK LTD).
Adult and Health Services,Commissioning inc Supporting People,Third Party Payments,479102,Purchase of Care,07/02/2024,4232092-9443,970.00,FM HEARING SYSTEMS T/A DIGITAL HEARING CARE SOLUTIONS LTD.
Neighbourhoods and Climate Change,Highways,Third Party Payments,430100,Rendered by Private Contractors,07/02/2024,4232266-2403-004,"2,070.00",NUSTEEL STRUCTURES LTD.
Children and Young Peoples Services,Head of Education and Skills,Transport,230007,Contract Hire,07/02/2024,4231948-0340,"2,664.00",REDACTED - PAYMENT TO INDIVIDUAL
Children and Young Peoples Services,Head of Education and Skills,Transport,230013,Contract Hire,07/02/2024,4231948-0341,"2,780.40",REDACTED - PAYMENT TO INDIVIDUAL
Children and Young Peoples Services,Head of Education and Skills,Transport,230008,Contract Hire,08/02/2024,4232415-12416,"4,505.67",24/7 TAXI SERVICES (PETERLEE) LTD.
Children and Young Peoples Services,Head of Education and Skills,Transport,230008,Contract Hire,08/02/2024,4232415-12417,"3,866.80",24/7 TAXI SERVICES (PETERLEE) LTD.
Children and Young Peoples Services,Head of Education and Skills,Transport,230006,Contract Hire,08/02/2024,4232415-12422,"2,499.36",24/7 TAXI SERVICES (PETERLEE) LTD.
Children and Young Peoples Services,Head of Education and Skills,Transport,230006,Contract Hire,08/02/2024,4232422-JANUARY02/2024,"1,440.00",A & P TAXIS.
Resources BK0010,Legal & Democratic Services,Supplies and Services,332029,Printing Stationery and Gen Off Exps,08/02/2024,4232424-PSI0243017,608.43,ADARE SEC LTD.
Children and Young Peoples Services,Head of Education and Skills,Transfer Payments,510051,School Children,08/02/2024,4232426-AWPU-02-2024-005,"4,521.47",ADVANCE LEARNING PARTNERSHIP.
Children and Young Peoples Services,Head of Education and Skills,Transfer Payments,510051,School Children,08/02/2024,4232426-AWPU-02-2024-006,"4,431.29",ADVANCE LEARNING PARTNERSHIP.
Children and Young Peoples Services,Head of Education and Skills,Transfer Payments,510051,School Children,08/02/2024,4232426-AWPU-02-2024-016,"3,600.42",ADVANCE LEARNING PARTNERSHIP.
Children and Young Peoples Services,Head of Education and Skills,Transfer Payments,510051,School Children,08/02/2024,4232426-AWPU-02-2024-020,"3,071.65",ADVANCE LEARNING PARTNERSHIP.
Children and Young Peoples Services,Head of Education and Skills,Transfer Payments,510051,School Children,08/02/2024,4232426-AWPU-02-2024-022,"3,323.46",ADVANCE LEARNING PARTNERSHIP.
Dedicated Schools Grant BG0015,DSG High Needs Block,Central Support and Other Recharges,689988,Unclassified E690,08/02/2024,4232426-JAN2024TOPUP/60,"5,352.00",ADVANCE LEARNING PARTNERSHIP.
Dedicated Schools Grant BG0015,DSG High Needs Block,Central Support and Other Recharges,689989,Unclassified E690,08/02/2024,4232427-JAN2024TOPUP/103,"3,546.00",ADVANCE LEARNING PARTNERSHIP.
Dedicated Schools Grant BG0015,DSG High Needs Block,Central Support and Other Recharges,689988,Unclassified E690,08/02/2024,4232427-JAN2024TOPUP/104,"3,000.00",ADVANCE LEARNING PARTNERSHIP.
Dedicated Schools Grant BG0015,DSG High Needs Block,Central Support and Other Recharges,689988,Unclassified E690,08/02/2024,4232428-JAN2024TOPUP/102,"5,713.00",ADVANCE LEARNING PARTNERSHIP.
Dedicated Schools Grant BG0015,DSG High Needs Block,Central Support and Other Recharges,689988,Unclassified E690,08/02/2024,4232428-JAN2024TOPUP/187,"14,148.00",ADVANCE LEARNING PARTNERSHIP.
Dedicated Schools Grant BG0015,DSG High Needs Block,Central Support and Other Recharges,689989,Unclassified E690,08/02/2024,4232429-JAN2024TOPUP/63,"3,300.00",ADVANCE LEARNING PARTNERSHIP.
Dedicated Schools Grant BG0015,DSG High Needs Block,Central Support and Other Recharges,689988,Unclassified E690,08/02/2024,4232429-JAN2024TOPUP/64,"5,200.00",ADVANCE LEARNING PARTNERSHIP.
Children and Young Peoples Services,Head of Education and Skills,Transfer Payments,510051,School Children,08/02/2024,4232430-AWPU-02-2024-015,"3,219.09",ADVANCE LEARNING PARTNERSHIP.
Children and Young Peoples Services,Head of Education and Skills,Transfer Payments,510051,School Children,08/02/2024,4232430-AWPU-02-2024-028,"2,776.77",ADVANCE LEARNING PARTNERSHIP.
Dedicated Schools Grant BG0015,DSG High Needs Block,Central Support and Other Recharges,689988,Unclassified E690,08/02/2024,4232430-JAN2024TOPUP/211,"7,566.00",ADVANCE LEARNING PARTNERSHIP.
Dedicated Schools Grant BG0015,DSG High Needs Block,Central Support and Other Recharges,689988,Unclassified E690,08/02/2024,4232431-JAN2024TOPUP/213,"13,673.00",ADVANCE LEARNING PARTNERSHIP.
Dedicated Schools Grant BG0015,DSG High Needs Block,Central Support and Other Recharges,689988,Unclassified E690,08/02/2024,4232432-JAN2024TOPUP/73,"1,446.00",ADVANCE LEARNING PARTNERSHIP.
Dedicated Schools Grant BG0015,DSG High Needs Block,Central Support and Other Recharges,689989,Unclassified E690,08/02/2024,4232432-JAN2024TOPUP/74,"2,000.00",ADVANCE LEARNING PARTNERSHIP.
Dedicated Schools Grant BG0015,DSG High Needs Block,Central Support and Other Recharges,689988,Unclassified E690,08/02/2024,4232433-JAN2024TOPUP/23,"3,773.00",ADVANCE LEARNING PARTNERSHIP.
Dedicated Schools Grant BG0015,DSG High Needs Block,Central Support and Other Recharges,689989,Unclassified E690,08/02/2024,4232433-JAN2024TOPUP/24,"2,058.00",ADVANCE LEARNING PARTNERSHIP.
Children and Young Peoples Services,Head of Education and Skills,Transfer Payments,510051,School Children,08/02/2024,4232434-AWPU-02-2024-011,"3,563.11",ADVANCE LEARNING PARTNERSHIP.
Children and Young Peoples Services,Head of Education and Skills,Transfer Payments,510051,School Children,08/02/2024,4232434-AWPU-02-2024-031,"3,317.38",ADVANCE LEARNING PARTNERSHIP.
Children and Young Peoples Services,Head of Education and Skills,Transfer Payments,510051,School Children,08/02/2024,4232434-AWPU-02-2024-039,"3,323.46",ADVANCE LEARNING PARTNERSHIP.
Dedicated Schools Grant BG0015,DSG High Needs Block,Central Support and Other Recharges,689988,Unclassified E690,08/02/2024,4232434-JAN2024TOPUP/14,"2,457.00",ADVANCE LEARNING PARTNERSHIP.
Dedicated Schools Grant BG0015,DSG High Needs Block,Third Party Payments,440111,Other third party payments E440,08/02/2024,4232434-JAN2024TOPUP/15,950.00,ADVANCE LEARNING PARTNERSHIP.
Dedicated Schools Grant BG0015,DSG High Needs Block,Central Support and Other Recharges,689989,Unclassified E690,08/02/2024,4232435-JAN2024TOPUP/82,"5,400.00",ADVANCE LEARNING PARTNERSHIP.
Dedicated Schools Grant BG0015,DSG High Needs Block,Central Support and Other Recharges,689988,Unclassified E690,08/02/2024,4232435-JAN2024TOPUP/83,"1,478.00",ADVANCE LEARNING PARTNERSHIP.
Dedicated Schools Grant BG0015,DSG High Needs Block,Central Support and Other Recharges,689989,Unclassified E690,08/02/2024,4232436-JAN2024TOPUP/85,"6,600.00",ADVANCE LEARNING PARTNERSHIP.
Dedicated Schools Grant BG0015,DSG High Needs Block,Central Support and Other Recharges,689988,Unclassified E690,08/02/2024,4232436-JAN2024TOPUP/86,"1,100.00",ADVANCE LEARNING PARTNERSHIP.
Children and Young Peoples Services,Head of Education and Skills,Transfer Payments,510051,School Children,08/02/2024,4232437-AWPU-02-2024-009,"3,808.84",ADVANCE LEARNING PARTNERSHIP.
Children and Young Peoples Services,Head of Education and Skills,Transfer Payments,510051,School Children,08/02/2024,4232437-AWPU-02-2024-010,"3,808.84",ADVANCE LEARNING PARTNERSHIP.
Children and Young Peoples Services,Head of Education and Skills,Transfer Payments,510051,School Children,08/02/2024,4232437-AWPU-02-2024-023,"3,268.07",ADVANCE LEARNING PARTNERSHIP.
Children and Young Peoples Services,Head of Education and Skills,Transfer Payments,510051,School Children,08/02/2024,4232437-AWPU-02-2024-024,"2,899.64",ADVANCE LEARNING PARTNERSHIP.
Children and Young Peoples Services,Head of Education and Skills,Transfer Payments,510051,School Children,08/02/2024,4232437-AWPU-02-2024-025,"2,948.78",ADVANCE LEARNING PARTNERSHIP.
Dedicated Schools Grant BG0015,DSG High Needs Block,Central Support and Other Recharges,689988,Unclassified E690,08/02/2024,4232437-JAN2024TOPUP/40,"7,053.00",ADVANCE LEARNING PARTNERSHIP.
Dedicated Schools Grant BG0015,DSG High Needs Block,Central Support and Other Recharges,689988,Unclassified E690,08/02/2024,4232438-JAN2024TOPUP/80,"4,731.00",ADVANCE LEARNING PARTNERSHIP.
Dedicated Schools Grant BG0015,DSG High Needs Block,Central Support and Other Recharges,689989,Unclassified E690,08/02/2024,4232438-JAN2024TOPUP/81,592.00,ADVANCE LEARNING PARTNERSHIP.
Dedicated Schools Grant BG0015,DSG High Needs Block,Central Support and Other Recharges,689989,Unclassified E690,08/02/2024,4232439-JAN2024TOPUP/212,"1,100.00",ADVANCE LEARNING PARTNERSHIP.
Neighbourhoods and Climate Change,Environmental Services,Transport,210057,Repair and Maintenance of Vehicles,08/02/2024,4232440-INV-808,650.00,AIM STRAIGHT ALIGNMENTS LTD.
Neighbourhoods and Climate Change,Environmental Services,Transport,210057,Repair and Maintenance of Vehicles,08/02/2024,4232440-INV-827,650.00,AIM STRAIGHT ALIGNMENTS LTD.
Regeneration Economy and Growth,Culture Sport and Tourism,Supplies and Services,304259,Equipment and Materials,08/02/2024,4232441-180467,506.00,ALBANY OFFICE EQUIPMENT (WHOLESALE) LTD.
Regeneration Economy and Growth,Corporate Property and Land,Third Party Payments,430100,Rendered by Private Contractors,08/02/2024,4232442-SI30341,"9,250.00",AMBIC LTD.
Dedicated Schools Grant BG0015,DSG High Needs Block,Central Support and Other Recharges,689988,Unclassified E690,08/02/2024,4232447-JAN2024TOPUP/49,"6,600.00",APOLLO SCHOOLS TRUST T/A ENDEAVOUR ACADEMY.
Children and Young Peoples Services,Head of Education and Skills,Transport,230006,Contract Hire,08/02/2024,4232452-JAN2024-04,720.00,ARMSTRONG`S TAXIS.
Non-Service Specific,Non Service Specific-Financing,Long Term Debtors,924001,Car loans,08/02/2024,4232454-121450,742.50,ARRIVA NORTHUMBRIA LTD.
Children and Young Peoples Services,Head of Education and Skills,Transport,230008,Contract Hire,08/02/2024,4232456-1014,"3,300.00",AT TAXIS LTD.
Children and Young Peoples Services,Head of Education and Skills,Transport,230006,Contract Hire,08/02/2024,4232456-1017,"3,969.00",AT TAXIS LTD.
Children and Young Peoples Services,Head of Education and Skills,Transport,230008,Contract Hire,08/02/2024,4232457-W071-0124,"5,920.00",ATLAS TAXIS BISHOP AUCKLAND.
Children and Young Peoples Services,Head of Education and Skills,Transport,230008,Contract Hire,08/02/2024,4232457-W085-0124,"4,715.40",ATLAS TAXIS BISHOP AUCKLAND.
Children and Young Peoples Services,Head of Education and Skills,Transport,230034,Contract Hire,08/02/2024,4232458-6033TSA-0124,"1,100.00",ATLAS TAXIS MANAGEMENT LTD.
Children and Young Peoples Services,Head of Education and Skills,Transport,230009,Contract Hire,08/02/2024,4232458-7397-JAN24,"3,150.00",ATLAS TAXIS MANAGEMENT LTD.
Children and Young Peoples Services,Head of Education and Skills,Transport,230008,Contract Hire,08/02/2024,4232458-A019-JAN24,"4,400.00",ATLAS TAXIS MANAGEMENT LTD.
Children and Young Peoples Services,Head of Education and Skills,Transport,230008,Contract Hire,08/02/2024,4232458-A088-JAN24,"5,208.00",ATLAS TAXIS MANAGEMENT LTD.
Children and Young Peoples Services,Head of Education and Skills,Transport,230008,Contract Hire,08/02/2024,4232458-A153-JAN24,"3,881.01",ATLAS TAXIS MANAGEMENT LTD.
Children and Young Peoples Services,Head of Education and Skills,Transport,230008,Contract Hire,08/02/2024,4232458-R003-JAN24,"4,320.00",ATLAS TAXIS MANAGEMENT LTD.
Children and Young Peoples Services,Head of Education and Skills,Transport,230012,Contract Hire,08/02/2024,4232458-R006-JAN24,"3,900.00",ATLAS TAXIS MANAGEMENT LTD.
Children and Young Peoples Services,Head of Education and Skills,Transport,230008,Contract Hire,08/02/2024,4232458-S014-JAN24,"3,776.64",ATLAS TAXIS MANAGEMENT LTD.
Children and Young Peoples Services,Head of Education and Skills,Transport,230007,Contract Hire,08/02/2024,4232458-W052-JAN24,"5,180.00",ATLAS TAXIS MANAGEMENT LTD.
Children and Young Peoples Services,Head of Education and Skills,Transport,230008,Contract Hire,08/02/2024,4232458-W076-JAN24,"4,800.00",ATLAS TAXIS MANAGEMENT LTD.
Children and Young Peoples Services,Head of Education and Skills,Transport,230008,Contract Hire,08/02/2024,4232458-W078-JAN24,"4,589.60",ATLAS TAXIS MANAGEMENT LTD.
Children and Young Peoples Services,Head of Education and Skills,Transport,230008,Contract Hire,08/02/2024,4232458-W080-JAN24,"4,658.40",ATLAS TAXIS MANAGEMENT LTD.
Children and Young Peoples Services,Head of Education and Skills,Transport,230008,Contract Hire,08/02/2024,4232458-W190-JAN24,"4,256.90",ATLAS TAXIS MANAGEMENT LTD.
Children and Young Peoples Services,Head of Education and Skills,Transport,230008,Contract Hire,08/02/2024,4232459-S022JAN2024,"3,985.20",AUCKLAND TRAVEL.
Children and Young Peoples Services,Head of Education and Skills,Transport,230008,Contract Hire,08/02/2024,4232459-W061 Jan 2024,"3,465.00",AUCKLAND TRAVEL.
Resources BK0010,Procurement Sales & Business Services,Supplies and Services,304516,Equipment and Materials,08/02/2024,4232461-132945,590.40,BACK CARE SOLUTIONS LTD.
Dedicated Schools Grant BG0015,DSG High Needs Block,Central Support and Other Recharges,689989,Unclassified E690,08/02/2024,4232466-JAN2024TOPUP/10,"1,417.00",BARNARD CASTLE SCHOOL (PRIVATE).
Dedicated Schools Grant BG0015,DSG High Needs Block,Central Support and Other Recharges,689988,Unclassified E690,08/02/2024,4232466-JAN2024TOPUP/9,"1,745.00",BARNARD CASTLE SCHOOL (PRIVATE).
Neighbourhoods and Climate Change,Environmental Services,Transport,210057,Repair and Maintenance of Vehicles,08/02/2024,4232469-35260371,"1,062.47",BELL TRUCK SALES LTD T/A BELL TRUCK & VAN.
Neighbourhoods and Climate Change,Environmental Services,Transport,210057,Repair and Maintenance of Vehicles,08/02/2024,4232471-049696-WI,"1,180.64",BENELLA AUTO ELECTRICAL SERVICES LTD T/A BENELLA COMMERCIAL.
Dedicated Schools Grant BG0015,DSG High Needs Block,Central Support and Other Recharges,689989,Unclassified E690,08/02/2024,4232479-JAN2024TOPUP/162,"2,284.00",BISHOP CHADWICK CATHOLIC EDUCATION TRUST (NSCET).
Dedicated Schools Grant BG0015,DSG High Needs Block,Central Support and Other Recharges,689988,Unclassified E690,08/02/2024,4232479-JAN2024TOPUP/163,"3,900.00",BISHOP CHADWICK CATHOLIC EDUCATION TRUST (NSCET).
Dedicated Schools Grant BG0015,DSG High Needs Block,Central Support and Other Recharges,689989,Unclassified E690,08/02/2024,4232480-JAN2024TOPUP/153,900.00,BISHOP CHADWICK CATHOLIC EDUCATION TRUST (NSCET).
Dedicated Schools Grant BG0015,DSG High Needs Block,Central Support and Other Recharges,689988,Unclassified E690,08/02/2024,4232480-JAN2024TOPUP/154,"3,100.00",BISHOP CHADWICK CATHOLIC EDUCATION TRUST (NSCET).
Dedicated Schools Grant BG0015,DSG High Needs Block,Central Support and Other Recharges,689988,Unclassified E690,08/02/2024,4232481-JAN2024TOPUP/93,"2,500.00",BISHOP CHADWICK CATHOLIC EDUCATION TRUST (NSCET).
Dedicated Schools Grant BG0015,DSG High Needs Block,Central Support and Other Recharges,689989,Unclassified E690,08/02/2024,4232481-JAN2024TOPUP/94,900.00,BISHOP CHADWICK CATHOLIC EDUCATION TRUST (NSCET).
Dedicated Schools Grant BG0015,DSG High Needs Block,Central Support and Other Recharges,689989,Unclassified E690,08/02/2024,4232482-JAN2024TOPUP/145,700.00,BISHOP CHADWICK CATHOLIC EDUCATION TRUST (NSCET).
Dedicated Schools Grant BG0015,DSG High Needs Block,Central Support and Other Recharges,689988,Unclassified E690,08/02/2024,4232482-JAN2024TOPUP/146,"1,100.00",BISHOP CHADWICK CATHOLIC EDUCATION TRUST (NSCET).
Children and Young Peoples Services,Head of Education and Skills,Transfer Payments,510051,School Children,08/02/2024,4232483-AWPU-02-2024-026,"2,948.78",BISHOP CHADWICK CATHOLIC EDUCATION TRUST (NSCET).
Dedicated Schools Grant BG0015,DSG High Needs Block,Central Support and Other Recharges,689988,Unclassified E690,08/02/2024,4232483-JAN2024TOPUP/105,"9,294.00",BISHOP CHADWICK CATHOLIC EDUCATION TRUST (NSCET).
Dedicated Schools Grant BG0015,DSG High Needs Block,Central Support and Other Recharges,689989,Unclassified E690,08/02/2024,4232484-JAN2024TOPUP/141,"6,000.00",BISHOP CHADWICK CATHOLIC EDUCATION TRUST (NSCET).
Dedicated Schools Grant BG0015,DSG High Needs Block,Central Support and Other Recharges,689988,Unclassified E690,08/02/2024,4232484-JAN2024TOPUP/142,900.00,BISHOP CHADWICK CATHOLIC EDUCATION TRUST (NSCET).
Dedicated Schools Grant BG0015,DSG High Needs Block,Central Support and Other Recharges,689989,Unclassified E690,08/02/2024,4232485-JAN2024TOPUP/91,"3,142.00",BISHOP CHADWICK CATHOLIC EDUCATION TRUST (NSCET).
Dedicated Schools Grant BG0015,DSG High Needs Block,Central Support and Other Recharges,689988,Unclassified E690,08/02/2024,4232485-JAN2024TOPUP/92,"1,300.00",BISHOP CHADWICK CATHOLIC EDUCATION TRUST (NSCET).
Dedicated Schools Grant BG0015,DSG High Needs Block,Central Support and Other Recharges,689988,Unclassified E690,08/02/2024,4232486-JAN2024TOPUP/170,"2,000.00",BISHOP CHADWICK CATHOLIC EDUCATION TRUST (NSCET).
Dedicated Schools Grant BG0015,DSG High Needs Block,Central Support and Other Recharges,689989,Unclassified E690,08/02/2024,4232487-JAN2024TOPUP/18,"2,900.00",BISHOP HOGARTH CATHOLIC EDUCATION TRUST.
Dedicated Schools Grant BG0015,DSG High Needs Block,Central Support and Other Recharges,689989,Unclassified E690,08/02/2024,4232488-JAN2024TOPUP/184,"3,500.00",BISHOP HOGARTH CATHOLIC EDUCATION TRUST.
Dedicated Schools Grant BG0015,DSG High Needs Block,Central Support and Other Recharges,689988,Unclassified E690,08/02/2024,4232488-JAN2024TOPUP/185,"1,310.00",BISHOP HOGARTH CATHOLIC EDUCATION TRUST.
Children and Young Peoples Services,Head of Education and Skills,Transfer Payments,510051,School Children,08/02/2024,4232489-AWPU-02-2024-030,"2,703.05",BISHOP HOGARTH CATHOLIC EDUCATION TRUST.
Dedicated Schools Grant BG0015,DSG High Needs Block,Central Support and Other Recharges,689988,Unclassified E690,08/02/2024,4232489-JAN2024TOPUP/150,"5,712.00",BISHOP HOGARTH CATHOLIC EDUCATION TRUST.
Dedicated Schools Grant BG0015,DSG High Needs Block,Central Support and Other Recharges,689988,Unclassified E690,08/02/2024,4232490-JAN2024TOPUP/165,"6,634.00",BISHOP HOGARTH CATHOLIC EDUCATION TRUST.
Dedicated Schools Grant BG0015,DSG High Needs Block,Central Support and Other Recharges,689989,Unclassified E690,08/02/2024,4232490-JAN2024TOPUP/166,"1,416.00",BISHOP HOGARTH CATHOLIC EDUCATION TRUST.
Dedicated Schools Grant BG0015,DSG High Needs Block,Central Support and Other Recharges,689989,Unclassified E690,08/02/2024,4232491-JAN2024TOPUP/157,"2,399.00",BISHOP HOGARTH CATHOLIC EDUCATION TRUST.
Dedicated Schools Grant BG0015,DSG High Needs Block,Central Support and Other Recharges,689989,Unclassified E690,08/02/2024,4232492-JAN2024TOPUP/164,500.00,BISHOP HOGARTH CATHOLIC EDUCATION TRUST.
Dedicated Schools Grant BG0015,DSG High Needs Block,Central Support and Other Recharges,689989,Unclassified E690,08/02/2024,4232493-JAN2024TOPUP/137,"2,500.00",BISHOP HOGARTH CATHOLIC EDUCATION TRUST.
Dedicated Schools Grant BG0015,DSG High Needs Block,Central Support and Other Recharges,689988,Unclassified E690,08/02/2024,4232493-JAN2024TOPUP/138,"1,100.00",BISHOP HOGARTH CATHOLIC EDUCATION TRUST.
Dedicated Schools Grant BG0015,DSG High Needs Block,Central Support and Other Recharges,689989,Unclassified E690,08/02/2024,4232494-JAN2024TOPUP/186,"1,600.00",BISHOP HOGARTH CATHOLIC EDUCATION TRUST.
Dedicated Schools Grant BG0015,DSG High Needs Block,Central Support and Other Recharges,689988,Unclassified E690,08/02/2024,4232495-JAN2024TOPUP/90,"3,954.00",BISHOP HOGARTH CATHOLIC EDUCATION TRUST.
Dedicated Schools Grant BG0015,DSG High Needs Block,Central Support and Other Recharges,689989,Unclassified E690,08/02/2024,4232496-JAN2024TOPUP/133,"1,200.00",BISHOP HOGARTH CATHOLIC EDUCATION TRUST.
Dedicated Schools Grant BG0015,DSG High Needs Block,Central Support and Other Recharges,689988,Unclassified E690,08/02/2024,4232496-JAN2024TOPUP/134,"1,173.00",BISHOP HOGARTH CATHOLIC EDUCATION TRUST.
Dedicated Schools Grant BG0015,DSG High Needs Block,Central Support and Other Recharges,689988,Unclassified E690,08/02/2024,4232497-JAN2024TOPUP/135,"1,200.00",BISHOP HOGARTH CATHOLIC EDUCATION TRUST.
Dedicated Schools Grant BG0015,DSG High Needs Block,Central Support and Other Recharges,689989,Unclassified E690,08/02/2024,4232497-JAN2024TOPUP/136,"2,100.00",BISHOP HOGARTH CATHOLIC EDUCATION TRUST.
Dedicated Schools Grant BG0015,DSG High Needs Block,Central Support and Other Recharges,689988,Unclassified E690,08/02/2024,4232497-JAN2024TOPUP/155,"8,242.00",BISHOP HOGARTH CATHOLIC EDUCATION TRUST.
Dedicated Schools Grant BG0015,DSG High Needs Block,Central Support and Other Recharges,689989,Unclassified E690,08/02/2024,4232497-JAN2024TOPUP/156,900.00,BISHOP HOGARTH CATHOLIC EDUCATION TRUST.
Dedicated Schools Grant BG0015,DSG High Needs Block,Central Support and Other Recharges,689989,Unclassified E690,08/02/2024,4232498-JAN2024TOPUP/16,"1,600.00",BISHOP IAN RAMSEY C OF E PRIMARY SCHOOL.
Dedicated Schools Grant BG0015,DSG High Needs Block,Central Support and Other Recharges,689988,Unclassified E690,08/02/2024,4232498-JAN2024TOPUP/17,973.00,BISHOP IAN RAMSEY C OF E PRIMARY SCHOOL.
Dedicated Schools Grant BG0015,DSG High Needs Block,Central Support and Other Recharges,689989,Unclassified E690,08/02/2024,4232499-JAN2024TOPUP/151,"4,181.00",BISHOP WILKINSON CATHOLIC EDUCATION TRUST.
Dedicated Schools Grant BG0015,DSG High Needs Block,Central Support and Other Recharges,689988,Unclassified E690,08/02/2024,4232499-JAN2024TOPUP/152,"2,937.00",BISHOP WILKINSON CATHOLIC EDUCATION TRUST.
Dedicated Schools Grant BG0015,DSG High Needs Block,Central Support and Other Recharges,689988,Unclassified E690,08/02/2024,4232500-JAN2024TOPUP/161,"10,305.00",BISHOP WILKINSON CATHOLIC EDUCATION TRUST.
Dedicated Schools Grant BG0015,DSG High Needs Block,Central Support and Other Recharges,689988,Unclassified E690,08/02/2024,4232501-JAN2024TOPUP/96,"1,690.00",BISHOP WILKINSON CATHOLIC EDUCATION TRUST.
Dedicated Schools Grant BG0015,DSG High Needs Block,Central Support and Other Recharges,689988,Unclassified E690,08/02/2024,4232502-JAN2024TOPUP/179,"2,146.00",BISHOP WILKINSON CATHOLIC EDUCATION TRUST.
Dedicated Schools Grant BG0015,DSG High Needs Block,Central Support and Other Recharges,689989,Unclassified E690,08/02/2024,4232502-JAN2024TOPUP/180,"4,046.00",BISHOP WILKINSON CATHOLIC EDUCATION TRUST.
Dedicated Schools Grant BG0015,DSG High Needs Block,Central Support and Other Recharges,689988,Unclassified E690,08/02/2024,4232503-JAN2024TOPUP/160,"5,876.00",BISHOP WILKINSON CATHOLIC EDUCATION TRUST.
Dedicated Schools Grant BG0015,DSG High Needs Block,Central Support and Other Recharges,689989,Unclassified E690,08/02/2024,4232504-JAN2024TOPUP/139,"2,300.00",BISHOP WILKINSON CATHOLIC EDUCATION TRUST.
Dedicated Schools Grant BG0015,DSG High Needs Block,Central Support and Other Recharges,689988,Unclassified E690,08/02/2024,4232504-JAN2024TOPUP/140,900.00,BISHOP WILKINSON CATHOLIC EDUCATION TRUST.
Dedicated Schools Grant BG0015,DSG High Needs Block,Central Support and Other Recharges,689988,Unclassified E690,08/02/2024,4232505-JAN2024TOPUP/158,"1,400.00",BISHOP WILKINSON CATHOLIC EDUCATION TRUST.
Dedicated Schools Grant BG0015,DSG High Needs Block,Central Support and Other Recharges,689989,Unclassified E690,08/02/2024,4232505-JAN2024TOPUP/159,"1,046.00",BISHOP WILKINSON CATHOLIC EDUCATION TRUST.
Dedicated Schools Grant BG0015,DSG High Needs Block,Central Support and Other Recharges,689988,Unclassified E690,08/02/2024,4232506-JAN2024TOPUP/182,"8,454.00",BISHOP WILKINSON CATHOLIC EDUCATION TRUST.
Dedicated Schools Grant BG0015,DSG High Needs Block,Central Support and Other Recharges,689988,Unclassified E690,08/02/2024,4232507-JAN2024TOPUP/95,"2,181.00",BISHOP WILKINSON CATHOLIC EDUCATION TRUST.
Dedicated Schools Grant BG0015,DSG High Needs Block,Central Support and Other Recharges,689988,Unclassified E690,08/02/2024,4232508-JAN2024TOPUP/130,"1,959.00",BISHOP WILKINSON CATHOLIC EDUCATION TRUST.
Dedicated Schools Grant BG0015,DSG High Needs Block,Central Support and Other Recharges,689988,Unclassified E690,08/02/2024,4232509-JAN2024TOPUP/131,"2,427.00",BISHOP WILKINSON CATHOLIC EDUCATION TRUST.
Dedicated Schools Grant BG0015,DSG High Needs Block,Central Support and Other Recharges,689989,Unclassified E690,08/02/2024,4232509-JAN2024TOPUP/132,900.00,BISHOP WILKINSON CATHOLIC EDUCATION TRUST.
Dedicated Schools Grant BG0015,DSG High Needs Block,Central Support and Other Recharges,689989,Unclassified E690,08/02/2024,4232510-JAN2024TOPUP/3,"1,300.00",BISHOP WILKINSON CATHOLIC EDUCATION TRUST.
Dedicated Schools Grant BG0015,DSG High Needs Block,Central Support and Other Recharges,689988,Unclassified E690,08/02/2024,4232510-JAN2024TOPUP/4,"1,100.00",BISHOP WILKINSON CATHOLIC EDUCATION TRUST.
Dedicated Schools Grant BG0015,DSG High Needs Block,Central Support and Other Recharges,689989,Unclassified E690,08/02/2024,4232511-JAN2024TOPUP/175,973.00,BISHOP WILKINSON CATHOLIC EDUCATION TRUST.
Dedicated Schools Grant BG0015,DSG High Needs Block,Central Support and Other Recharges,689988,Unclassified E690,08/02/2024,4232511-JAN2024TOPUP/176,500.00,BISHOP WILKINSON CATHOLIC EDUCATION TRUST.
Dedicated Schools Grant BG0015,DSG High Needs Block,Central Support and Other Recharges,689988,Unclassified E690,08/02/2024,4232512-JAN2024TOPUP/113,"1,273.00",BISHOP WILKINSON CATHOLIC EDUCATION TRUST.
Dedicated Schools Grant BG0015,DSG High Needs Block,Central Support and Other Recharges,689988,Unclassified E690,08/02/2024,4232513-JAN2024TOPUP/88,"1,373.00",BISHOP WILKINSON CATHOLIC EDUCATION TRUST.
Dedicated Schools Grant BG0015,DSG High Needs Block,Central Support and Other Recharges,689989,Unclassified E690,08/02/2024,4232513-JAN2024TOPUP/89,"1,536.00",BISHOP WILKINSON CATHOLIC EDUCATION TRUST.
Dedicated Schools Grant BG0015,DSG High Needs Block,Central Support and Other Recharges,689989,Unclassified E690,08/02/2024,4232514-JAN2024TOPUP/168,"1,100.00",BISHOP WILKINSON CATHOLIC EDUCATION TRUST.
Dedicated Schools Grant BG0015,DSG High Needs Block,Central Support and Other Recharges,689988,Unclassified E690,08/02/2024,4232514-JAN2024TOPUP/169,900.00,BISHOP WILKINSON CATHOLIC EDUCATION TRUST.
Dedicated Schools Grant BG0015,DSG High Needs Block,Central Support and Other Recharges,689988,Unclassified E690,08/02/2024,4232515-JAN2024TOPUP/143,"2,700.00",BISHOP WILKINSON CATHOLIC EDUCATION TRUST.
Dedicated Schools Grant BG0015,DSG High Needs Block,Central Support and Other Recharges,689988,Unclassified E690,08/02/2024,4232516-JAN2024TOPUP/167,"1,035.00",BISHOP WILKINSON CATHOLIC EDUCATION TRUST.
Dedicated Schools Grant BG0015,DSG High Needs Block,Central Support and Other Recharges,689989,Unclassified E690,08/02/2024,4232516-JAN2024TOPUP/177,"6,800.00",BISHOP WILKINSON CATHOLIC EDUCATION TRUST.
Dedicated Schools Grant BG0015,DSG High Needs Block,Central Support and Other Recharges,689988,Unclassified E690,08/02/2024,4232516-JAN2024TOPUP/178,"3,600.00",BISHOP WILKINSON CATHOLIC EDUCATION TRUST.
Dedicated Schools Grant BG0015,DSG High Needs Block,Central Support and Other Recharges,689988,Unclassified E690,08/02/2024,4232517-JAN2024TOPUP/183,900.00,BISHOP WILKINSON CATHOLIC EDUCATION TRUST.
Adult and Health Services,Head of Adults,Transport,230005,Contract Hire,08/02/2024,4232521-BZ00502,718.00,BREZ`S TAXIS.
Dedicated Schools Grant BG0015,DSG High Needs Block,Central Support and Other Recharges,689988,Unclassified E690,08/02/2024,4232523-JAN2024TOPUP/25,"4,736.00",BROWNEY PRIMARY ACADEMY.
Neighbourhoods and Climate Change,Environmental Services,Supplies and Services,304259,Equipment and Materials,08/02/2024,4232530-439428,597.00,CARRS BILLINGTON AGRICULTURE.
Regeneration Economy and Growth,Corporate Property and Land,Third Party Payments,430100,Rendered by Private Contractors,08/02/2024,4232532-12210/2023,"5,537.19",CATHEDRAL LOCK & SAFE SERVICES LTD.
Dedicated Schools Grant BG0015,DSG High Needs Block,Central Support and Other Recharges,689988,Unclassified E690,08/02/2024,4232535-JAN2024TOPUP/69,818.00,CHEVIOT LEARNING TRUST.
Children and Young Peoples Services,Head of Childrens Social Care,Supplies and Services,338066,Services,08/02/2024,4232537-INV-2684,"1,254.00",CHILD & FAMILY SOLUTIONS LTD.
Adult and Health Services,Commissioning inc Supporting People,Third Party Payments,479102,Purchase of Care,08/02/2024,4232538-INV1849,"2,463.44",CHILD ACTION NORTHWEST.
Regeneration Economy and Growth,Culture Sport and Tourism,Supplies and Services,336005,Advertising E336,08/02/2024,4232542-236154,"1,600.00",CITRUS (PBISHOPS) DURHAM LTD.
Resources BK0010,Digital Services,Supplies and Services,342051,Computers and Communications,08/02/2024,4232543-C/RB294413,831.11,CIVICA UK LTD.
Children and Young Peoples Services,Head of Education and Skills,Transport,230008,Contract Hire,08/02/2024,4232544-E032-CE-JAN24,"2,683.40",CJ`S EXECUTIVE TRAVEL LTD.
Children and Young Peoples Services,Head of Education and Skills,Transport,230008,Contract Hire,08/02/2024,4232544-N047-SH-JAN24,"5,315.64",CJ`S EXECUTIVE TRAVEL LTD.
Neighbourhoods and Climate Change,Highways,Stock A926,926900,Stock in hand-Inventory system,08/02/2024,4232547-23000RX24000406,"2,301.12",COLAS LTD.
Regeneration Economy and Growth,Culture Sport and Tourism,Supplies and Services,338047,Services,08/02/2024,4232548-10991,"3,192.08",COMEDY STORE MANAGEMENT T/A THE COMEDY STORE LTD.
Dedicated Schools Grant BG0015,DSG High Needs Block,Central Support and Other Recharges,689988,Unclassified E690,08/02/2024,4232549-JAN2024TOPUP/198,"1,181.00",CONSILIUM ACADEMIES.
Dedicated Schools Grant BG0015,DSG High Needs Block,Central Support and Other Recharges,689988,Unclassified E690,08/02/2024,4232550-JAN2024TOPUP/206,773.00,CONSILIUM ACADEMIES.
Children and Young Peoples Services,Head of Education and Skills,Transport,230008,Contract Hire,08/02/2024,4232554-116703,"3,763.20",CROFT BUSINESS SERVICES LTD T/A CROFT TRAVEL.
Children and Young Peoples Services,Head of Education and Skills,Transport,230006,Contract Hire,08/02/2024,4232554-117118,"3,460.70",CROFT BUSINESS SERVICES LTD T/A CROFT TRAVEL.
Children and Young Peoples Services,Head of Education and Skills,Transport,230008,Contract Hire,08/02/2024,4232559-1866,"1,600.00",DA TAXIS.
Children and Young Peoples Services,Head of Education and Skills,Transport,230007,Contract Hire,08/02/2024,4232561-541/JAN24,"4,700.00",DANNY`S TRAVEL.
Neighbourhoods and Climate Change,Environmental Services,Transport,230005,Contract Hire,08/02/2024,4232565-678412,930.00,DAWSONGROUP VANS LTD.
